Body Name,Trans.date,Department Code,Department,Expense Area Code,Expense Area,Expense type code,Expense type,Amount Paid (�),Supplier name,Extended description,TransNo,Period
Rother District Council,22/02/2021,999NOREPORT,Housing and Community Services,70714,Capital - Grants Halls and Community Projects,N1011,Capital Grants,"10,000.00",Robertsbridge Cricket Club,Capital Grants - Community Grants Scheme,2027142,202106
Rother District Council,01/03/2021,091HOUSING,Housing and Community Services,20145,Maintenance Services,D1201,Equipment & Materials,69.35,Lloyds Bank,Equipment & Materials - Purchase of Tools,2027344,202106
Rother District Council,03/03/2021,091HOUSING,Housing and Community Services,20114,Bexhill Parks & Open Spaces,B1100,Repairs to Premises,"4,750.00",Leigh Dyer,Repairs to Premises - Parks - Carpentry Repairs,2026505,202105
Rother District Council,09/03/2021,031RESOURCES,Chief Executive & Corporate Core,20173,Administrative Offices - Town Hall,B1100,Repairs to Premises,17.33,Lloyds Bank,Repairs to Premises - Purchase of Materials - Build Maint,2026791,202105
Rother District Council,09/03/2021,101RESOURCES,Resources,20222,Accountancy,D2626,Postages,11.49,Lloyds Bank,Postages - Courier Urgent Mail,2026797,202105
Rother District Council,09/03/2021,101RESOURCES,Resources,20222,Accountancy,D2626,Postages,2.40,Lloyds Bank,Postages - Courier Urgent Mail,2026797,202105
Rother District Council,09/03/2021,091HOUSING,Housing and Community Services,20206,UK Resettlement (Syrians),D2513,Hired and Contracted services,953.61,Lloyds Bank,Hired and contracted services - Syrian Misc,2026790,202105
Rother District Council,09/03/2021,031RESOURCES,Chief Executive & Corporate Core,20276,COVID19 RDC expenditure,D2513,Hired and Contracted services,429.65,Lloyds Bank,Hired and Contracted Services - Health and Safety Act Equipment risk assessment,2026792,202105
Rother District Council,09/03/2021,091HOUSING,Housing and Community Services,20145,Maintenance Services,D1201,Equipment & Materials,-69.35,Lloyds Bank,Equipment & Materials - Purchase of Tools,2026791,202105
Rother District Council,09/03/2021,101RESOURCES,Resources,20239,Computer Services,D2635,Computer Licences,25.98,Lloyds Bank,Computer Licences - Domain Name Renewal,2026795,202105
Rother District Council,09/03/2021,101RESOURCES,Resources,20239,Computer Services,D2635,Computer Licences,103.92,Lloyds Bank,Computer Licences - Domain Name Renewal,2026795,202105
Rother District Council,09/03/2021,101RESOURCES,Resources,20239,Computer Services,D2633,Computer Equipment,70.75,Lloyds Bank,Computer Equipment - Computer peripherals,2026794,202106
Rother District Council,09/03/2021,101RESOURCES,Resources,20239,Computer Services,D2633,Computer Equipment,10.49,Lloyds Bank,Computer Equipment - Computer peripherals,2026794,202106
Rother District Council,09/03/2021,101RESOURCES,Resources,20239,Computer Services,D2633,Computer Equipment,11.49,Lloyds Bank,Computer Equipment - Computer peripherals,2026794,202106
Rother District Council,09/03/2021,101RESOURCES,Resources,20239,Computer Services,D2633,Computer Equipment,19.99,Lloyds Bank,Computer Equipment - Computer peripherals,2026794,202106
Rother District Council,09/03/2021,101RESOURCES,Resources,20239,Computer Services,D2633,Computer Equipment,410.00,Lloyds Bank,Computer Equipment - Computer peripherals,2026794,202106
Rother District Council,09/03/2021,101RESOURCES,Resources,20239,Computer Services,D2633,Computer Equipment,4.56,Lloyds Bank,Computer Equipment - Computer peripherals,2026794,202106
Rother District Council,09/03/2021,101RESOURCES,Resources,20239,Computer Services,D2633,Computer Equipment,11.49,Lloyds Bank,Computer Equipment - Computer peripherals,2026794,202106
Rother District Council,09/03/2021,101RESOURCES,Resources,20239,Computer Services,D2633,Computer Equipment,141.69,Lloyds Bank,Computer Equipment - Carry Case,2026794,202106
Rother District Council,23/03/2021,091HOUSING,Housing and Community Services,20115,Rye Area Parks & Gardens,B1100,Repairs to Premises,691.70,Palmstead Nurseries Ltd,Repairs to Premises - Parks- Purchase of Trees,2025886,202104
Rother District Council,27/03/2021,101RESOURCES,Resources,20242,Communications-Phones,D2621,Telephones,288.41,BT British Telecommunications plc,Telephones - BT-Rental-General,2026417,202105
Rother District Council,30/03/2021,031RESOURCES,Chief Executive & Corporate Core,20175,Administrative Offices - T.H. Annex (NOT CHP),B1100,Repairs to Premises,220.51,Stannah Lift Services Ltd,Repairs to Premises - Specified Repairs and Works listed,2025822,202104
Rother District Council,01/04/2021,041ENVIRON,Environmental Services,32141,EH Alcohol Licensing R + W Partnership,D2922,Subscriptions,465.00,Institute of Licensing Ltd,Subscriptions - Instit of Licensing Corp Membership,2027247,202106
Rother District Council,07/04/2021,101RESOURCES,Resources,20239,Computer Services,D2635,Computer Licences,"44,013.09",GGP Systems Ltd,Computer Licences - GIS System,2026116,202104
Rother District Council,07/04/2021,081ACQUISIT,"Acquisitions, Transformation and Regeneration",20153,"Elva Business Centre, Bexhill",D2507,Security Services,960.00,Black Sheep Engineering Ltd,Security Services,2025746,202104
Rother District Council,09/04/2021,031RESOURCES,Chief Executive & Corporate Core,20178,Corporate Training,A2203,Training,375.00,Lloyds Bank,Training,2026823,202105
Rother District Council,09/04/2021,091HOUSING,Housing and Community Services,20206,UK Resettlement (Syrians),D2513,Hired and Contracted services,247.13,Lloyds Bank,Hired and contracted services - Syrian Misc,2026822,202105
Rother District Council,09/04/2021,031RESOURCES,Chief Executive & Corporate Core,32132,Joint Waste Contract Client Unit,D1206,Furniture & Fittings,679.17,Lloyds Bank,Furniture & Fittings - Purchase of office equipment,2026825,202105
Rother District Council,09/04/2021,091HOUSING,Housing and Community Services,20145,Maintenance Services,D1201,Equipment & Materials,233.25,Lloyds Bank,Equipment & Materials - Purchase of Tools,2026823,202105
Rother District Council,09/04/2021,031RESOURCES,Chief Executive & Corporate Core,20276,COVID19 RDC expenditure,D1201,Equipment & Materials,119.97,Lloyds Bank,Equipment & materials - Miscellaneous,2026824,202105
Rother District Council,09/04/2021,031RESOURCES,Chief Executive & Corporate Core,20276,COVID19 RDC expenditure,D1201,Equipment & Materials,268.32,Lloyds Bank,Equipment & materials - Miscellaneous,2026824,202105
Rother District Council,09/04/2021,031RESOURCES,Chief Executive & Corporate Core,20276,COVID19 RDC expenditure,D1201,Equipment & Materials,4.95,Lloyds Bank,Equipment & Materials - Carriage/Handling Charge,2026824,202105
Rother District Council,09/04/2021,101RESOURCES,Resources,20239,Computer Services,D2633,Computer Equipment,4.56,Lloyds Bank,Computer Equipment - Computer peripherals,2026821,202106
Rother District Council,09/04/2021,101RESOURCES,Resources,20239,Computer Services,D2633,Computer Equipment,764.00,Lloyds Bank,Computer Equipment - Computer peripherals,2026821,202106
Rother District Council,09/04/2021,101RESOURCES,Resources,20239,Computer Services,D2633,Computer Equipment,11.49,Lloyds Bank,Computer Equipment - Computer peripherals,2026821,202106
Rother District Council,09/04/2021,101RESOURCES,Resources,20239,Computer Services,D2633,Computer Equipment,2.40,Lloyds Bank,Computer Equipment - Computer peripherals,2026821,202106
Rother District Council,09/04/2021,101RESOURCES,Resources,20239,Computer Services,D2633,Computer Equipment,66.88,Lloyds Bank,Computer Equipment - Computer peripherals,2026821,202106
Rother District Council,09/04/2021,101RESOURCES,Resources,20239,Computer Services,D2633,Computer Equipment,74.16,Lloyds Bank,Computer Equipment - Computer peripherals,2026821,202106
Rother District Council,09/04/2021,101RESOURCES,Resources,20239,Computer Services,D2633,Computer Equipment,41.88,Lloyds Bank,Computer Equipment - Computer peripherals,2026821,202106
Rother District Council,09/04/2021,101RESOURCES,Resources,20239,Computer Services,D2633,Computer Equipment,24.55,Lloyds Bank,Computer Equipment - Computer peripherals,2026821,202106
Rother District Council,09/04/2021,101RESOURCES,Resources,20239,Computer Services,D2633,Computer Equipment,18.51,Lloyds Bank,Computer Equipment - Computer peripherals,2026821,202106
Rother District Council,09/04/2021,101RESOURCES,Resources,20239,Computer Services,D2633,Computer Equipment,34.35,Lloyds Bank,Computer Equipment - Computer peripherals,2026821,202106
Rother District Council,09/04/2021,101RESOURCES,Resources,20239,Computer Services,D2633,Computer Equipment,133.34,Lloyds Bank,Computer Equipment - Computer peripherals,2026821,202106
Rother District Council,09/04/2021,101RESOURCES,Resources,20239,Computer Services,D2633,Computer Equipment,80.25,Lloyds Bank,Computer Equipment - Computer peripherals,2026821,202106
Rother District Council,09/04/2021,081ACQUISIT,"Acquisitions, Transformation and Regeneration",20144,Property Management,D2518,Advertising,37.50,Lloyds Bank,Advertising - ADVERT WEBSITE,2026825,202105
Rother District Council,14/04/2021,041ENVIRON,Environmental Services,32144,EH Environmental Services Admin R + W Partnership,A2203,Training,129.00,Environmental Protection UK,Training,2025851,202104
Rother District Council,14/04/2021,091HOUSING,Housing and Community Services,20128,Public Conveniences,B2422,Sewerage,328.70,Scottish Water Business Stream Limited,Sewerage - Sewerage Charges,2025744,202104
Rother District Council,19/04/2021,031RESOURCES,Chief Executive & Corporate Core,20156,Representing Local Interest,D2513,Hired and Contracted services,262.50,Rambler Coaches Ltd,Hired and contracted services - Coach Hire for Planning Site Visits,2026570,202105
Rother District Council,21/04/2021,091HOUSING,Housing and Community Services,20132,Street & Beach Cleansing,E1101,Third party payment other LAs,"291,577.72",Wealden District Council,Third Party Payment other LAs - Waste core cost,2025804,202104
Rother District Council,21/04/2021,091HOUSING,Housing and Community Services,20133,Refuse Collection,E1101,Third party payment other LAs,"874,733.17",Wealden District Council,Third Party Payment other LAs - Waste core cost,2025804,202104
Rother District Council,21/04/2021,091HOUSING,Housing and Community Services,20107,Camber Beach & Foreshore,D2513,Hired and Contracted services,497.10,Haven Security Ltd,Hired and contracted services - CCTV System Maintenance,2025718,202104
Rother District Council,25/04/2021,101RESOURCES,Resources,20239,Computer Services,D2621,Telephones,267.68,GTT EMEA Ltd,Telephones - Leased Line Rental,2025924,202104
Rother District Council,27/04/2021,041ENVIRON,Environmental Services,20130,Crime and Disorder Initiatives,D2923,Grants made,24.00,The Pelham,Grants made - Crime Prevention Initiative (JAG),2026124,202105
Rother District Council,28/04/2021,999NOREPORT,"Acquisitions, Transformation and Regeneration",70725,Capital - Blackfriars,N1002,Land & Property fees,"1,597.00",Natural England,Land & Property fees Capital-Land and Propty - Fees Etc.,2026237,202104
Rother District Council,30/04/2021,041ENVIRON,Environmental Services,32144,EH Environmental Services Admin R + W Partnership,D2626,Postages,23.52,DSI Billing Services Ltd,Postages - DSI Billing,2026595,202105
Rother District Council,30/04/2021,101RESOURCES,Resources,20239,Computer Services,D2513,Hired and Contracted services,"2,300.00",DSI Billing Services Ltd,Hired and contracted services - DSI Billing Printing,2026595,202105
Rother District Council,01/05/2021,091HOUSING,Housing and Community Services,20102,Rother Museum Services,B1100,Repairs to Premises,369.87,ADT Fire and  Security Plc,Repairs to Premises - Fire Alarm System Maintenance,2026563,202105
Rother District Council,01/05/2021,091HOUSING,Housing and Community Services,20200,Housing Needs - HB (Housing Benefit),D2508,Removals and Storage,99.00,1066 Removal Services,Removals and Storage,2026083,202104
Rother District Council,04/05/2021,091HOUSING,Housing and Community Services,20137,Car Parks,B1100,Repairs to Premises,117.00,Alfa Electric Ltd,Repairs to Premises - Repairs - Electrical Works,2025791,202104
Rother District Council,05/05/2021,091HOUSING,Housing and Community Services,20201,Homelessness and Prevention,D2513,Hired and Contracted services,72.00,Cornwall Council,Hired and contracted services - RDC Homelessness Out Of Hours Call Answering Service,2026021,202104
Rother District Council,05/05/2021,091HOUSING,Housing and Community Services,20201,Homelessness and Prevention,D2513,Hired and Contracted services,252.00,Cornwall Council,Hired and contracted services - RDC Homelessness Out Of Hours Call Answering Service,2026022,202104
Rother District Council,05/05/2021,041ENVIRON,Environmental Services,32134,EH Pollution R + W Partnership,D2513,Hired and Contracted services,35.50,Cornwall Council,Hired and contracted services - RDC ENV H Out Of Hours Call Answering Service,2026021,202104
Rother District Council,05/05/2021,041ENVIRON,Environmental Services,32134,EH Pollution R + W Partnership,D2513,Hired and Contracted services,90.75,Cornwall Council,Hired and contracted services - RDC ENV H Out Of Hours Call Answering Service,2026022,202104
Rother District Council,06/05/2021,021CORP,Corporate Services & Human Resources,20164,Parish Council Elections,D2513,Hired and Contracted services,85.34,St Augustines Hall,Hired and Contracted services,2025890,202104
Rother District Council,06/05/2021,021CORP,Corporate Services & Human Resources,20165,ESCC Elections,D2513,Hired and Contracted services,85.33,St Augustines Hall,Hired and Contracted services,2025890,202104
Rother District Council,06/05/2021,021CORP,Corporate Services & Human Resources,20165,ESCC Elections,D2513,Hired and Contracted services,53.33,Rye Harbour Village Hall,Hired and Contracted services,2025778,202104
Rother District Council,06/05/2021,021CORP,Corporate Services & Human Resources,20168,Police Crime Commissioners,D2513,Hired and Contracted services,85.33,St Augustines Hall,Hired and Contracted services,2025890,202104
Rother District Council,06/05/2021,021CORP,Corporate Services & Human Resources,20168,Police Crime Commissioners,D2513,Hired and Contracted services,53.33,Rye Harbour Village Hall,Hired and Contracted services,2025778,202104
Rother District Council,06/05/2021,031RESOURCES,Chief Executive & Corporate Core,20163,District Council Elections,D2513,Hired and Contracted services,53.34,Rye Harbour Village Hall,Hired and Contracted services,2025778,202104
Rother District Council,12/05/2021,999NOREPORT,Housing and Community Services,70744,Capital - 1066 Walk Pathways,N1009,Furniture & Fittings,"9,605.00",The Sussex Sign Company Limited,Furniture and Fittings (Capital spend),2027445,202106
Rother District Council,13/05/2021,091HOUSING,Housing and Community Services,20137,Car Parks,B2422,Sewerage,34.80,Scottish Water Business Stream Limited,Sewerage - Sewerage Charges,2026198,202104
Rother District Council,14/05/2021,101RESOURCES,Resources,20239,Computer Services,D2633,Computer Equipment,"1,165.00",Apple Retail UK Ltd,Computer Equipment - New - Computer Hardware,2025440,202104
Rother District Council,15/05/2021,101RESOURCES,Resources,20242,Communications-Phones,D2621,Telephones,622.00,TalkTalk Communications Ltd T/A TalkTalk Business,Telephones - Telephone Call Costs+Line Rental,2025439,202104
Rother District Council,18/05/2021,031RESOURCES,Chief Executive & Corporate Core,20175,Administrative Offices - T.H. Annex (NOT CHP),B1100,Repairs to Premises,465.00,REDACTED PERSONAL DATA,Consultants and other services - Consultants Fees,2026132,202104
Rother District Council,18/05/2021,081ACQUISIT,"Acquisitions, Transformation and Regeneration",20268,Property Investment Strategy � Glovers Farm sites,B2422,Sewerage,790.00,Sea Change Sussex,Sewerage,2025012,202105
Rother District Council,19/05/2021,101RESOURCES,Resources,20242,Communications-Phones,D2621,Telephones,250.00,O2 (UK) Ltd,Mobile Phones - Mobile Call Costs and Line Rental,2025068,202104
Rother District Council,19/05/2021,031RESOURCES,Chief Executive & Corporate Core,20156,Representing Local Interest,D2513,Hired and Contracted services,262.50,Rambler Coaches Ltd,Hired and contracted services - Coach Hire for Planning Site Visits,2026571,202105
Rother District Council,20/05/2021,091HOUSING,Housing and Community Services,20261,"TA Purchases (prev - 41 Jameson Mews, Bexhill on Sea)",B2201,Electricity,550.24,Bulb Energy Ltd,Gas - Gas Charges,2026376,202105
Rother District Council,20/05/2021,091HOUSING,Housing and Community Services,20261,"TA Purchases (prev - 41 Jameson Mews, Bexhill on Sea)",B2201,Electricity,126.32,Bulb Energy Ltd,Electricity - Electricity Charges,2026376,202105
Rother District Council,21/05/2021,031RESOURCES,Chief Executive & Corporate Core,20159,Corporate Policy Making,D2509,Consultants and Other Services,125.00,Surrey Hills Solicitors,Consultants and other services - Consultants Fees,2026118,202104
Rother District Council,22/05/2021,091HOUSING,Housing and Community Services,20108,Bexhill Promenade & Foreshore,D1201,Equipment & Materials,711.43,REDACTED PERSONAL DATA,Equipment & Materials - Maintenance of Boat,2026125,202104
Rother District Council,24/05/2021,091HOUSING,Housing and Community Services,20261,"TA Purchases (prev - 41 Jameson Mews, Bexhill on Sea)",B2202,Gas,22.54,Bulb Energy Ltd,Gas - Gas Charges,2026378,202105
Rother District Council,24/05/2021,091HOUSING,Housing and Community Services,20261,"TA Purchases (prev - 41 Jameson Mews, Bexhill on Sea)",B2201,Electricity,24.31,Bulb Energy Ltd,Electricity - Electricity Charges,2026378,202105
Rother District Council,25/05/2021,101RESOURCES,Resources,20239,Computer Services,D2621,Telephones,267.68,GTT EMEA Ltd,Telephones - Leased Line Rental,2025037,202104
Rother District Council,25/05/2021,091HOUSING,Housing and Community Services,20261,"TA Purchases (prev - 41 Jameson Mews, Bexhill on Sea)",B2202,Gas,38.40,Bulb Energy Ltd,Gas - Gas Charges,2026377,202105
Rother District Council,25/05/2021,031RESOURCES,Chief Executive & Corporate Core,20173,Administrative Offices - Town Hall,B2201,Electricity,"1,937.13",Laser Energy Buying Group (Kent County Council Commercial Services),Electricity - Electricity Charges,2026590,202105
Rother District Council,25/05/2021,031RESOURCES,Chief Executive & Corporate Core,20177,Administrative Offices - Rear Depot,B2201,Electricity,34.74,Laser Energy Buying Group (Kent County Council Commercial Services),Electricity - Electricity Charges,2026590,202105
Rother District Council,25/05/2021,081ACQUISIT,"Acquisitions, Transformation and Regeneration",20151,Udimore Workshops,B2201,Electricity,28.14,Laser Energy Buying Group (Kent County Council Commercial Services),Electricity - Electricity Charges,2026590,202105
Rother District Council,25/05/2021,081ACQUISIT,"Acquisitions, Transformation and Regeneration",20154,Committee Property Account,B2201,Electricity,14.36,Laser Energy Buying Group (Kent County Council Commercial Services),Electricity - Electricity Charges,2026590,202105
Rother District Council,25/05/2021,081ACQUISIT,"Acquisitions, Transformation and Regeneration",20154,Committee Property Account,B2201,Electricity,14.35,Laser Energy Buying Group (Kent County Council Commercial Services),Electricity - Electricity Charges,2026590,202105
Rother District Council,25/05/2021,081ACQUISIT,"Acquisitions, Transformation and Regeneration",20150,Peasmarsh Workshops,B2201,Electricity,27.82,Laser Energy Buying Group (Kent County Council Commercial Services),Electricity - Electricity Charges,2026590,202105
Rother District Council,25/05/2021,081ACQUISIT,"Acquisitions, Transformation and Regeneration",20155,Investment properties,B2201,Electricity,33.11,Laser Energy Buying Group (Kent County Council Commercial Services),Electricity - Electricity Charges,2026590,202105
Rother District Council,25/05/2021,081ACQUISIT,"Acquisitions, Transformation and Regeneration",20154,Committee Property Account,B2201,Electricity,14.35,Laser Energy Buying Group (Kent County Council Commercial Services),Electricity - Electricity Charges,2026590,202105
Rother District Council,25/05/2021,081ACQUISIT,"Acquisitions, Transformation and Regeneration",20154,Committee Property Account,B2201,Electricity,273.42,Laser Energy Buying Group (Kent County Council Commercial Services),Electricity - Electricity Charges,2026590,202105
Rother District Council,25/05/2021,091HOUSING,Housing and Community Services,20108,Bexhill Promenade & Foreshore,B2201,Electricity,28.17,Laser Energy Buying Group (Kent County Council Commercial Services),Electricity - Electricity Charges,2026590,202105
Rother District Council,25/05/2021,091HOUSING,Housing and Community Services,20108,Bexhill Promenade & Foreshore,B2201,Electricity,30.57,Laser Energy Buying Group (Kent County Council Commercial Services),Electricity - Electricity Charges,2026590,202105
Rother District Council,25/05/2021,091HOUSING,Housing and Community Services,20107,Camber Beach & Foreshore,B2201,Electricity,95.51,Laser Energy Buying Group (Kent County Council Commercial Services),Electricity - Electricity Charges,2026590,202105
Rother District Council,25/05/2021,091HOUSING,Housing and Community Services,20123,Cemeteries,B2201,Electricity,67.60,Laser Energy Buying Group (Kent County Council Commercial Services),Electricity - Electricity Charges,2026590,202105
Rother District Council,25/05/2021,091HOUSING,Housing and Community Services,20128,Public Conveniences,B2201,Electricity,46.15,Laser Energy Buying Group (Kent County Council Commercial Services),Electricity - Electricity Charges,2026590,202105
Rother District Council,25/05/2021,091HOUSING,Housing and Community Services,20128,Public Conveniences,B2201,Electricity,89.46,Laser Energy Buying Group (Kent County Council Commercial Services),Electricity - Electricity Charges,2026590,202105
Rother District Council,25/05/2021,091HOUSING,Housing and Community Services,20128,Public Conveniences,B2201,Electricity,5.88,Laser Energy Buying Group (Kent County Council Commercial Services),Electricity - Electricity Charges,2026590,202105
Rother District Council,25/05/2021,091HOUSING,Housing and Community Services,20128,Public Conveniences,B2201,Electricity,33.36,Laser Energy Buying Group (Kent County Council Commercial Services),Electricity - Electricity Charges,2026590,202105
Rother District Council,25/05/2021,091HOUSING,Housing and Community Services,20128,Public Conveniences,B2201,Electricity,30.06,Laser Energy Buying Group (Kent County Council Commercial Services),Electricity - Electricity Charges,2026590,202105
Rother District Council,25/05/2021,091HOUSING,Housing and Community Services,20114,Bexhill Parks & Open Spaces,B2201,Electricity,30.89,Laser Energy Buying Group (Kent County Council Commercial Services),Electricity - Electricity Charges,2026590,202105
Rother District Council,25/05/2021,091HOUSING,Housing and Community Services,20114,Bexhill Parks & Open Spaces,B2201,Electricity,23.50,Laser Energy Buying Group (Kent County Council Commercial Services),Electricity - Electricity Charges,2026590,202105
Rother District Council,25/05/2021,091HOUSING,Housing and Community Services,20114,Bexhill Parks & Open Spaces,B2201,Electricity,27.96,Laser Energy Buying Group (Kent County Council Commercial Services),Electricity - Electricity Charges,2026590,202105
Rother District Council,25/05/2021,091HOUSING,Housing and Community Services,20128,Public Conveniences,B2201,Electricity,57.78,Laser Energy Buying Group (Kent County Council Commercial Services),Electricity - Electricity Charges,2026590,202105
Rother District Council,25/05/2021,091HOUSING,Housing and Community Services,20128,Public Conveniences,B2201,Electricity,60.59,Laser Energy Buying Group (Kent County Council Commercial Services),Electricity - Electricity Charges,2026590,202105
Rother District Council,25/05/2021,091HOUSING,Housing and Community Services,20128,Public Conveniences,B2201,Electricity,33.11,Laser Energy Buying Group (Kent County Council Commercial Services),Electricity - Electricity Charges,2026590,202105
Rother District Council,25/05/2021,091HOUSING,Housing and Community Services,20128,Public Conveniences,B2201,Electricity,72.69,Laser Energy Buying Group (Kent County Council Commercial Services),Electricity - Electricity Charges,2026590,202105
Rother District Council,25/05/2021,091HOUSING,Housing and Community Services,20128,Public Conveniences,B2201,Electricity,194.26,Laser Energy Buying Group (Kent County Council Commercial Services),Electricity - Electricity Charges,2026590,202105
Rother District Council,25/05/2021,091HOUSING,Housing and Community Services,20128,Public Conveniences,B2201,Electricity,52.34,Laser Energy Buying Group (Kent County Council Commercial Services),Electricity - Electricity Charges,2026590,202105
Rother District Council,25/05/2021,091HOUSING,Housing and Community Services,20128,Public Conveniences,B2201,Electricity,28.28,Laser Energy Buying Group (Kent County Council Commercial Services),Electricity - Electricity Charges,2026590,202105
Rother District Council,25/05/2021,091HOUSING,Housing and Community Services,20128,Public Conveniences,B2201,Electricity,104.70,Laser Energy Buying Group (Kent County Council Commercial Services),Electricity - Electricity Charges,2026590,202105
Rother District Council,25/05/2021,091HOUSING,Housing and Community Services,20128,Public Conveniences,B2201,Electricity,29.93,Laser Energy Buying Group (Kent County Council Commercial Services),Electricity - Electricity Charges,2026590,202105
Rother District Council,25/05/2021,091HOUSING,Housing and Community Services,20128,Public Conveniences,B2201,Electricity,30.61,Laser Energy Buying Group (Kent County Council Commercial Services),Electricity - Electricity Charges,2026590,202105
Rother District Council,25/05/2021,091HOUSING,Housing and Community Services,20128,Public Conveniences,B2201,Electricity,87.68,Laser Energy Buying Group (Kent County Council Commercial Services),Electricity - Electricity Charges,2026590,202105
Rother District Council,25/05/2021,091HOUSING,Housing and Community Services,20128,Public Conveniences,B2201,Electricity,33.36,Laser Energy Buying Group (Kent County Council Commercial Services),Electricity - Electricity Charges,2026590,202105
Rother District Council,25/05/2021,091HOUSING,Housing and Community Services,20107,Camber Beach & Foreshore,B2201,Electricity,113.80,Laser Energy Buying Group (Kent County Council Commercial Services),Electricity - Electricity Charges,2026590,202105
Rother District Council,25/05/2021,091HOUSING,Housing and Community Services,20108,Bexhill Promenade & Foreshore,B2201,Electricity,14.36,Laser Energy Buying Group (Kent County Council Commercial Services),Electricity - Electricity Charges,2026590,202105
Rother District Council,25/05/2021,091HOUSING,Housing and Community Services,20128,Public Conveniences,B2201,Electricity,27.86,Laser Energy Buying Group (Kent County Council Commercial Services),Electricity - Electricity Charges,2026590,202105
Rother District Council,25/05/2021,091HOUSING,Housing and Community Services,20137,Car Parks,B2201,Electricity,34.19,Laser Energy Buying Group (Kent County Council Commercial Services),Electricity - Electricity Charges,2026590,202105
Rother District Council,25/05/2021,091HOUSING,Housing and Community Services,20137,Car Parks,B2201,Electricity,73.93,Laser Energy Buying Group (Kent County Council Commercial Services),Electricity - Electricity Charges,2026590,202105
Rother District Council,25/05/2021,091HOUSING,Housing and Community Services,20261,"TA Purchases (prev - 41 Jameson Mews, Bexhill on Sea)",B2201,Electricity,39.79,Bulb Energy Ltd,Electricity - Electricity Charges,2026377,202105
Rother District Council,26/05/2021,081ACQUISIT,"Acquisitions, Transformation and Regeneration",20154,Committee Property Account,B1100,Repairs to Premises,69.21,Alfa Electric Ltd,Repairs to Premises - Repairs - Electrical Works,2026946,202105
Rother District Council,27/05/2021,101RESOURCES,Resources,20242,Communications-Phones,D2621,Telephones,307.32,BT British Telecommunications plc,Telephones - BT-Rental-General,2025306,202104
Rother District Council,27/05/2021,091HOUSING,Housing and Community Services,20137,Car Parks,B1100,Repairs to Premises,"3,882.36",East Sussex County Council,Repairs to Premises - Car Park Maintenance,2025036,202105
Rother District Council,27/05/2021,999NOREPORT,"Acquisitions, Transformation and Regeneration",70725,Capital - Blackfriars,D2513,Hired and Contracted services,"8,750.00",Bevan Brittan LLP,Hired and contracted services - Legal Advice,2025921,202104
Rother District Council,27/05/2021,999NOREPORT,"Acquisitions, Transformation and Regeneration",70725,Capital - Blackfriars,D2513,Hired and Contracted services,"1,243.00",Bevan Brittan LLP,Hired and contracted services - Legal Advice,2025930,202104
Rother District Council,28/05/2021,101RESOURCES,Resources,20216,Cost Of Collection,D2513,Hired and Contracted services,"1,400.80",DSI Billing Services Ltd,Hired and contracted services - DSI Billing Printing,2025256,202104
Rother District Council,28/05/2021,021CORP,Corporate Services & Human Resources,20165,ESCC Elections,D2513,Hired and Contracted services,225.00,Netherfield Village Hall & Playing Field,Hired and Contracted services,2025748,202104
Rother District Council,28/05/2021,021CORP,Corporate Services & Human Resources,20168,Police Crime Commissioners,D2513,Hired and Contracted services,225.00,Netherfield Village Hall & Playing Field,Hired and Contracted services,2025748,202104
Rother District Council,31/05/2021,091HOUSING,Housing and Community Services,20200,Housing Needs - HB (Housing Benefit),D2513,Hired and Contracted services,85.00,Town Taxis,Hired and contracted services - BandB Taxi/Travel Costs,2026850,202106
Rother District Council,31/05/2021,101RESOURCES,Resources,20209,Corporate management,D2513,Hired and Contracted services,"1,066.19",allpay.net Ltd,Hired and contracted services - Allpay Card/Rep/Let Chrg - Vatable,2025795,202104
Rother District Council,31/05/2021,101RESOURCES,Resources,20209,Corporate management,D2513,Hired and Contracted services,17.07,allpay.net Ltd,Hired and contracted services - Allpay Card/Rep/Let Chrg - Vatable,2025796,202104
Rother District Council,31/05/2021,101RESOURCES,Resources,20209,Corporate management,D2513,Hired and Contracted services,11.44,allpay.net Ltd,Hired and contracted services - Allpay Card/Rep/Let Chrg - Vatable,2025797,202104
Rother District Council,31/05/2021,101RESOURCES,Resources,20209,Corporate management,D2513,Hired and Contracted services,20.52,allpay.net Ltd,Hired and contracted services - Allpay Card/Rep/Let Chrg - Vatable,2025798,202104
Rother District Council,31/05/2021,041ENVIRON,Environmental Services,32136,EH Pest Control R + W Partnership,C1104,Derv,1.90,Allstar Business Solutions,Derv - Fuel Service fee payable on fuel cards,2025799,202104
Rother District Council,31/05/2021,091HOUSING,Housing and Community Services,20107,Camber Beach & Foreshore,C1104,Derv,1.90,Allstar Business Solutions,Derv - Fuel Service fee payable on fuel cards,2025799,202104
Rother District Council,31/05/2021,091HOUSING,Housing and Community Services,20145,Maintenance Services,C1104,Derv,1.90,Allstar Business Solutions,Derv - Fuel Service fee payable on fuel cards,2025799,202104
Rother District Council,31/05/2021,031RESOURCES,Chief Executive & Corporate Core,20159,Corporate Policy Making,D2509,Consultants and Other Services,"16,575.00",IESE Transformation Ltd,Consultants and other services - Consultants Fees,2026090,202104
Rother District Council,31/05/2021,041ENVIRON,Environmental Services,32136,EH Pest Control R + W Partnership,C1104,Derv,50.58,Allstar Business Solutions,Derv,2025799,202104
Rother District Council,31/05/2021,091HOUSING,Housing and Community Services,20107,Camber Beach & Foreshore,C1104,Derv,58.61,Allstar Business Solutions,Derv,2025799,202104
Rother District Council,31/05/2021,091HOUSING,Housing and Community Services,20145,Maintenance Services,C1104,Derv,60.00,Allstar Business Solutions,Derv,2025799,202104
Rother District Council,31/05/2021,091HOUSING,Housing and Community Services,20145,Maintenance Services,C1104,Derv,44.10,Allstar Business Solutions,Derv,2025799,202104
Rother District Council,31/05/2021,091HOUSING,Housing and Community Services,20145,Maintenance Services,C1104,Derv,75.25,Allstar Business Solutions,Derv,2025799,202104
Rother District Council,31/05/2021,091HOUSING,Housing and Community Services,20145,Maintenance Services,C1104,Derv,16.67,Allstar Business Solutions,Derv,2025799,202104
Rother District Council,01/06/2021,101RESOURCES,Resources,20242,Communications-Phones,D2621,Telephones,26.00,KCOM Group Plc,Telephones - KCOM Smartnumber Charges,2025262,202104
Rother District Council,01/06/2021,041ENVIRON,Environmental Services,32134,EH Pollution R + W Partnership,D1201,Equipment & Materials,199.50,We Care 4 Air Ltd,Equipment & Materials - EnvH- Air Quality Maintenance Contr,2026295,202104
Rother District Council,01/06/2021,031RESOURCES,Chief Executive & Corporate Core,20180,Emergency Planning,D2621,Telephones,15.82,Daisy Communications PLC,Telephones,2025235,202104
Rother District Council,01/06/2021,041ENVIRON,Environmental Services,32134,EH Pollution R + W Partnership,D2621,Telephones,15.82,Daisy Communications PLC,Telephones,2025235,202104
Rother District Council,01/06/2021,091HOUSING,Housing and Community Services,20107,Camber Beach & Foreshore,D2621,Telephones,34.41,Daisy Communications PLC,Telephones,2025235,202104
Rother District Council,01/06/2021,091HOUSING,Housing and Community Services,20102,Rother Museum Services,D2621,Telephones,15.82,Daisy Communications PLC,Telephones,2025235,202104
Rother District Council,01/06/2021,091HOUSING,Housing and Community Services,20200,Housing Needs - HB (Housing Benefit),D2508,Removals and Storage,135.00,1066 Removal Services,Removals and Storage,2026085,202104
Rother District Council,01/06/2021,101RESOURCES,Resources,20242,Communications-Phones,D2621,Telephones,79.80,Daisy Communications PLC,Telephones,2025235,202104
Rother District Council,01/06/2021,101RESOURCES,Resources,20239,Computer Services,D2621,Telephones,31.64,Daisy Communications PLC,Telephones,2025235,202104
Rother District Council,02/06/2021,101RESOURCES,Resources,20242,Communications-Phones,D2621,Telephones,30.35,TalkTalk Communications Ltd T/A TalkTalk Business,Telephones - Telephone Call Costs+Line Rental,2026515,202105
Rother District Council,02/06/2021,081ACQUISIT,"Acquisitions, Transformation and Regeneration",20153,"Elva Business Centre, Bexhill",B1100,Repairs to Premises,500.00,Black Sheep Engineering Ltd,Repairs to Premises - Fire Alarm System Maintenance,2026614,202105
Rother District Council,02/06/2021,101RESOURCES,Resources,20209,Corporate management,D2513,Hired and Contracted services,267.61,Capita Business Services Ltd,Bank Charges,2025801,202104
Rother District Council,04/06/2021,101RESOURCES,Resources,20242,Communications-Phones,D2621,Telephones,5.20,KCOM Group Plc,Telephones - KCOM Smartnumber Charges,2025263,202104
Rother District Council,04/06/2021,081ACQUISIT,"Acquisitions, Transformation and Regeneration",20144,Property Management,B1100,Repairs to Premises,450.00,REDACTED PERSONAL DATA,Repairs to Premises - Energy Performance Certificate,2026078,202104
Rother District Council,04/06/2021,091HOUSING,Housing and Community Services,20128,Public Conveniences,B2611,Contract cleaning,-2.87,Specialist Hygiene Services Ltd,Contract cleaning - Public Conveniences Cleaning Servic,2025363,202104
Rother District Council,04/06/2021,091HOUSING,Housing and Community Services,20128,Public Conveniences,D2513,Hired and Contracted services,-155.46,Specialist Hygiene Services Ltd,Hired and Contracted services,2025363,202104
Rother District Council,04/06/2021,091HOUSING,Housing and Community Services,20128,Public Conveniences,D2513,Hired and Contracted services,-5.02,Specialist Hygiene Services Ltd,Hired and Contracted services,2025363,202104
Rother District Council,07/06/2021,101RESOURCES,Resources,20209,Corporate management,D2513,Hired and Contracted services,63.09,Lloyds Bank,Bank Charges,2025808,202104
Rother District Council,07/06/2021,101RESOURCES,Resources,20209,Corporate management,D2513,Hired and Contracted services,80.00,Lloyds Bank,Bank Charges,2025810,202104
Rother District Council,08/06/2021,031RESOURCES,Chief Executive & Corporate Core,20173,Administrative Offices - Town Hall,B2202,Gas,919.35,Laser Energy Buying Group (Kent County Council Commercial Services),Gas - Gas Charges,2026388,202105
Rother District Council,08/06/2021,031RESOURCES,Chief Executive & Corporate Core,20175,Administrative Offices - T.H. Annex (NOT CHP),B2202,Gas,309.52,Laser Energy Buying Group (Kent County Council Commercial Services),Gas - Gas Charges,2026388,202105
Rother District Council,08/06/2021,031RESOURCES,Chief Executive & Corporate Core,20176,Administrative Offices - Print Room,B2202,Gas,84.87,Laser Energy Buying Group (Kent County Council Commercial Services),Gas - Gas Charges,2026388,202105
Rother District Council,09/06/2021,101RESOURCES,Resources,20242,Communications-Phones,D2621,Telephones,67.50,TalkTalk Communications Ltd T/A TalkTalk Business,Telephones - Telephone Call Costs+Line Rental,2026516,202105
Rother District Council,10/06/2021,101RESOURCES,Resources,20242,Communications-Phones,D2621,Telephones,691.02,BT British Telecommunications plc,Telephones - BT-Rental-General,2025643,202104
Rother District Council,10/06/2021,091HOUSING,Housing and Community Services,20261,"TA Purchases (prev - 41 Jameson Mews, Bexhill on Sea)",D2513,Hired and Contracted services,"89,051.62",George Stone Ltd,Hired and contracted services - Service fee paid,2026202,202104
Rother District Council,10/06/2021,101RESOURCES,Resources,20209,Corporate management,D2513,Hired and Contracted services,270.90,Lloyds Bank,Bank Charges,2025807,202104
Rother District Council,10/06/2021,101RESOURCES,Resources,20209,Corporate management,D2513,Hired and Contracted services,638.51,Lloyds Bank,Bank Charges,2025809,202104
Rother District Council,10/06/2021,101RESOURCES,Resources,20209,Corporate management,D2513,Hired and Contracted services,40.82,Lloyds Bank,Bank Charges,2027487,202106
Rother District Council,11/06/2021,081ACQUISIT,"Acquisitions, Transformation and Regeneration",20146,West Trading Estate,B2202,Gas,173.96,British Gas Business (600 Accounts only),Gas - Gas Charges,2026466,202105
Rother District Council,13/06/2021,071STRAT,Strategy and Planning,20245,Planning Business Support,D2622,Mobile Phones,55.00,O2 (UK) Ltd,Mobile Phones,2026510,202105
Rother District Council,13/06/2021,101RESOURCES,Resources,20242,Communications-Phones,D2622,Mobile Phones,110.00,O2 (UK) Ltd,Mobile Phones,2026506,202105
Rother District Council,13/06/2021,101RESOURCES,Resources,20242,Communications-Phones,D2622,Mobile Phones,112.39,O2 (UK) Ltd,Mobile Phones,2026507,202105
Rother District Council,13/06/2021,101RESOURCES,Resources,20242,Communications-Phones,D2622,Mobile Phones,222.30,O2 (UK) Ltd,Mobile Phones,2026508,202105
Rother District Council,13/06/2021,101RESOURCES,Resources,20242,Communications-Phones,D2622,Mobile Phones,539.23,O2 (UK) Ltd,Mobile Phones,2026509,202105
Rother District Council,13/06/2021,101RESOURCES,Resources,20242,Communications-Phones,D2622,Mobile Phones,612.60,O2 (UK) Ltd,Mobile Phones,2026511,202105
Rother District Council,14/06/2021,091HOUSING,Housing and Community Services,20102,Rother Museum Services,B1100,Repairs to Premises,912.00,CountyClean Environmental Services Ltd,Repairs to Premises - Pumps Maintenance/ Repairs,2026332,202105
Rother District Council,15/06/2021,041ENVIRON,Environmental Services,20130,Crime and Disorder Initiatives,D2513,Hired and Contracted services,150.00,JS Wadeson Cleaning Services Ltd,Hired and contracted services - Service fee paid,2026314,202105
Rother District Council,15/06/2021,091HOUSING,Housing and Community Services,20261,"TA Purchases (prev - 41 Jameson Mews, Bexhill on Sea)",B2202,Gas,127.88,British Gas Business (600 Accounts only),Gas - Gas Charges,2025931,202104
Rother District Council,15/06/2021,091HOUSING,Housing and Community Services,20261,"TA Purchases (prev - 41 Jameson Mews, Bexhill on Sea)",B2202,Gas,82.49,British Gas Business (600 Accounts only),Gas - Gas Charges,2025933,202104
Rother District Council,15/06/2021,041ENVIRON,Environmental Services,32136,EH Pest Control R + W Partnership,C1104,Derv,3.80,Allstar Business Solutions,Derv - Fuel Service fee payable on fuel cards,2026517,202105
Rother District Council,15/06/2021,041ENVIRON,Environmental Services,32136,EH Pest Control R + W Partnership,C1104,Derv,48.98,Allstar Business Solutions,Derv,2026517,202105
Rother District Council,15/06/2021,041ENVIRON,Environmental Services,32136,EH Pest Control R + W Partnership,C1104,Derv,45.14,Allstar Business Solutions,Derv,2026517,202105
Rother District Council,15/06/2021,091HOUSING,Housing and Community Services,20261,"TA Purchases (prev - 41 Jameson Mews, Bexhill on Sea)",D2513,Hired and Contracted services,850.00,Meridian Surveyors,Hired and Contracted services,2025459,202104
Rother District Council,15/06/2021,091HOUSING,Housing and Community Services,20145,Maintenance Services,C1104,Derv,66.67,Allstar Business Solutions,Derv,2026517,202105
Rother District Council,16/06/2021,091HOUSING,Housing and Community Services,20107,Camber Beach & Foreshore,D2513,Hired and Contracted services,"59,387.46",RNLI Royal National Lifeboat Institution,Hired and contracted services - Service fee paid,2026921,202105
Rother District Council,16/06/2021,091HOUSING,Housing and Community Services,20145,Maintenance Services,D1201,Equipment & Materials,"1,453.40",First Fence Ltd,Equipment & Materials - Purchase of Tools,2026172,202104
Rother District Council,16/06/2021,071STRAT,Strategy and Planning,20249,Planning Appeals,D2509,Consultants and Other Services,"26,143.50",Ardent Consulting Engineers Ltd,Consultants and other services - Consultants Fees,2025468,202104
Rother District Council,17/06/2021,091HOUSING,Housing and Community Services,20137,Car Parks,B1100,Repairs to Premises,81.50,Saint-Gobain Building Distribution Ltd t/a Jewson,Repairs to Premises - Purchase of Materials - Build Maint,2026100,202104
Rother District Council,17/06/2021,031RESOURCES,Chief Executive & Corporate Core,20276,COVID19 RDC expenditure,D2639,Departmental Systems,"9,220.00",Ascendant Solutions Limited,Departmental Systems - Covid 19 Changes to departmental systems,2025844,202104
Rother District Council,17/06/2021,091HOUSING,Housing and Community Services,20261,"TA Purchases (prev - 41 Jameson Mews, Bexhill on Sea)",D2513,Hired and Contracted services,"13,544.86",REDACTED PERSONAL DATA,Hired and Contracted services,2026131,202105
Rother District Council,18/06/2021,091HOUSING,Housing and Community Services,20108,Bexhill Promenade & Foreshore,B1100,Repairs to Premises,23.70,Saint-Gobain Building Distribution Ltd t/a Jewson,Repairs to Premises - Purchase of Materials - Build Maint,2026101,202104
Rother District Council,18/06/2021,101RESOURCES,Resources,20216,Cost Of Collection,D2626,Postages,564.79,DSI Billing Services Ltd,Postages - DSI Billing,2025740,202104
Rother District Council,18/06/2021,091HOUSING,Housing and Community Services,20123,Cemeteries,D2513,Hired and Contracted services,45.00,REDACTED PERSONAL DATA,Hired and contracted services - Parks-Artist Services for Book Reme,2026063,202104
Rother District Council,18/06/2021,071STRAT,Strategy and Planning,20246,Planning Applications,D2513,Hired and Contracted services,9.00,H M Land Registry,Hired and contracted services - Land Registry-Planning,2025805,202104
Rother District Council,18/06/2021,071STRAT,Strategy and Planning,20258,BC Dangerous Structures H+R Partnership,D2513,Hired and Contracted services,6.00,H M Land Registry,Hired and contracted services - Env H-Land Registry,2025805,202104
Rother District Council,18/06/2021,041ENVIRON,Environmental Services,32144,EH Environmental Services Admin R + W Partnership,D2513,Hired and Contracted services,9.00,H M Land Registry,Hired and contracted services - Env H-Land Registry,2025805,202104
Rother District Council,18/06/2021,041ENVIRON,Environmental Services,32134,EH Pollution R + W Partnership,D2513,Hired and Contracted services,6.00,H M Land Registry,Hired and contracted services - Env H-Land Registry,2025805,202104
Rother District Council,18/06/2021,101RESOURCES,Resources,20216,Cost Of Collection,D2513,Hired and Contracted services,6.00,H M Land Registry,Hired and contracted services - Council Tax-Land Registry Enquiries,2025805,202104
Rother District Council,18/06/2021,081ACQUISIT,"Acquisitions, Transformation and Regeneration",20267,Property Investment Strategy - 18-40 Beeching Road ( Land and Buildings),B2202,Gas,49.29,Gazprom Marketing & Trading Retail Ltd,Gas - Gas Charges,2025751,202104
Rother District Council,18/06/2021,081ACQUISIT,"Acquisitions, Transformation and Regeneration",20266,Property Investment Strategy,B2202,Gas,49.29,Gazprom Marketing & Trading Retail Ltd,Gas - Gas Charges,2025752,202104
Rother District Council,18/06/2021,081ACQUISIT,"Acquisitions, Transformation and Regeneration",20268,Property Investment Strategy � Glovers Farm sites,B2422,Sewerage,79.50,Sea Change Sussex,Sewerage,2025638,202105
Rother District Council,21/06/2021,091HOUSING,Housing and Community Services,20304,Housing First,B1100,Repairs to Premises,185.00,Jamie Ballan Associates Ltd,Repairs to Premises - Specified Repairs and Works listed,2026876,202105
Rother District Council,21/06/2021,031RESOURCES,Chief Executive & Corporate Core,20173,Administrative Offices - Town Hall,B1100,Repairs to Premises,275.00,B and G Environmental Services Limited,Repairs to Premises - Drainage Clearance,2025787,202104
Rother District Council,21/06/2021,031RESOURCES,Chief Executive & Corporate Core,20162,Electoral Registration,D2626,Postages,4.96,Royal Mail Group Ltd,Postages - Response Service-Royal Mail Chg,2025891,202104
Rother District Council,21/06/2021,091HOUSING,Housing and Community Services,20304,Housing First,D2513,Hired and Contracted services,119.25,Lets 2 Share Limited,Hired and contracted services - Service fee paid,2025503,202104
Rother District Council,21/06/2021,021CORP,Corporate Services & Human Resources,20164,Parish Council Elections,D2513,Hired and Contracted services,964.28,1066 Removal Services,Hired and Contracted services,2025652,202104
Rother District Council,21/06/2021,021CORP,Corporate Services & Human Resources,20165,ESCC Elections,D2513,Hired and Contracted services,"2,839.28",1066 Removal Services,Hired and Contracted services,2025652,202104
Rother District Council,21/06/2021,021CORP,Corporate Services & Human Resources,20168,Police Crime Commissioners,D2513,Hired and Contracted services,"3,407.14",1066 Removal Services,Hired and Contracted services,2025652,202104
Rother District Council,21/06/2021,031RESOURCES,Chief Executive & Corporate Core,20163,District Council Elections,D2513,Hired and Contracted services,107.16,1066 Removal Services,Hired and Contracted services,2025652,202104
Rother District Council,21/06/2021,091HOUSING,Housing and Community Services,20304,Housing First,B2202,Gas,10.00,Lets 2 Share Limited,Gas,2025502,202104
Rother District Council,21/06/2021,091HOUSING,Housing and Community Services,20304,Housing First,B2202,Gas,10.00,Lets 2 Share Limited,Gas,2025502,202104
Rother District Council,21/06/2021,091HOUSING,Housing and Community Services,20304,Housing First,D2513,Hired and Contracted services,119.25,Lets 2 Share Limited,Hired and Contracted services,2025502,202104
Rother District Council,22/06/2021,091HOUSING,Housing and Community Services,20108,Bexhill Promenade & Foreshore,B1100,Repairs to Premises,32.94,Saint-Gobain Building Distribution Ltd t/a Jewson,Repairs to Premises - Purchase of Materials - Build Maint,2026098,202104
Rother District Council,22/06/2021,101RESOURCES,Resources,20216,Cost Of Collection,D2626,Postages,704.83,DSI Billing Services Ltd,Postages - DSI Billing,2025741,202104
Rother District Council,22/06/2021,091HOUSING,Housing and Community Services,20304,Housing First,D2513,Hired and Contracted services,136.00,Titanium Facilities Management,Hired and contracted services - Service fee paid,2025909,202104
Rother District Council,22/06/2021,091HOUSING,Housing and Community Services,20108,Bexhill Promenade & Foreshore,D1201,Equipment & Materials,941.66,GMM Sales Ltd,Equipment & Materials - First Aid Equipment,2025747,202104
Rother District Council,22/06/2021,101RESOURCES,Resources,20239,Computer Services,D2635,Computer Licences,250.00,Landmark Information Group Ltd,Computer Licences - GIS System,2025648,202104
Rother District Council,22/06/2021,101RESOURCES,Resources,20209,Corporate management,D2513,Hired and Contracted services,"10,000.00",Wilks Head and Eve LLP,Hired and Contracted services,2026577,202106
Rother District Council,23/06/2021,081ACQUISIT,"Acquisitions, Transformation and Regeneration",20150,Peasmarsh Workshops,B2422,Sewerage,139.62,Scottish Water Business Stream Limited,Sewerage - Sewerage Charges,2025738,202104
Rother District Council,23/06/2021,081ACQUISIT,"Acquisitions, Transformation and Regeneration",20144,Property Management,B1100,Repairs to Premises,600.00,REDACTED PERSONAL DATA,Repairs to Premises - Energy Performance Certificate,2026076,202104
Rother District Council,23/06/2021,091HOUSING,Housing and Community Services,20206,UK Resettlement (Syrians),D2513,Hired and Contracted services,600.00,Mr Reliable Removals and Storage,Hired and contracted services - Syrian Misc,2025895,202104
Rother District Council,23/06/2021,091HOUSING,Housing and Community Services,20206,UK Resettlement (Syrians),D2513,Hired and Contracted services,"1,500.00",RMS Cash Solutions Ltd t/a Pivotal (JADE CLIENT ACCOUNT),Hired and contracted services - Syrian Misc,2025887,202104
Rother District Council,23/06/2021,081ACQUISIT,"Acquisitions, Transformation and Regeneration",20273,Environment Strategy,D2513,Hired and Contracted services,"2,400.00",Treeconomics Ltd,Hired and contracted services - Environment Strategy Consultancy Services,2025661,202104
Rother District Council,23/06/2021,091HOUSING,Housing and Community Services,20128,Public Conveniences,D2513,Hired and Contracted services,109.00,Fuzion 4 Limited,Hired and contracted services - CCTV System Maintenance,2025656,202104
Rother District Council,23/06/2021,091HOUSING,Housing and Community Services,20145,Maintenance Services,D1201,Equipment & Materials,12.50,SBS Consumables,Equipment & Materials - Carriage/Handling Charge,2025789,202104
Rother District Council,23/06/2021,081ACQUISIT,"Acquisitions, Transformation and Regeneration",20144,Property Management,D2518,Advertising,372.99,East Sussex County Council,Advertising - ADVERT WEBSITE,2025665,202104
Rother District Council,24/06/2021,091HOUSING,Housing and Community Services,20128,Public Conveniences,B2421,Water,323.35,Scottish Water Business Stream Limited,Water - Water Charges,2025742,202104
Rother District Council,24/06/2021,091HOUSING,Housing and Community Services,20128,Public Conveniences,B2421,Water,198.18,Scottish Water Business Stream Limited,Water - Water Charges,2025743,202104
Rother District Council,24/06/2021,101RESOURCES,Resources,20239,Computer Services,A2203,Training,"3,840.00",QA Limited,Training,2026067,202104
Rother District Council,24/06/2021,091HOUSING,Housing and Community Services,20128,Public Conveniences,B2422,Sewerage,464.20,Scottish Water Business Stream Limited,Sewerage - Sewerage Charges,2025742,202104
Rother District Council,24/06/2021,091HOUSING,Housing and Community Services,20128,Public Conveniences,B2422,Sewerage,228.15,Scottish Water Business Stream Limited,Sewerage - Sewerage Charges,2025743,202104
Rother District Council,24/06/2021,081ACQUISIT,"Acquisitions, Transformation and Regeneration",20153,"Elva Business Centre, Bexhill",B1100,Repairs to Premises,359.16,Alfa Electric Ltd,Repairs to Premises - Repairs - Electrical Works,2026271,202104
Rother District Council,24/06/2021,091HOUSING,Housing and Community Services,20114,Bexhill Parks & Open Spaces,B1100,Repairs to Premises,53.66,Trade Paints Ltd,Repairs to Premises - Purchase of Materials - Build Maint,2025971,202104
Rother District Council,24/06/2021,091HOUSING,Housing and Community Services,20304,Housing First,D2513,Hired and Contracted services,75.00,A&A Cleaning & Property Services Ltd,Hired and contracted services - Service fee paid,2025995,202104
Rother District Council,24/06/2021,091HOUSING,Housing and Community Services,20304,Housing First,D2513,Hired and Contracted services,120.00,Lets 2 Share Limited,Hired and contracted services - Service fee paid,2025657,202104
Rother District Council,24/06/2021,091HOUSING,Housing and Community Services,20114,Bexhill Parks & Open Spaces,D2513,Hired and Contracted services,"3,906.00",Ashdown Site Investigation Ltd,Hired and contracted services - Parks-Consultants Fees,2025788,202104
Rother District Council,24/06/2021,091HOUSING,Housing and Community Services,20108,Bexhill Promenade & Foreshore,D1201,Equipment & Materials,"1,056.00",Thomas Design & Graphics Ltd,Equipment & Materials - Purchase of Signs,2026043,202104
Rother District Council,24/06/2021,091HOUSING,Housing and Community Services,20304,Housing First,B2201,Electricity,459.87,EDF Energy Customers plc,Electricity - Electricity Charges,2026070,202104
Rother District Council,24/06/2021,101RESOURCES,Resources,20239,Computer Services,D2631,Computer Equip Maintenance,"5,754.00",XMA Limited,Computer Equip Maintenance - Maintenance of Network Equipment,2025867,202104
Rother District Council,24/06/2021,021CORP,Corporate Services & Human Resources,20164,Parish Council Elections,D2415,Printing by external suppliers,"5,558.63",Civica Election Services Ltd,Printing by external suppliers,2025678,202104
Rother District Council,24/06/2021,021CORP,Corporate Services & Human Resources,20164,Parish Council Elections,D2415,Printing by external suppliers,"1,365.87",Civica Election Services Ltd,Printing by external suppliers,2025678,202104
Rother District Council,24/06/2021,021CORP,Corporate Services & Human Resources,20165,ESCC Elections,D2415,Printing by external suppliers,"9,363.47",Civica Election Services Ltd,Printing by external suppliers,2025676,202104
Rother District Council,24/06/2021,021CORP,Corporate Services & Human Resources,20168,Police Crime Commissioners,D2415,Printing by external suppliers,"11,236.16",Civica Election Services Ltd,Printing by external suppliers,2025676,202104
Rother District Council,24/06/2021,031RESOURCES,Chief Executive & Corporate Core,20163,District Council Elections,D2415,Printing by external suppliers,"2,226.76",Civica Election Services Ltd,Printing by external suppliers,2025677,202104
Rother District Council,24/06/2021,031RESOURCES,Chief Executive & Corporate Core,20163,District Council Elections,D2415,Printing by external suppliers,266.91,Civica Election Services Ltd,Printing by external suppliers,2025677,202104
Rother District Council,25/06/2021,031RESOURCES,Chief Executive & Corporate Core,20171,Human Resources,A2203,Training,818.10,Croner Group Ltd,Training,2025803,202104
Rother District Council,25/06/2021,101RESOURCES,Resources,20239,Computer Services,D2621,Telephones,267.68,GTT EMEA Ltd,Telephones - Leased Line Rental,2025680,202104
Rother District Council,25/06/2021,081ACQUISIT,"Acquisitions, Transformation and Regeneration",20154,Committee Property Account,B1100,Repairs to Premises,44.41,Trade Paints Ltd,Repairs to Premises - Purchase of Materials - Build Maint,2025972,202104
Rother District Council,25/06/2021,091HOUSING,Housing and Community Services,20128,Public Conveniences,B1100,Repairs to Premises,95.00,B and G Environmental Services Limited,Repairs to Premises - Drainage Clearance,2025863,202104
Rother District Council,25/06/2021,031RESOURCES,Chief Executive & Corporate Core,20171,Human Resources,D2513,Hired and Contracted services,120.00,Staywell Occupational Health Ltd,Hired and contracted services - Occupational Health,2026068,202104
Rother District Council,25/06/2021,071STRAT,Strategy and Planning,20246,Planning Applications,D2513,Hired and Contracted services,18.00,H M Land Registry,Hired and contracted services - Land Registry-Planning,2025806,202104
Rother District Council,25/06/2021,091HOUSING,Housing and Community Services,20200,Housing Needs - HB (Housing Benefit),D2513,Hired and Contracted services,3.00,H M Land Registry,Hired and contracted services - Housing-Land Registry,2025806,202104
Rother District Council,25/06/2021,071STRAT,Strategy and Planning,20258,BC Dangerous Structures H+R Partnership,D2513,Hired and Contracted services,6.00,H M Land Registry,Hired and contracted services - Env H-Land Registry,2025806,202104
Rother District Council,25/06/2021,041ENVIRON,Environmental Services,32134,EH Pollution R + W Partnership,D2513,Hired and Contracted services,3.00,H M Land Registry,Hired and contracted services - Env H-Land Registry,2025806,202104
Rother District Council,25/06/2021,101RESOURCES,Resources,20216,Cost Of Collection,D2513,Hired and Contracted services,18.00,H M Land Registry,Hired and contracted services - Council Tax-Land Registry Enquiries,2025806,202104
Rother District Council,25/06/2021,031RESOURCES,Chief Executive & Corporate Core,20162,Electoral Registration,D1201,Equipment & Materials,439.48,Pitney Bowes Ltd,Equipment & Materials - Purchase of Tools,2026071,202104
Rother District Council,25/06/2021,091HOUSING,Housing and Community Services,20261,"TA Purchases (prev - 41 Jameson Mews, Bexhill on Sea)",B2201,Electricity,115.63,British Gas Business (600 Accounts only),Electricity - Electricity Charges,2025934,202104
Rother District Council,25/06/2021,101RESOURCES,Resources,20239,Computer Services,D2633,Computer Equipment,325.00,Computacenter (UK) Ltd,Computer Equipment - Computer peripherals,2025943,202104
Rother District Council,25/06/2021,101RESOURCES,Resources,20239,Computer Services,D2633,Computer Equipment,237.50,Computacenter (UK) Ltd,Computer Equipment - Computer peripherals,2025944,202104
Rother District Council,25/06/2021,101RESOURCES,Resources,20239,Computer Services,D2633,Computer Equipment,"15,400.00",Computacenter (UK) Ltd,Computer Equipment - Computer peripherals,2025945,202104
Rother District Council,25/06/2021,091HOUSING,Housing and Community Services,20145,Maintenance Services,D2352,Clothing and Uniforms,69.99,Trade UK Account (Screwfix & B&Q),Clothing and Uniforms - Mens Protective-Footware,2025672,202104
Rother District Council,25/06/2021,031RESOURCES,Chief Executive & Corporate Core,20171,Human Resources,A2203,Training,101.81,Croner Group Ltd,Training,2025803,202104
Rother District Council,25/06/2021,091HOUSING,Housing and Community Services,20329,Rough Sleeping Initiative,D2514,Accommodation Costs,177.00,Lillybank Homes Ltd,Accommodation Costs,2025685,202104
Rother District Council,25/06/2021,091HOUSING,Housing and Community Services,20329,Rough Sleeping Initiative,D2514,Accommodation Costs,413.00,Lillybank Homes Ltd,Accommodation Costs,2025685,202104
Rother District Council,25/06/2021,091HOUSING,Housing and Community Services,20200,Housing Needs - HB (Housing Benefit),D2514,Accommodation Costs,332.50,Lillybank Homes Ltd,Accommodation Costs,2025685,202104
Rother District Council,25/06/2021,091HOUSING,Housing and Community Services,20200,Housing Needs - HB (Housing Benefit),D2514,Accommodation Costs,455.00,Lillybank Homes Ltd,Accommodation Costs,2025685,202104
Rother District Council,25/06/2021,091HOUSING,Housing and Community Services,20200,Housing Needs - HB (Housing Benefit),D2514,Accommodation Costs,455.00,Lillybank Homes Ltd,Accommodation Costs,2025685,202104
Rother District Council,25/06/2021,091HOUSING,Housing and Community Services,20200,Housing Needs - HB (Housing Benefit),D2514,Accommodation Costs,24.99,Lillybank Homes Ltd,Accommodation Costs,2025685,202104
Rother District Council,25/06/2021,091HOUSING,Housing and Community Services,20200,Housing Needs - HB (Housing Benefit),D2514,Accommodation Costs,455.00,Lillybank Homes Ltd,Accommodation Costs,2025685,202104
Rother District Council,25/06/2021,091HOUSING,Housing and Community Services,20200,Housing Needs - HB (Housing Benefit),D2514,Accommodation Costs,413.00,Lillybank Homes Ltd,Accommodation Costs,2025685,202104
Rother District Council,25/06/2021,091HOUSING,Housing and Community Services,20200,Housing Needs - HB (Housing Benefit),D2514,Accommodation Costs,455.00,Lillybank Homes Ltd,Accommodation Costs,2025685,202104
Rother District Council,25/06/2021,091HOUSING,Housing and Community Services,20200,Housing Needs - HB (Housing Benefit),D2514,Accommodation Costs,507.50,Lillybank Homes Ltd,Accommodation Costs,2025685,202104
Rother District Council,27/06/2021,101RESOURCES,Resources,20242,Communications-Phones,D2621,Telephones,307.32,BT British Telecommunications plc,Telephones - BT-Rental-General,2026074,202104
Rother District Council,27/06/2021,101RESOURCES,Resources,20209,Corporate management,D2513,Hired and Contracted services,80.00,BT British Telecommunications plc,Interest Paid - Late Invoice Payment Fee,2026074,202104
Rother District Council,27/06/2021,101RESOURCES,Resources,20222,Accountancy,D2635,Computer Licences,"1,210.37",Integra Associates Ltd,Computer Licences - New Computer Software,2026207,202104
Rother District Council,28/06/2021,031RESOURCES,Chief Executive & Corporate Core,20176,Administrative Offices - Print Room,B1100,Repairs to Premises,179.29,Alfa Electric Ltd,Repairs to Premises - Repairs - Electrical Works,2026272,202104
Rother District Council,28/06/2021,091HOUSING,Housing and Community Services,20128,Public Conveniences,B1100,Repairs to Premises,33.33,Trade UK Account (Screwfix & B&Q),Repairs to Premises - Purchase of Materials - Build Maint,2025755,202104
Rother District Council,28/06/2021,031RESOURCES,Chief Executive & Corporate Core,20162,Electoral Registration,D2626,Postages,38.20,Royal Mail Group Ltd,Postages - Response Service-Royal Mail Chg,2026072,202104
Rother District Council,28/06/2021,031RESOURCES,Chief Executive & Corporate Core,20171,Human Resources,D2513,Hired and Contracted services,231.00,REDACTED PERSONAL DATA,Hired and contracted services - Legal Advice,2026073,202104
Rother District Council,28/06/2021,041ENVIRON,Environmental Services,32143,EH Licenses and Registration R + W Partnership,D2513,Hired and Contracted services,"1,086.52",The Seventh Cat Ltd,Hired and contracted services - EnvH-Veterinary Services for Licens,2026000,202104
Rother District Council,28/06/2021,071STRAT,Strategy and Planning,20246,Planning Applications,D1201,Equipment & Materials,110.00,REDACTED PERSONAL DATA,Equipment & Materials - Stakes,2025750,202104
Rother District Council,28/06/2021,091HOUSING,Housing and Community Services,20145,Maintenance Services,D1201,Equipment & Materials,29.16,Trade UK Account (Screwfix & B&Q),Equipment & Materials - Purchase of Tools,2025756,202104
Rother District Council,28/06/2021,091HOUSING,Housing and Community Services,20145,Maintenance Services,D1201,Equipment & Materials,29.98,Trade UK Account (Screwfix & B&Q),Equipment & Materials - Purchase of Tools,2025757,202104
Rother District Council,28/06/2021,091HOUSING,Housing and Community Services,20145,Maintenance Services,D1201,Equipment & Materials,-18.74,Trade UK Account (Screwfix & B&Q),Equipment & Materials - Purchase of Tools,2025754,202104
Rother District Council,28/06/2021,091HOUSING,Housing and Community Services,20137,Car Parks,D1201,Equipment & Materials,75.00,Flowbird Smart City UK Ltd,Equipment & Materials - Carriage/Handling Charge,2025753,202104
Rother District Council,28/06/2021,091HOUSING,Housing and Community Services,20137,Car Parks,D1201,Equipment & Materials,"1,890.00",Flowbird Smart City UK Ltd,Equipment & Materials - Car Parks Tickets,2025753,202104
Rother District Council,28/06/2021,091HOUSING,Housing and Community Services,20236,Customer Services and Development,D2635,Computer Licences,19.95,Click4Assistance,Computer Licences - Maintenance/Upgrading of Software,2026667,202105
Rother District Council,28/06/2021,999NOREPORT,Housing and Community Services,70714,Capital - Grants Halls and Community Projects,N1011,Capital Grants,"3,085.00",Brede Parish Council,Capital Grants - Community Grants Scheme,2025923,202104
Rother District Council,28/06/2021,999NOREPORT,"Acquisitions, Transformation and Regeneration",70725,Capital - Blackfriars,N1004,Architects & Consultant Fees,"2,000.00",East Sussex County Council,Architects & Consultant Fees Capital-Architect and Conslt Fees,2025800,202104
Rother District Council,28/06/2021,999NOREPORT,"Acquisitions, Transformation and Regeneration",70725,Capital - Blackfriars,N1004,Architects & Consultant Fees,"8,850.00",GTA Civils & Transport Ltd,Architects & Consultant Fees Capital-Architect and Conslt Fees,2025784,202104
Rother District Council,28/06/2021,031RESOURCES,Chief Executive & Corporate Core,20276,COVID19 RDC expenditure,D2514,Accommodation Costs,344.40,SDR Living Ltd,Accomodation Costs - Housing Due to Covid 19,2025715,202104
Rother District Council,28/06/2021,031RESOURCES,Chief Executive & Corporate Core,20276,COVID19 RDC expenditure,D2514,Accommodation Costs,86.10,SDR Living Ltd,Accomodation Costs - Housing Due to Covid 19,2025715,202104
Rother District Council,28/06/2021,031RESOURCES,Chief Executive & Corporate Core,20276,COVID19 RDC expenditure,D2514,Accommodation Costs,330.40,SDR Living Ltd,Accomodation Costs - Housing Due to Covid 19,2025715,202104
Rother District Council,28/06/2021,031RESOURCES,Chief Executive & Corporate Core,20276,COVID19 RDC expenditure,D2514,Accommodation Costs,82.60,SDR Living Ltd,Accomodation Costs - Housing Due to Covid 19,2025715,202104
Rother District Council,28/06/2021,031RESOURCES,Chief Executive & Corporate Core,20276,COVID19 RDC expenditure,D2514,Accommodation Costs,177.00,SDR Living Ltd,Accomodation Costs - Housing Due to Covid 19,2025715,202104
Rother District Council,28/06/2021,031RESOURCES,Chief Executive & Corporate Core,20276,COVID19 RDC expenditure,D2514,Accommodation Costs,188.80,SDR Living Ltd,Accomodation Costs - Housing Due to Covid 19,2025715,202104
Rother District Council,28/06/2021,031RESOURCES,Chief Executive & Corporate Core,20276,COVID19 RDC expenditure,D2514,Accommodation Costs,47.20,SDR Living Ltd,Accomodation Costs - Housing Due to Covid 19,2025715,202104
Rother District Council,28/06/2021,091HOUSING,Housing and Community Services,20329,Rough Sleeping Initiative,D2514,Accommodation Costs,344.40,SDR Living Ltd,Accommodation Costs,2025715,202104
Rother District Council,28/06/2021,091HOUSING,Housing and Community Services,20329,Rough Sleeping Initiative,D2514,Accommodation Costs,86.10,SDR Living Ltd,Accommodation Costs,2025715,202104
Rother District Council,28/06/2021,091HOUSING,Housing and Community Services,20200,Housing Needs - HB (Housing Benefit),D2514,Accommodation Costs,310.80,SDR Living Ltd,Accommodation Costs,2025715,202104
Rother District Council,28/06/2021,091HOUSING,Housing and Community Services,20200,Housing Needs - HB (Housing Benefit),D2514,Accommodation Costs,77.70,SDR Living Ltd,Accommodation Costs,2025715,202104
Rother District Council,28/06/2021,091HOUSING,Housing and Community Services,20200,Housing Needs - HB (Housing Benefit),D2514,Accommodation Costs,310.80,SDR Living Ltd,Accommodation Costs,2025715,202104
Rother District Council,28/06/2021,091HOUSING,Housing and Community Services,20200,Housing Needs - HB (Housing Benefit),D2514,Accommodation Costs,77.70,SDR Living Ltd,Accommodation Costs,2025715,202104
Rother District Council,28/06/2021,091HOUSING,Housing and Community Services,20200,Housing Needs - HB (Housing Benefit),D2514,Accommodation Costs,344.40,SDR Living Ltd,Accommodation Costs,2025715,202104
Rother District Council,28/06/2021,091HOUSING,Housing and Community Services,20200,Housing Needs - HB (Housing Benefit),D2514,Accommodation Costs,86.10,SDR Living Ltd,Accommodation Costs,2025715,202104
Rother District Council,28/06/2021,091HOUSING,Housing and Community Services,20200,Housing Needs - HB (Housing Benefit),D2514,Accommodation Costs,151.20,SDR Living Ltd,Accommodation Costs,2025715,202104
Rother District Council,28/06/2021,091HOUSING,Housing and Community Services,20200,Housing Needs - HB (Housing Benefit),D2514,Accommodation Costs,37.80,SDR Living Ltd,Accommodation Costs,2025715,202104
Rother District Council,28/06/2021,091HOUSING,Housing and Community Services,20200,Housing Needs - HB (Housing Benefit),D2514,Accommodation Costs,344.40,SDR Living Ltd,Accommodation Costs,2025715,202104
Rother District Council,28/06/2021,091HOUSING,Housing and Community Services,20200,Housing Needs - HB (Housing Benefit),D2514,Accommodation Costs,86.10,SDR Living Ltd,Accommodation Costs,2025715,202104
Rother District Council,28/06/2021,091HOUSING,Housing and Community Services,20200,Housing Needs - HB (Housing Benefit),D2514,Accommodation Costs,61.50,SDR Living Ltd,Accommodation Costs,2025715,202104
Rother District Council,28/06/2021,091HOUSING,Housing and Community Services,20329,Rough Sleeping Initiative,D2514,Accommodation Costs,151.20,SDR Living Ltd,Accommodation Costs,2025715,202104
Rother District Council,28/06/2021,091HOUSING,Housing and Community Services,20329,Rough Sleeping Initiative,D2514,Accommodation Costs,37.80,SDR Living Ltd,Accommodation Costs,2025715,202104
Rother District Council,28/06/2021,091HOUSING,Housing and Community Services,20329,Rough Sleeping Initiative,D2514,Accommodation Costs,151.20,SDR Living Ltd,Accommodation Costs,2025715,202104
Rother District Council,28/06/2021,091HOUSING,Housing and Community Services,20329,Rough Sleeping Initiative,D2514,Accommodation Costs,37.80,SDR Living Ltd,Accommodation Costs,2025715,202104
Rother District Council,28/06/2021,091HOUSING,Housing and Community Services,20329,Rough Sleeping Initiative,D2514,Accommodation Costs,344.40,SDR Living Ltd,Accommodation Costs,2025715,202104
Rother District Council,28/06/2021,091HOUSING,Housing and Community Services,20329,Rough Sleeping Initiative,D2514,Accommodation Costs,86.10,SDR Living Ltd,Accommodation Costs,2025715,202104
Rother District Council,28/06/2021,091HOUSING,Housing and Community Services,20329,Rough Sleeping Initiative,D2514,Accommodation Costs,277.20,SDR Living Ltd,Accommodation Costs,2025715,202104
Rother District Council,28/06/2021,091HOUSING,Housing and Community Services,20329,Rough Sleeping Initiative,D2514,Accommodation Costs,69.30,SDR Living Ltd,Accommodation Costs,2025715,202104
Rother District Council,28/06/2021,091HOUSING,Housing and Community Services,20329,Rough Sleeping Initiative,D2514,Accommodation Costs,151.20,SDR Living Ltd,Accommodation Costs,2025715,202104
Rother District Council,28/06/2021,091HOUSING,Housing and Community Services,20329,Rough Sleeping Initiative,D2514,Accommodation Costs,37.80,SDR Living Ltd,Accommodation Costs,2025715,202104
Rother District Council,28/06/2021,091HOUSING,Housing and Community Services,20329,Rough Sleeping Initiative,D2514,Accommodation Costs,346.50,SDR Living Ltd,Accommodation Costs,2025715,202104
Rother District Council,28/06/2021,091HOUSING,Housing and Community Services,20200,Housing Needs - HB (Housing Benefit),D2514,Accommodation Costs,147.60,SDR Living Ltd,Accommodation Costs,2025715,202104
Rother District Council,28/06/2021,091HOUSING,Housing and Community Services,20200,Housing Needs - HB (Housing Benefit),D2514,Accommodation Costs,36.90,SDR Living Ltd,Accommodation Costs,2025715,202104
Rother District Council,28/06/2021,091HOUSING,Housing and Community Services,20200,Housing Needs - HB (Housing Benefit),D2514,Accommodation Costs,222.00,SDR Living Ltd,Accommodation Costs,2025715,202104
Rother District Council,28/06/2021,091HOUSING,Housing and Community Services,20200,Housing Needs - HB (Housing Benefit),D2514,Accommodation Costs,10.00,SDR Living Ltd,Accommodation Costs,2025715,202104
Rother District Council,28/06/2021,091HOUSING,Housing and Community Services,20200,Housing Needs - HB (Housing Benefit),D2514,Accommodation Costs,346.50,SDR Living Ltd,Accommodation Costs,2025715,202104
Rother District Council,28/06/2021,091HOUSING,Housing and Community Services,20200,Housing Needs - HB (Housing Benefit),D2514,Accommodation Costs,361.20,SDR Living Ltd,Accommodation Costs,2025715,202104
Rother District Council,28/06/2021,091HOUSING,Housing and Community Services,20200,Housing Needs - HB (Housing Benefit),D2514,Accommodation Costs,90.30,SDR Living Ltd,Accommodation Costs,2025715,202104
Rother District Council,28/06/2021,091HOUSING,Housing and Community Services,20329,Rough Sleeping Initiative,D2514,Accommodation Costs,390.00,Roost People Ltd,Accommodation Costs,2025712,202104
Rother District Council,28/06/2021,091HOUSING,Housing and Community Services,20329,Rough Sleeping Initiative,D2514,Accommodation Costs,340.00,Roost People Ltd,Accommodation Costs,2025712,202104
Rother District Council,28/06/2021,091HOUSING,Housing and Community Services,20200,Housing Needs - HB (Housing Benefit),D2514,Accommodation Costs,415.00,Roost People Ltd,Accommodation Costs,2025712,202104
Rother District Council,28/06/2021,091HOUSING,Housing and Community Services,20200,Housing Needs - HB (Housing Benefit),D2514,Accommodation Costs,390.00,Roost People Ltd,Accommodation Costs,2025712,202104
Rother District Council,28/06/2021,091HOUSING,Housing and Community Services,20200,Housing Needs - HB (Housing Benefit),D2514,Accommodation Costs,390.00,Roost People Ltd,Accommodation Costs,2025712,202104
Rother District Council,28/06/2021,091HOUSING,Housing and Community Services,20200,Housing Needs - HB (Housing Benefit),D2514,Accommodation Costs,390.00,Roost People Ltd,Accommodation Costs,2025712,202104
Rother District Council,28/06/2021,091HOUSING,Housing and Community Services,20200,Housing Needs - HB (Housing Benefit),D2514,Accommodation Costs,390.00,Roost People Ltd,Accommodation Costs,2025712,202104
Rother District Council,28/06/2021,091HOUSING,Housing and Community Services,20200,Housing Needs - HB (Housing Benefit),D2514,Accommodation Costs,315.00,Roost People Ltd,Accommodation Costs,2025712,202104
Rother District Council,28/06/2021,091HOUSING,Housing and Community Services,20200,Housing Needs - HB (Housing Benefit),D2514,Accommodation Costs,390.00,Roost People Ltd,Accommodation Costs,2025712,202104
Rother District Council,28/06/2021,091HOUSING,Housing and Community Services,20200,Housing Needs - HB (Housing Benefit),D2514,Accommodation Costs,340.00,Roost People Ltd,Accommodation Costs,2025712,202104
Rother District Council,28/06/2021,091HOUSING,Housing and Community Services,20329,Rough Sleeping Initiative,D2514,Accommodation Costs,315.00,Roost People Ltd,Accommodation Costs,2025712,202104
Rother District Council,29/06/2021,091HOUSING,Housing and Community Services,20115,Rye Area Parks & Gardens,B2421,Water,378.89,Scottish Water Business Stream Limited,Water - Water Charges,2025739,202104
Rother District Council,29/06/2021,101RESOURCES,Resources,20240,Printing Services,E2302,Third party payment private contractors,62.00,Golden Arrow Couriers,Third party payment private contractors - Work by Outside Contractors,2025905,202104
Rother District Council,29/06/2021,081ACQUISIT,"Acquisitions, Transformation and Regeneration",20142,Performance Management,D2922,Subscriptions,600.00,Survey Mechanics Limited,Subscriptions - Subscription to Organisations,2025880,202104
Rother District Council,29/06/2021,091HOUSING,Housing and Community Services,20115,Rye Area Parks & Gardens,B2422,Sewerage,356.82,Scottish Water Business Stream Limited,Sewerage - Sewerage Charges,2025739,202104
Rother District Council,29/06/2021,031RESOURCES,Chief Executive & Corporate Core,20175,Administrative Offices - T.H. Annex (NOT CHP),B1100,Repairs to Premises,45.00,Alfa Electric Ltd,Repairs to Premises - Repairs - Electrical Works,2026269,202104
Rother District Council,29/06/2021,081ACQUISIT,"Acquisitions, Transformation and Regeneration",20153,"Elva Business Centre, Bexhill",B1100,Repairs to Premises,349.49,Alfa Electric Ltd,Repairs to Premises - Repairs - Electrical Works,2026270,202104
Rother District Council,29/06/2021,091HOUSING,Housing and Community Services,20108,Bexhill Promenade & Foreshore,B1100,Repairs to Premises,89.62,Alfa Electric Ltd,Repairs to Premises - Repairs - Electrical Works,2026024,202104
Rother District Council,29/06/2021,091HOUSING,Housing and Community Services,20107,Camber Beach & Foreshore,B1100,Repairs to Premises,309.11,Alfa Electric Ltd,Repairs to Premises - Repairs - Electrical Works,2026023,202104
Rother District Council,29/06/2021,091HOUSING,Housing and Community Services,20108,Bexhill Promenade & Foreshore,B1100,Repairs to Premises,67.50,Alfa Electric Ltd,Repairs to Premises - Repairs - Electrical Works,2026025,202104
Rother District Council,29/06/2021,081ACQUISIT,"Acquisitions, Transformation and Regeneration",20144,Property Management,B1100,Repairs to Premises,450.00,REDACTED PERSONAL DATA,Repairs to Premises - Energy Performance Certificate,2026077,202104
Rother District Council,29/06/2021,091HOUSING,Housing and Community Services,20145,Maintenance Services,D2513,Hired and Contracted services,150.00,Amstech Inspections & Testing Ltd,Hired and contracted services - Service fee paid,2025720,202104
Rother District Council,29/06/2021,091HOUSING,Housing and Community Services,20145,Maintenance Services,D2513,Hired and Contracted services,200.00,Amstech Inspections & Testing Ltd,Hired and contracted services - Service fee paid,2025719,202104
Rother District Council,29/06/2021,071STRAT,Strategy and Planning,20246,Planning Applications,D2509,Consultants and Other Services,"2,701.40",REDACTED PERSONAL DATA,Consultants and other services - Consultants Fees,2025758,202104
Rother District Council,29/06/2021,091HOUSING,Housing and Community Services,20304,Housing First,D2513,Hired and Contracted services,119.25,Lets 2 Share Limited,Hired and Contracted services,2025726,202104
Rother District Council,30/06/2021,031RESOURCES,Chief Executive & Corporate Core,20171,Human Resources,A2203,Training,575.00,Solace,Training,2026066,202104
Rother District Council,30/06/2021,091HOUSING,Housing and Community Services,20133,Refuse Collection,E2302,Third party payment private contractors,836.69,CFH Docmail Ltd,Third party payment private contractors - Payments to Contractor,2026117,202104
Rother District Council,30/06/2021,091HOUSING,Housing and Community Services,20133,Refuse Collection,E2302,Third party payment private contractors,"2,724.72",CFH Docmail Ltd,Third party payment private contractors - Payments to Contractor,2025853,202104
Rother District Council,30/06/2021,091HOUSING,Housing and Community Services,20133,Refuse Collection,E2302,Third party payment private contractors,30.00,Data Shredding Services Ltd,Third party payment private contractors - Commercial Waste Collection Contract,2026210,202104
Rother District Council,30/06/2021,091HOUSING,Housing and Community Services,20133,Refuse Collection,E2302,Third party payment private contractors,349.91,Biffa Waste Services Ltd,Third party payment private contractors - Commercial Waste Collection Contract,2025825,202104
Rother District Council,30/06/2021,071STRAT,Strategy and Planning,20246,Planning Applications,D2519,Statutory Advertising,640.50,JPIMedia Publishing Ltd,Statutory Advertising - Planadv - Rye+Battle Observer,2025771,202104
Rother District Council,30/06/2021,081ACQUISIT,"Acquisitions, Transformation and Regeneration",20267,Property Investment Strategy - 18-40 Beeching Road ( Land and Buildings),B2422,Sewerage,26.80,Scottish Water Business Stream Limited,Sewerage - Sewerage Charges,2025745,202104
Rother District Council,30/06/2021,091HOUSING,Housing and Community Services,20128,Public Conveniences,B2422,Sewerage,330.00,CountyClean Environmental Services Ltd,Sewerage - Sewage/Cesspool Emptying,2025811,202104
Rother District Council,30/06/2021,091HOUSING,Housing and Community Services,20137,Car Parks,D2507,Security Services,240.00,Continental Facilities Management Group Ltd,Security services provided,2026051,202104
Rother District Council,30/06/2021,091HOUSING,Housing and Community Services,20113,Bexhill Leisure Pool,B1100,Repairs to Premises,70.00,JS Wadeson Cleaning Services Ltd,Repairs to Premises - Specified Repairs and Works listed,2025785,202104
Rother District Council,30/06/2021,091HOUSING,Housing and Community Services,20113,Bexhill Leisure Pool,B1100,Repairs to Premises,"9,602.35",Alfa Electric Ltd,Repairs to Premises - Repairs Roofing Works,2025901,202106
Rother District Council,30/06/2021,031RESOURCES,Chief Executive & Corporate Core,20175,Administrative Offices - T.H. Annex (NOT CHP),B1100,Repairs to Premises,45.00,Alfa Electric Ltd,Repairs to Premises - Repairs - Electrical Works,2026274,202104
Rother District Council,30/06/2021,031RESOURCES,Chief Executive & Corporate Core,20176,Administrative Offices - Print Room,B1100,Repairs to Premises,334.94,Alfa Electric Ltd,Repairs to Premises - Repairs - Electrical Works,2026273,202104
Rother District Council,30/06/2021,081ACQUISIT,"Acquisitions, Transformation and Regeneration",20150,Peasmarsh Workshops,B1100,Repairs to Premises,3.50,Rye Hire Ltd,Repairs to Premises - Purchase of Materials - Build Maint,2025969,202104
Rother District Council,30/06/2021,081ACQUISIT,"Acquisitions, Transformation and Regeneration",20148,Misc Land & Buildings,B1100,Repairs to Premises,52.33,MC Glass (East Sussex) Ltd,Repairs to Premises - Purchase of Materials - Build Maint,2026418,202105
Rother District Council,30/06/2021,091HOUSING,Housing and Community Services,20108,Bexhill Promenade & Foreshore,B1100,Repairs to Premises,351.07,Parker Building Supplies Ltd,Repairs to Premises - Purchase of Materials - Build Maint,2025774,202104
Rother District Council,30/06/2021,091HOUSING,Housing and Community Services,20108,Bexhill Promenade & Foreshore,B1100,Repairs to Premises,89.56,REDACTED PERSONAL DATA,Repairs to Premises - Purchase of Materials - Build Maint,2025856,202104
Rother District Council,30/06/2021,091HOUSING,Housing and Community Services,20108,Bexhill Promenade & Foreshore,B1100,Repairs to Premises,38.37,REDACTED PERSONAL DATA,Repairs to Premises - Purchase of Materials - Build Maint,2025857,202104
Rother District Council,30/06/2021,091HOUSING,Housing and Community Services,20108,Bexhill Promenade & Foreshore,B1100,Repairs to Premises,19.15,REDACTED PERSONAL DATA,Repairs to Premises - Purchase of Materials - Build Maint,2025858,202104
Rother District Council,30/06/2021,091HOUSING,Housing and Community Services,20108,Bexhill Promenade & Foreshore,B1100,Repairs to Premises,40.98,REDACTED PERSONAL DATA,Repairs to Premises - Purchase of Materials - Build Maint,2025860,202104
Rother District Council,30/06/2021,091HOUSING,Housing and Community Services,20128,Public Conveniences,B1100,Repairs to Premises,9.99,Trade UK Account (Screwfix & B&Q),Repairs to Premises - Purchase of Materials - Build Maint,2025823,202104
Rother District Council,30/06/2021,091HOUSING,Housing and Community Services,20107,Camber Beach & Foreshore,B1100,Repairs to Premises,5.79,Rye Hire Ltd,Repairs to Premises - Purchase of Materials - Build Maint,2025970,202104
Rother District Council,30/06/2021,091HOUSING,Housing and Community Services,20107,Camber Beach & Foreshore,B1100,Repairs to Premises,13.42,REDACTED PERSONAL DATA,Repairs to Premises - Purchase of Materials - Build Maint,2025859,202104
Rother District Council,30/06/2021,091HOUSING,Housing and Community Services,20107,Camber Beach & Foreshore,B1100,Repairs to Premises,16.66,Rye Hire Ltd,Repairs to Premises - Purchase of Materials - Build Maint,2025968,202104
Rother District Council,30/06/2021,091HOUSING,Housing and Community Services,20128,Public Conveniences,B1100,Repairs to Premises,"1,178.25",Specialist Hygiene Services Ltd,Repairs to Premises - Public Conveniences - Various repairs,2026110,202105
Rother District Council,30/06/2021,091HOUSING,Housing and Community Services,20124,Churchyards,B1100,Repairs to Premises,350.00,Foxhills Tree Services Ltd,Repairs to Premises - Parks - Tree Works,2025813,202104
Rother District Council,30/06/2021,091HOUSING,Housing and Community Services,20123,Cemeteries,B1100,Repairs to Premises,"1,750.00",Foxhills Tree Services Ltd,Repairs to Premises - Parks - Tree Works,2025812,202104
Rother District Council,30/06/2021,091HOUSING,Housing and Community Services,20114,Bexhill Parks & Open Spaces,B1100,Repairs to Premises,"2,430.00",Gristwood and Toms Limited,Repairs to Premises - Parks - Tree Works,2026203,202104
Rother District Council,30/06/2021,091HOUSING,Housing and Community Services,20108,Bexhill Promenade & Foreshore,B1100,Repairs to Premises,"7,149.95",EA Group UK Ltd,Repairs to Premises - Beach maintenance,2026150,202104
Rother District Council,30/06/2021,071STRAT,Strategy and Planning,20244,General Planning Expenses,A2202,Recruitment expenses,"1,560.00",Haymarket Media Group Ltd,Recruitment expenses Advertising Vacant Post,2025830,202104
Rother District Council,30/06/2021,071STRAT,Strategy and Planning,20244,General Planning Expenses,A2202,Recruitment expenses,995.00,Redactive Publishing Ltd,Recruitment expenses Advertising Vacant Post,2026069,202104
Rother District Council,30/06/2021,031RESOURCES,Chief Executive & Corporate Core,20162,Electoral Registration,D2415,Printing by external suppliers,240.25,Civica Election Services Ltd,Printing by external suppliers - Printing (Not from RDC Print Room),2025759,202104
Rother District Council,30/06/2021,091HOUSING,Housing and Community Services,20137,Car Parks,I3439,Parking Chgs Off Street,"1,711.01",Freedom Leisure,Parking Chgs - Off Street Car Park Income Refund,2025892,202104
Rother District Council,30/06/2021,071STRAT,Strategy and Planning,20246,Planning Applications,E2302,Third party payment private contractors,"2,000.00",Altair Consultancy & Advisory Services Ltd,Hired and contracted services - Valuation Services,2026714,202105
Rother District Council,30/06/2021,091HOUSING,Housing and Community Services,20206,UK Resettlement (Syrians),D2513,Hired and Contracted services,660.00,REDACTED PERSONAL DATA,Hired and contracted services - Syrian-Education-Exempt VAT,2025776,202104
Rother District Council,30/06/2021,091HOUSING,Housing and Community Services,20206,UK Resettlement (Syrians),D2513,Hired and Contracted services,309.71,247 Transport Solutions Ltd,Hired and contracted services - Syrian Resettlement Programme-Travel,2025814,202104
Rother District Council,30/06/2021,041ENVIRON,Environmental Services,32142,EH Taxi and Private Hire Licenses R + W Partnership,D2513,Hired and Contracted services,240.00,DBS The Disclosure and Barring Service,Hired and contracted services - Service fee paid,2025852,202104
Rother District Council,30/06/2021,081ACQUISIT,"Acquisitions, Transformation and Regeneration",20136,Regeneration,D2513,Hired and Contracted services,"8,500.00",GENECON Ltd,Hired and contracted services - Service fee paid,2027143,202106
Rother District Council,30/06/2021,091HOUSING,Housing and Community Services,20108,Bexhill Promenade & Foreshore,D2513,Hired and Contracted services,60.00,Impact Scaffolding Ltd,Hired and contracted services - Service fee paid,2025819,202104
Rother District Council,30/06/2021,091HOUSING,Housing and Community Services,20108,Bexhill Promenade & Foreshore,D2513,Hired and Contracted services,60.00,Impact Scaffolding Ltd,Hired and contracted services - Service fee paid,2025820,202104
Rother District Council,30/06/2021,091HOUSING,Housing and Community Services,20112,Bexhill Leisure Centre,D2513,Hired and Contracted services,320.00,Impact Scaffolding Ltd,Hired and contracted services - Service fee paid,2025821,202104
Rother District Council,30/06/2021,091HOUSING,Housing and Community Services,20145,Maintenance Services,D2513,Hired and Contracted services,280.00,Amstech Inspections & Testing Ltd,Hired and contracted services - Service fee paid,2025834,202104
Rother District Council,30/06/2021,091HOUSING,Housing and Community Services,20145,Maintenance Services,D2513,Hired and Contracted services,85.00,Amstech Inspections & Testing Ltd,Hired and contracted services - Service fee paid,2025835,202104
Rother District Council,30/06/2021,071STRAT,Strategy and Planning,20244,General Planning Expenses,D2513,Hired and Contracted services,900.00,Reef Environmental Solutions Ltd,Hired and contracted services - Scanning Services,2025793,202104
Rother District Council,30/06/2021,091HOUSING,Housing and Community Services,20208,Care In The Community,D2513,Hired and Contracted services,345.00,Safe Partnership Ltd,Hired and contracted services - Sanctuary DV Assistance Revenue,2026108,202104
Rother District Council,30/06/2021,101RESOURCES,Resources,20216,Cost Of Collection,D2513,Hired and Contracted services,"2,054.23",DSI Billing Services Ltd,Hired and contracted services - DSI Billing Printing,2025907,202104
Rother District Council,30/06/2021,101RESOURCES,Resources,20222,Accountancy,D2513,Hired and Contracted services,"2,440.02",Embridge Consulting (UK) Ltd,Hired and contracted services - Consultancy Service per Contract,2026015,202104
Rother District Council,30/06/2021,031RESOURCES,Chief Executive & Corporate Core,20171,Human Resources,D2513,Hired and Contracted services,51.09,Computershare Voucher Services,Hired and contracted services - Child Care Voucher Service Charge,2025802,202104
Rother District Council,30/06/2021,091HOUSING,Housing and Community Services,20137,Car Parks,D2513,Hired and Contracted services,"2,586.00",Jade Security Services Ltd,Hired and contracted services - Cash Security Fees-Car Parks,2025997,202104
Rother District Council,30/06/2021,101RESOURCES,Resources,20209,Corporate management,D2513,Hired and Contracted services,989.10,allpay.net Ltd,Hired and contracted services - Allpay Card/Rep/Let Chrg - Vatable,2026518,202105
Rother District Council,30/06/2021,101RESOURCES,Resources,20209,Corporate management,D2513,Hired and Contracted services,11.44,allpay.net Ltd,Hired and contracted services - Allpay Card/Rep/Let Chrg - Vatable,2026519,202105
Rother District Council,30/06/2021,101RESOURCES,Resources,20209,Corporate management,D2513,Hired and Contracted services,17.03,allpay.net Ltd,Hired and contracted services - Allpay Card/Rep/Let Chrg - Vatable,2026520,202105
Rother District Council,30/06/2021,101RESOURCES,Resources,20209,Corporate management,D2513,Hired and Contracted services,21.00,allpay.net Ltd,Hired and contracted services - Allpay Card/Rep/Let Chrg - Vatable,2026521,202105
Rother District Council,30/06/2021,101RESOURCES,Resources,20241,Stationery,D2420,General office supplies (Stationery purchased from ext suppliers),74.82,Lyreco UK Limited,General office supplies - Stationery (Stationery Services to buy ONLY),2025761,202104
Rother District Council,30/06/2021,101RESOURCES,Resources,20241,Stationery,D2420,General office supplies (Stationery purchased from ext suppliers),100.72,Lyreco UK Limited,General office supplies - Stationery (Stationery Services to buy ONLY),2025762,202104
Rother District Council,30/06/2021,101RESOURCES,Resources,20241,Stationery,D2420,General office supplies (Stationery purchased from ext suppliers),12.40,Lyreco UK Limited,General office supplies - Stationery (Stationery Services to buy ONLY),2025763,202104
Rother District Council,30/06/2021,101RESOURCES,Resources,20241,Stationery,D2420,General office supplies (Stationery purchased from ext suppliers),23.97,Lyreco UK Limited,General office supplies - Stationery (Stationery Services to buy ONLY),2025764,202104
Rother District Council,30/06/2021,091HOUSING,Housing and Community Services,20137,Car Parks,D1201,Equipment & Materials,666.15,First Fence Ltd,Equipment & Materials - Purchase of Tools,2025782,202104
Rother District Council,30/06/2021,081ACQUISIT,"Acquisitions, Transformation and Regeneration",20154,Committee Property Account,B2201,Electricity,83.40,EDF Energy Customers plc,Electricity - Electricity Charges,2026408,202105
Rother District Council,30/06/2021,041ENVIRON,Environmental Services,32136,EH Pest Control R + W Partnership,C1104,Derv,3.80,Allstar Business Solutions,Derv - Fuel Service fee payable on fuel cards,2026523,202105
Rother District Council,30/06/2021,091HOUSING,Housing and Community Services,20145,Maintenance Services,C1104,Derv,3.80,Allstar Business Solutions,Derv - Fuel Service fee payable on fuel cards,2026523,202105
Rother District Council,30/06/2021,101RESOURCES,Resources,20216,Cost Of Collection,D2513,Hired and Contracted services,"36,807.75",Capita Business Services Ltd,Departmental Systems - Software for Academy System,2025760,202104
Rother District Council,30/06/2021,091HOUSING,Housing and Community Services,20138,Residual Highway Services,B2611,Contract cleaning,500.00,Abacus Main Ltd,Contract cleaning - Bus Shelter Cleaning Contract,2026099,202104
Rother District Council,30/06/2021,081ACQUISIT,"Acquisitions, Transformation and Regeneration",20275,Development of Council Owned Sites (Non-capital),D2509,Consultants and Other Services,"6,987.50",MH Architects Ltd,Consultants and other services - Consultants Fees,2026016,202104
Rother District Council,30/06/2021,091HOUSING,Housing and Community Services,20200,Housing Needs - HB (Housing Benefit),D2509,Consultants and Other Services,16.50,NEC Software Solutions UK Ltd,Consultants and other services - Consultants Fees,2025775,202104
Rother District Council,30/06/2021,101RESOURCES,Resources,20217,Reliefs & Benefits-Council Tax Benefit,D2509,Consultants and Other Services,104.70,NEC Software Solutions UK Ltd,Consultants and other services - Consultants Fees,2025775,202104
Rother District Council,30/06/2021,101RESOURCES,Resources,20216,Cost Of Collection,D2509,Consultants and Other Services,39.37,NEC Software Solutions UK Ltd,Consultants and other services - Consultants Fees,2025775,202104
Rother District Council,30/06/2021,101RESOURCES,Resources,20239,Computer Services,D2635,Computer Licences,109.00,Computacenter (UK) Ltd,Computer Licences - New Computer Software,2025946,202104
Rother District Council,30/06/2021,101RESOURCES,Resources,20239,Computer Services,D2635,Computer Licences,"2,625.00",LHS Locata (Housing Services) Ltd,Computer Licences - Maintenance/Upgrading of Software,2025896,202104
Rother District Council,30/06/2021,999NOREPORT,Environmental Services,70706,Capital - Disabled Facilities Grant,N1012,Capital Advances,"4,450.70",Prestige Stairlifts Ltd,Capital Advances Disabled Facilities Grant,2025949,202104
Rother District Council,30/06/2021,999NOREPORT,Environmental Services,70706,Capital - Disabled Facilities Grant,N1012,Capital Advances,"15,647.00",Gainsborough Healthcare Group,Capital Advances Disabled Facilities Grant,2025950,202104
Rother District Council,30/06/2021,999NOREPORT,Environmental Services,70706,Capital - Disabled Facilities Grant,N1012,Capital Advances,"1,643.58",Peabody South East Ltd,Capital Advances Disabled Facilities Grant,2025951,202104
Rother District Council,30/06/2021,999NOREPORT,"Acquisitions, Transformation and Regeneration",70750,Capital - Development of Council Owned Sites,N1004,Architects & Consultant Fees,"2,275.00",RGP Design Ltd t/a Bright Plan Civils,Architects & Consultant Fees Capital-Architect and Conslt Fees,2025777,202104
Rother District Council,30/06/2021,999NOREPORT,"Acquisitions, Transformation and Regeneration",70750,Capital - Development of Council Owned Sites,N1004,Architects & Consultant Fees,950.00,Omnia Environmental Counsulting (South) Ltd,Architects & Consultant Fees Capital-Architect and Conslt Fees,2025898,202104
Rother District Council,30/06/2021,999NOREPORT,Chief Executive & Corporate Core,70759,Capital - Town Hall Renaissance Project,N1004,Architects & Consultant Fees,"6,000.00",Robinson Low Francis LLP,Architects & Consultant Fees Capital-Architect and Conslt Fees,2025792,202104
Rother District Council,30/06/2021,999NOREPORT,"Acquisitions, Transformation and Regeneration",70737,Capital � Barnhorn Green,N1004,Architects & Consultant Fees,"13,375.00",R H Partnership Architects Ltd,Architects & Consultant Fees Capital-Architect and Conslt Fees,2025839,202104
Rother District Council,30/06/2021,999NOREPORT,"Acquisitions, Transformation and Regeneration",70737,Capital � Barnhorn Green,N1004,Architects & Consultant Fees,"2,000.00",R H Partnership Architects Ltd,Architects & Consultant Fees Capital-Architect and Conslt Fees,2025840,202104
Rother District Council,30/06/2021,091HOUSING,Housing and Community Services,20205,Housing Loans Account,D2514,Accommodation Costs,725.00,Castle Estates,Accommodation Costs - Homelessness services Rent in Advance for Homeless,2025783,202104
Rother District Council,30/06/2021,091HOUSING,Housing and Community Services,20205,Housing Loans Account,D2514,Accommodation Costs,951.92,Castle Estates,Accommodation Costs - Homelessness services Deposit for Landlords,2025783,202104
Rother District Council,30/06/2021,041ENVIRON,Environmental Services,32136,EH Pest Control R + W Partnership,C1104,Derv,44.17,Allstar Business Solutions,Derv,2026523,202105
Rother District Council,30/06/2021,041ENVIRON,Environmental Services,32136,EH Pest Control R + W Partnership,C1104,Derv,55.00,Allstar Business Solutions,Derv,2026523,202105
Rother District Council,30/06/2021,091HOUSING,Housing and Community Services,20200,Housing Needs - HB (Housing Benefit),D2513,Hired and Contracted services,81.50,Town Taxis,Hired and Contracted services,2025902,202104
Rother District Council,30/06/2021,091HOUSING,Housing and Community Services,20200,Housing Needs - HB (Housing Benefit),D2513,Hired and Contracted services,14.49,247 Transport Solutions Ltd,Hired and Contracted services,2025866,202104
Rother District Council,30/06/2021,091HOUSING,Housing and Community Services,20329,Rough Sleeping Initiative,D2514,Accommodation Costs,350.00,Solutions Accommodation Providers Ltd,Accommodation Costs,2025870,202104
Rother District Council,30/06/2021,091HOUSING,Housing and Community Services,20200,Housing Needs - HB (Housing Benefit),D2514,Accommodation Costs,225.00,Solutions Accommodation Providers Ltd,Accommodation Costs,2025872,202104
Rother District Council,30/06/2021,091HOUSING,Housing and Community Services,20200,Housing Needs - HB (Housing Benefit),D2514,Accommodation Costs,900.00,Solutions Accommodation Providers Ltd,Accommodation Costs,2025872,202104
Rother District Council,30/06/2021,091HOUSING,Housing and Community Services,20329,Rough Sleeping Initiative,D2514,Accommodation Costs,230.00,Solutions Accommodation Providers Ltd,Accommodation Costs,2025871,202104
Rother District Council,30/06/2021,091HOUSING,Housing and Community Services,20329,Rough Sleeping Initiative,D2514,Accommodation Costs,920.00,Solutions Accommodation Providers Ltd,Accommodation Costs,2025871,202104
Rother District Council,30/06/2021,091HOUSING,Housing and Community Services,20200,Housing Needs - HB (Housing Benefit),D2514,Accommodation Costs,"1,170.00",LESSHOMELESS LTD,Accommodation Costs,2025816,202104
Rother District Council,30/06/2021,091HOUSING,Housing and Community Services,20145,Maintenance Services,C1104,Derv,55.00,Allstar Business Solutions,Derv,2026523,202105
Rother District Council,30/06/2021,091HOUSING,Housing and Community Services,20145,Maintenance Services,C1104,Derv,43.41,Allstar Business Solutions,Derv,2026523,202105
Rother District Council,30/06/2021,091HOUSING,Housing and Community Services,20145,Maintenance Services,C1104,Derv,77.09,Allstar Business Solutions,Derv,2026523,202105
Rother District Council,30/06/2021,999NOREPORT,Resources,90000,Balance sheet all accounts,T1002,Childcare Vouchers,786.00,Computershare Voucher Services,Childcare Vouchers,2025802,202104
Rother District Council,01/07/2021,091HOUSING,Housing and Community Services,20145,Maintenance Services,C1101,Vehicle Repairs & Servicing,522.00,Asset Monitoring Solutions Group (UK) Ltd,Vehicle Repairs & Servicing,2025845,202104
Rother District Council,01/07/2021,091HOUSING,Housing and Community Services,20125,Coast Protection,E2302,Third party payment private contractors,400.00,REDACTED PERSONAL DATA,Third party payment private contractors - Fairlight Compressor Maintenance Contract,2025818,202104
Rother District Council,01/07/2021,101RESOURCES,Resources,20242,Communications-Phones,D2621,Telephones,"9,916.14",KCOM Group Plc,Telephones - KCOM Smartnumber Charges,2025939,202104
Rother District Council,01/07/2021,101RESOURCES,Resources,20242,Communications-Phones,D2621,Telephones,799.30,KCOM Group Plc,Telephones - KCOM Smartnumber Charges,2025937,202104
Rother District Council,01/07/2021,101RESOURCES,Resources,20242,Communications-Phones,D2621,Telephones,26.00,KCOM Group Plc,Telephones - KCOM Smartnumber Charges,2025938,202104
Rother District Council,01/07/2021,091HOUSING,Housing and Community Services,20107,Camber Beach & Foreshore,D2621,Telephones,50.95,Beaming Ltd,Telephones - Broadband Connection,2026489,202105
Rother District Council,01/07/2021,081ACQUISIT,"Acquisitions, Transformation and Regeneration",20148,Misc Land & Buildings,B1100,Repairs to Premises,343.46,Alfa Electric Ltd,Repairs to Premises - Repairs - Electrical Works,2026026,202104
Rother District Council,01/07/2021,091HOUSING,Housing and Community Services,20124,Churchyards,B1100,Repairs to Premises,2.85,Parker Building Supplies Ltd,Repairs to Premises - Purchase of Materials - Build Maint,2025885,202104
Rother District Council,01/07/2021,091HOUSING,Housing and Community Services,20124,Churchyards,B1100,Repairs to Premises,39.90,Parker Building Supplies Ltd,Repairs to Premises - Purchase of Materials - Build Maint,2025894,202104
Rother District Council,01/07/2021,091HOUSING,Housing and Community Services,20107,Camber Beach & Foreshore,B1100,Repairs to Premises,57.40,Parker Building Supplies Ltd,Repairs to Premises - Purchase of Materials - Build Maint,2025884,202104
Rother District Council,01/07/2021,031RESOURCES,Chief Executive & Corporate Core,20175,Administrative Offices - T.H. Annex (NOT CHP),D2513,Hired and Contracted services,479.16,ADT Fire and  Security Plc,Repairs to Premises - Intruder Alarm System Monitor/Maint,2026103,202104
Rother District Council,01/07/2021,101RESOURCES,Resources,20242,Communications-Phones,D2622,Mobile Phones,780.78,Telefonica UK Ltd,Mobile Phones - Purchase of mobile phones,2025827,202104
Rother District Council,01/07/2021,091HOUSING,Housing and Community Services,20206,UK Resettlement (Syrians),D2513,Hired and Contracted services,945.19,REDACTED PERSONAL DATA,Hired and contracted services - Syrian Resettlement Programme-Rent,2025790,202104
Rother District Council,01/07/2021,091HOUSING,Housing and Community Services,20206,UK Resettlement (Syrians),D2513,Hired and Contracted services,"1,000.00",REDACTED PERSONAL DATA,Hired and contracted services - Syrian Resettlement Programme-Rent,2025926,202104
Rother District Council,01/07/2021,101RESOURCES,Resources,20209,Corporate management,D2513,Hired and Contracted services,20.09,Merchant Rentals Ltd,Hired and contracted services - Streamline Machine-Rental,2025794,202104
Rother District Council,01/07/2021,091HOUSING,Housing and Community Services,20108,Bexhill Promenade & Foreshore,B1100,Repairs to Premises,100.00,Meridian Toilet Hire,Hired and contracted services - Service fee paid,2026182,202104
Rother District Council,01/07/2021,031RESOURCES,Chief Executive & Corporate Core,20176,Administrative Offices - Print Room,D2513,Hired and Contracted services,262.65,Clearwater Technology Ltd,Hired and contracted services - Legionella Sampling and Monitoring,2026218,202104
Rother District Council,01/07/2021,031RESOURCES,Chief Executive & Corporate Core,20173,Administrative Offices - Town Hall,D2513,Hired and Contracted services,262.65,Clearwater Technology Ltd,Hired and contracted services - Legionella Sampling and Monitoring,2026218,202104
Rother District Council,01/07/2021,041ENVIRON,Environmental Services,32143,EH Licenses and Registration R + W Partnership,D2513,Hired and Contracted services,"1,087.95",REDACTED PERSONAL DATA,Hired and contracted services - EnvH-Veterinary Services for Licens,2025989,202104
Rother District Council,01/07/2021,041ENVIRON,Environmental Services,32143,EH Licenses and Registration R + W Partnership,D2513,Hired and Contracted services,"1,200.00",Fairfield House Veterinary Surgery,Hired and contracted services - EnvH-Veterinary Services for Licens,2026352,202105
Rother District Council,01/07/2021,101RESOURCES,Resources,20209,Corporate management,D2513,Hired and Contracted services,455.00,Her Majestys Court Service,Hired and contracted services - Court Costs/Fees,2026513,202105
Rother District Council,01/07/2021,091HOUSING,Housing and Community Services,20137,Car Parks,D2513,Hired and Contracted services,"6,419.08",Park Now Ltd,Hired and contracted services - Car Parks-RingGo service charges,2026008,202104
Rother District Council,01/07/2021,101RESOURCES,Resources,20219,Support To Elect Bodies/Grant,D2923,Grants made,"9,500.00",Rother Voluntary Action,Grants made - SLA Contribution,2025773,202104
Rother District Council,01/07/2021,041ENVIRON,Environmental Services,32134,EH Pollution R + W Partnership,D1201,Equipment & Materials,"1,950.00",AECOM Ltd,Equipment & Materials - EnvH- Air Quality Maintenance Contr,2025780,202104
Rother District Council,01/07/2021,091HOUSING,Housing and Community Services,20261,"TA Purchases (prev - 41 Jameson Mews, Bexhill on Sea)",B2201,Electricity,48.11,British Gas Business (600 Accounts only),Electricity - Electricity Charges,2025932,202104
Rother District Council,01/07/2021,091HOUSING,Housing and Community Services,20128,Public Conveniences,B2611,Contract cleaning,572.25,Specialist Hygiene Services Ltd,Contract cleaning - Public Conveniences Cleaning Servic,2026050,202104
Rother District Council,01/07/2021,091HOUSING,Housing and Community Services,20128,Public Conveniences,B2611,Contract cleaning,846.92,Specialist Hygiene Services Ltd,Contract cleaning - Public Conveniences Cleaning Servic,2026050,202104
Rother District Council,01/07/2021,091HOUSING,Housing and Community Services,20128,Public Conveniences,B2611,Contract cleaning,749.14,Specialist Hygiene Services Ltd,Contract cleaning - Public Conveniences Cleaning Servic,2026050,202104
Rother District Council,01/07/2021,091HOUSING,Housing and Community Services,20128,Public Conveniences,B2611,Contract cleaning,197.66,Specialist Hygiene Services Ltd,Contract cleaning - Public Conveniences Cleaning Servic,2026050,202104
Rother District Council,01/07/2021,091HOUSING,Housing and Community Services,20128,Public Conveniences,B2611,Contract cleaning,705.72,Specialist Hygiene Services Ltd,Contract cleaning - Public Conveniences Cleaning Servic,2026050,202104
Rother District Council,01/07/2021,091HOUSING,Housing and Community Services,20128,Public Conveniences,B2611,Contract cleaning,508.15,Specialist Hygiene Services Ltd,Contract cleaning - Public Conveniences Cleaning Servic,2026050,202104
Rother District Council,01/07/2021,091HOUSING,Housing and Community Services,20128,Public Conveniences,B2611,Contract cleaning,846.92,Specialist Hygiene Services Ltd,Contract cleaning - Public Conveniences Cleaning Servic,2026050,202104
Rother District Council,01/07/2021,091HOUSING,Housing and Community Services,20128,Public Conveniences,B2611,Contract cleaning,508.15,Specialist Hygiene Services Ltd,Contract cleaning - Public Conveniences Cleaning Servic,2026050,202104
Rother District Council,01/07/2021,091HOUSING,Housing and Community Services,20128,Public Conveniences,B2611,Contract cleaning,620.99,Specialist Hygiene Services Ltd,Contract cleaning - Public Conveniences Cleaning Servic,2026050,202104
Rother District Council,01/07/2021,091HOUSING,Housing and Community Services,20128,Public Conveniences,B2611,Contract cleaning,282.30,Specialist Hygiene Services Ltd,Contract cleaning - Public Conveniences Cleaning Servic,2026050,202104
Rother District Council,01/07/2021,091HOUSING,Housing and Community Services,20128,Public Conveniences,B2611,Contract cleaning,338.77,Specialist Hygiene Services Ltd,Contract cleaning - Public Conveniences Cleaning Servic,2026050,202104
Rother District Council,01/07/2021,091HOUSING,Housing and Community Services,20128,Public Conveniences,B2611,Contract cleaning,592.80,Specialist Hygiene Services Ltd,Contract cleaning - Public Conveniences Cleaning Servic,2026050,202104
Rother District Council,01/07/2021,091HOUSING,Housing and Community Services,20128,Public Conveniences,B2611,Contract cleaning,536.34,Specialist Hygiene Services Ltd,Contract cleaning - Public Conveniences Cleaning Servic,2026050,202104
Rother District Council,01/07/2021,091HOUSING,Housing and Community Services,20128,Public Conveniences,B2611,Contract cleaning,254.04,Specialist Hygiene Services Ltd,Contract cleaning - Public Conveniences Cleaning Servic,2026050,202104
Rother District Council,01/07/2021,091HOUSING,Housing and Community Services,20128,Public Conveniences,B2611,Contract cleaning,564.53,Specialist Hygiene Services Ltd,Contract cleaning - Public Conveniences Cleaning Servic,2026050,202104
Rother District Council,01/07/2021,091HOUSING,Housing and Community Services,20128,Public Conveniences,B2611,Contract cleaning,310.49,Specialist Hygiene Services Ltd,Contract cleaning - Public Conveniences Cleaning Servic,2026050,202104
Rother District Council,01/07/2021,091HOUSING,Housing and Community Services,20128,Public Conveniences,B2611,Contract cleaning,508.15,Specialist Hygiene Services Ltd,Contract cleaning - Public Conveniences Cleaning Servic,2026050,202104
Rother District Council,01/07/2021,091HOUSING,Housing and Community Services,20128,Public Conveniences,B2611,Contract cleaning,748.62,Specialist Hygiene Services Ltd,Contract cleaning - Public Conveniences Cleaning Servic,2026050,202104
Rother District Council,01/07/2021,091HOUSING,Housing and Community Services,20128,Public Conveniences,B2611,Contract cleaning,"1,225.44",Specialist Hygiene Services Ltd,Contract cleaning - Public Conveniences Cleaning Servic,2026050,202104
Rother District Council,01/07/2021,091HOUSING,Housing and Community Services,20128,Public Conveniences,B2611,Contract cleaning,476.73,Specialist Hygiene Services Ltd,Contract cleaning - Public Conveniences Cleaning Servic,2026050,202104
Rother District Council,01/07/2021,091HOUSING,Housing and Community Services,20128,Public Conveniences,B2611,Contract cleaning,935.68,Specialist Hygiene Services Ltd,Contract cleaning - Public Conveniences Cleaning Servic,2026050,202104
Rother District Council,01/07/2021,091HOUSING,Housing and Community Services,20128,Public Conveniences,B2611,Contract cleaning,"1,241.33",Specialist Hygiene Services Ltd,Contract cleaning - Public Conveniences Cleaning Servic,2026050,202104
Rother District Council,01/07/2021,091HOUSING,Housing and Community Services,20128,Public Conveniences,B2611,Contract cleaning,"1,241.33",Specialist Hygiene Services Ltd,Contract cleaning - Public Conveniences Cleaning Servic,2026050,202104
Rother District Council,01/07/2021,091HOUSING,Housing and Community Services,20128,Public Conveniences,B2611,Contract cleaning,"1,765.33",Specialist Hygiene Services Ltd,Contract cleaning - Public Conveniences Cleaning Servic,2026050,202104
Rother District Council,01/07/2021,091HOUSING,Housing and Community Services,20128,Public Conveniences,B2611,Contract cleaning,293.07,Specialist Hygiene Services Ltd,Contract cleaning - Public Conveniences Cleaning Servic,2026050,202104
Rother District Council,01/07/2021,091HOUSING,Housing and Community Services,20128,Public Conveniences,B2611,Contract cleaning,390.85,Specialist Hygiene Services Ltd,Contract cleaning - Public Conveniences Cleaning Servic,2026050,202104
Rother District Council,01/07/2021,091HOUSING,Housing and Community Services,20128,Public Conveniences,B2611,Contract cleaning,326.58,Specialist Hygiene Services Ltd,Contract cleaning - Public Conveniences Cleaning Servic,2026050,202104
Rother District Council,01/07/2021,091HOUSING,Housing and Community Services,20128,Public Conveniences,B2611,Contract cleaning,358.29,Specialist Hygiene Services Ltd,Contract cleaning - Public Conveniences Cleaning Servic,2026050,202104
Rother District Council,01/07/2021,091HOUSING,Housing and Community Services,20128,Public Conveniences,B2611,Contract cleaning,390.85,Specialist Hygiene Services Ltd,Contract cleaning - Public Conveniences Cleaning Servic,2026050,202104
Rother District Council,01/07/2021,091HOUSING,Housing and Community Services,20128,Public Conveniences,B2611,Contract cleaning,293.07,Specialist Hygiene Services Ltd,Contract cleaning - Public Conveniences Cleaning Servic,2026050,202104
Rother District Council,01/07/2021,071STRAT,Strategy and Planning,20246,Planning Applications,D2509,Consultants and Other Services,750.00,Rural Planning Ltd,Consultants and other services - Consultants Fees,2025772,202104
Rother District Council,01/07/2021,101RESOURCES,Resources,20239,Computer Services,D2635,Computer Licences,"7,500.00",Protocol Policy Systems Ltd,Computer Licences - Computer Licence Renewal,2026028,202104
Rother District Council,01/07/2021,031RESOURCES,Chief Executive & Corporate Core,20175,Administrative Offices - T.H. Annex (NOT CHP),B2612,Cleaning materials,148.03,Wightman and Parrish Ltd,Cleaning materials - Premises,2025781,202104
Rother District Council,01/07/2021,101RESOURCES,Resources,20209,Corporate management,D2513,Hired and Contracted services,"1,073.92",Lloyds Bank,Bank Charges,2026492,202105
Rother District Council,01/07/2021,101RESOURCES,Resources,20209,Corporate management,D2513,Hired and Contracted services,"1,254.22",Lloyds Bank,Bank Charges,2026493,202105
Rother District Council,01/07/2021,101RESOURCES,Resources,20209,Corporate management,D2513,Hired and Contracted services,6.40,Lloyds Bank,Bank Charges,2026493,202105
Rother District Council,01/07/2021,101RESOURCES,Resources,20209,Corporate management,D2513,Hired and Contracted services,"2,213.74",Lloyds Bank,Bank Charges,2026494,202105
Rother District Council,01/07/2021,101RESOURCES,Resources,20209,Corporate management,D2513,Hired and Contracted services,20.00,Lloyds Bank,Bank Charges,2026495,202105
Rother District Council,01/07/2021,101RESOURCES,Resources,20209,Corporate management,D2513,Hired and Contracted services,20.00,Lloyds Bank,Bank Charges,2026496,202105
Rother District Council,01/07/2021,101RESOURCES,Resources,20209,Corporate management,D2513,Hired and Contracted services,41.81,Lloyds Bank,Bank Charges,2026497,202105
Rother District Council,01/07/2021,101RESOURCES,Resources,20209,Corporate management,D2513,Hired and Contracted services,20.00,Lloyds Bank,Bank Charges,2026498,202105
Rother District Council,01/07/2021,101RESOURCES,Resources,20209,Corporate management,D2513,Hired and Contracted services,20.00,Lloyds Bank,Bank Charges,2026499,202105
Rother District Council,01/07/2021,101RESOURCES,Resources,20209,Corporate management,D2513,Hired and Contracted services,20.00,Lloyds Bank,Bank Charges,2026500,202105
Rother District Council,01/07/2021,101RESOURCES,Resources,20209,Corporate management,D2513,Hired and Contracted services,20.00,Lloyds Bank,Bank Charges,2026501,202105
Rother District Council,01/07/2021,071STRAT,Strategy and Planning,20254,Planning Dept E-Government,D2632,Additional Computer Equipment,"1,741.69",Ocella Ltd,Additional Computer Equipment - OCELLA Amendments/Upgrading,2025779,202104
Rother District Council,01/07/2021,091HOUSING,Housing and Community Services,20200,Housing Needs - HB (Housing Benefit),D2514,Accommodation Costs,"1,380.00",Paramount Independent Property Services LLP,Accommodation Costs - RRP - Homelessness services Temp Accom - No VAT,2025828,202104
Rother District Council,01/07/2021,091HOUSING,Housing and Community Services,20200,Housing Needs - HB (Housing Benefit),D2514,Accommodation Costs,"7,500.00",Paramount Independent Property Services LLP,Accommodation Costs - Homelessness services Temp Accom - No VAT,2025848,202104
Rother District Council,01/07/2021,031RESOURCES,Chief Executive & Corporate Core,20180,Emergency Planning,D2621,Telephones,15.82,Daisy Communications PLC,Telephones,2025899,202104
Rother District Council,01/07/2021,041ENVIRON,Environmental Services,32134,EH Pollution R + W Partnership,D2621,Telephones,15.76,Daisy Communications PLC,Telephones,2025899,202104
Rother District Council,01/07/2021,091HOUSING,Housing and Community Services,20102,Rother Museum Services,D2621,Telephones,15.82,Daisy Communications PLC,Telephones,2025899,202104
Rother District Council,01/07/2021,091HOUSING,Housing and Community Services,20107,Camber Beach & Foreshore,D2621,Telephones,37.47,Daisy Communications PLC,Telephones,2025899,202104
Rother District Council,01/07/2021,091HOUSING,Housing and Community Services,20200,Housing Needs - HB (Housing Benefit),D2514,Accommodation Costs,"1,950.00",Paramount Independent Property Services LLP,Accommodation Costs,2025828,202104
Rother District Council,01/07/2021,091HOUSING,Housing and Community Services,20200,Housing Needs - HB (Housing Benefit),D2514,Accommodation Costs,"1,950.00",Paramount Independent Property Services LLP,Accommodation Costs,2025828,202104
Rother District Council,01/07/2021,091HOUSING,Housing and Community Services,20200,Housing Needs - HB (Housing Benefit),D2514,Accommodation Costs,"1,410.00",Paramount Independent Property Services LLP,Accommodation Costs,2025828,202104
Rother District Council,01/07/2021,091HOUSING,Housing and Community Services,20200,Housing Needs - HB (Housing Benefit),D2514,Accommodation Costs,"1,950.00",Paramount Independent Property Services LLP,Accommodation Costs,2025828,202104
Rother District Council,01/07/2021,091HOUSING,Housing and Community Services,20200,Housing Needs - HB (Housing Benefit),D2514,Accommodation Costs,66.00,Paramount Independent Property Services LLP,Accommodation Costs,2025828,202104
Rother District Council,01/07/2021,091HOUSING,Housing and Community Services,20200,Housing Needs - HB (Housing Benefit),D2514,Accommodation Costs,156.00,Paramount Independent Property Services LLP,Accommodation Costs,2025828,202104
Rother District Council,01/07/2021,091HOUSING,Housing and Community Services,20200,Housing Needs - HB (Housing Benefit),D2514,Accommodation Costs,96.00,Paramount Independent Property Services LLP,Accommodation Costs,2025828,202104
Rother District Council,01/07/2021,091HOUSING,Housing and Community Services,20329,Rough Sleeping Initiative,D2514,Accommodation Costs,"1,140.00",Paramount Independent Property Services LLP,Accommodation Costs,2025828,202104
Rother District Council,01/07/2021,091HOUSING,Housing and Community Services,20329,Rough Sleeping Initiative,D2514,Accommodation Costs,"1,410.00",Paramount Independent Property Services LLP,Accommodation Costs,2025828,202104
Rother District Council,01/07/2021,091HOUSING,Housing and Community Services,20329,Rough Sleeping Initiative,D2514,Accommodation Costs,"1,410.00",Paramount Independent Property Services LLP,Accommodation Costs,2025828,202104
Rother District Council,01/07/2021,091HOUSING,Housing and Community Services,20329,Rough Sleeping Initiative,D2514,Accommodation Costs,"1,170.00",Paramount Independent Property Services LLP,Accommodation Costs,2025828,202104
Rother District Council,01/07/2021,091HOUSING,Housing and Community Services,20329,Rough Sleeping Initiative,D2514,Accommodation Costs,"1,140.00",Paramount Independent Property Services LLP,Accommodation Costs,2025828,202104
Rother District Council,01/07/2021,091HOUSING,Housing and Community Services,20329,Rough Sleeping Initiative,D2514,Accommodation Costs,"1,410.00",Paramount Independent Property Services LLP,Accommodation Costs,2025828,202104
Rother District Council,01/07/2021,091HOUSING,Housing and Community Services,20200,Housing Needs - HB (Housing Benefit),D2514,Accommodation Costs,"1,150.00",Imperial Portfolios Ltd,Accommodation Costs,2025817,202104
Rother District Council,01/07/2021,091HOUSING,Housing and Community Services,20200,Housing Needs - HB (Housing Benefit),D2514,Accommodation Costs,810.00,Imperial Portfolios Ltd,Accommodation Costs,2025817,202104
Rother District Council,01/07/2021,091HOUSING,Housing and Community Services,20200,Housing Needs - HB (Housing Benefit),D2508,Removals and Storage,80.00,Express Removals Worldwide Ltd,Removals and Storage,2025824,202104
Rother District Council,01/07/2021,091HOUSING,Housing and Community Services,20261,"TA Purchases (prev - 41 Jameson Mews, Bexhill on Sea)",D2513,Hired and Contracted services,79.00,Lets 2 Share Limited,Hired and Contracted services,2025829,202104
Rother District Council,01/07/2021,091HOUSING,Housing and Community Services,20200,Housing Needs - HB (Housing Benefit),D2514,Accommodation Costs,"1,350.00",REDACTED PERSONAL DATA,Accommodation Costs,2025837,202104
Rother District Council,01/07/2021,091HOUSING,Housing and Community Services,20200,Housing Needs - HB (Housing Benefit),D2508,Removals and Storage,135.00,1066 Removal Services,Removals and Storage,2026084,202104
Rother District Council,01/07/2021,101RESOURCES,Resources,20240,Printing Services,D2638,Photocopier Contracts,178.38,Canon (UK) Ltd,Photocopier Contracts,2025826,202104
Rother District Council,01/07/2021,101RESOURCES,Resources,20239,Computer Services,D2621,Telephones,31.64,Daisy Communications PLC,Telephones,2025899,202104
Rother District Council,01/07/2021,101RESOURCES,Resources,20242,Communications-Phones,D2621,Telephones,79.10,Daisy Communications PLC,Telephones,2025899,202104
Rother District Council,02/07/2021,101RESOURCES,Resources,20242,Communications-Phones,D2621,Telephones,26.90,TalkTalk Communications Ltd T/A TalkTalk Business,Telephones - Telephone Call Costs+Line Rental,2026514,202105
Rother District Council,02/07/2021,091HOUSING,Housing and Community Services,20114,Bexhill Parks & Open Spaces,B2422,Sewerage,385.00,CountyClean Environmental Services Ltd,Sewerage Parks- Emptying of Cesspit,2025862,202104
Rother District Council,02/07/2021,091HOUSING,Housing and Community Services,20114,Bexhill Parks & Open Spaces,B1100,Repairs to Premises,330.00,Ajays Construction Ltd,Repairs to Premises - Parks - Roofing Repairs,2025832,202104
Rother District Council,02/07/2021,091HOUSING,Housing and Community Services,20114,Bexhill Parks & Open Spaces,B1100,Repairs to Premises,175.00,Ajays Construction Ltd,Repairs to Premises -  Building Surveys and Inspection,2025831,202104
Rother District Council,02/07/2021,101RESOURCES,Resources,20216,Cost Of Collection,D2513,Hired and Contracted services,"1,028.40",DSI Billing Services Ltd,Postages - DSI Billing,2025850,202104
Rother District Council,02/07/2021,071STRAT,Strategy and Planning,20258,BC Dangerous Structures H+R Partnership,D2513,Hired and Contracted services,3.00,H M Land Registry,Hired and contracted services - Env H-Land Registry,2026504,202105
Rother District Council,02/07/2021,041ENVIRON,Environmental Services,32134,EH Pollution R + W Partnership,D2513,Hired and Contracted services,18.00,H M Land Registry,Hired and contracted services - Env H-Land Registry,2026504,202105
Rother District Council,02/07/2021,041ENVIRON,Environmental Services,32144,EH Environmental Services Admin R + W Partnership,D2513,Hired and Contracted services,6.00,H M Land Registry,Hired and contracted services - Env H-Land Registry,2026504,202105
Rother District Council,02/07/2021,071STRAT,Strategy and Planning,20246,Planning Applications,D2513,Hired and Contracted services,15.00,H M Land Registry,Hired and contracted services - Council Tax-Land Registry Enquiries,2026504,202105
Rother District Council,02/07/2021,101RESOURCES,Resources,20216,Cost Of Collection,D2513,Hired and Contracted services,15.00,H M Land Registry,Hired and contracted services - Council Tax-Land Registry Enquiries,2026504,202105
Rother District Council,02/07/2021,101RESOURCES,Resources,20239,Computer Services,D2635,Computer Licences,"2,106.50",NEC Software Solutions UK Ltd,Computer Licences - Maintenance/Upgrading of Software,2025893,202104
Rother District Council,02/07/2021,101RESOURCES,Resources,20239,Computer Services,D2631,Computer Equip Maintenance,"17,882.00",Ideal Networks Ltd,Computer Equip Maintenance - Maintenance of Network Equipment,2025865,202104
Rother District Council,02/07/2021,031RESOURCES,Chief Executive & Corporate Core,20175,Administrative Offices - T.H. Annex (NOT CHP),B2612,Cleaning materials,16.48,Wightman and Parrish Ltd,Cleaning materials - Premises,2025836,202104
Rother District Council,02/07/2021,101RESOURCES,Resources,20209,Corporate management,D2513,Hired and Contracted services,264.67,Capita Business Services Ltd,Bank Charges,2026491,202105
Rother District Council,02/07/2021,101RESOURCES,Resources,20222,Accountancy,A1110,Agency Staff,"12,730.00",Penna PLC,Agency Staff,2025843,202104
Rother District Council,02/07/2021,101RESOURCES,Resources,20239,Computer Services,D2632,Additional Computer Equipment,"6,250.00",Computacenter (UK) Ltd,Additional Computer Equipment - New PC/Computer,2025952,202104
Rother District Council,02/07/2021,021CORP,Corporate Services & Human Resources,20164,Parish Council Elections,D2626,Postages,-73.00,Royal Mail Group Ltd,Postages,2026009,202104
Rother District Council,02/07/2021,021CORP,Corporate Services & Human Resources,20165,ESCC Elections,D2626,Postages,-214.94,Royal Mail Group Ltd,Postages,2026009,202104
Rother District Council,02/07/2021,021CORP,Corporate Services & Human Resources,20168,Police Crime Commissioners,D2626,Postages,-257.93,Royal Mail Group Ltd,Postages,2026009,202104
Rother District Council,02/07/2021,031RESOURCES,Chief Executive & Corporate Core,20163,District Council Elections,D2626,Postages,-8.11,Royal Mail Group Ltd,Postages,2026009,202104
Rother District Council,02/07/2021,031RESOURCES,Chief Executive & Corporate Core,20288,COVID19 Test and Trace Discretionary Payments,D2923,Grants made,500.00,REDACTED PERSONAL DATA,Grants made,2025769,202104
Rother District Council,02/07/2021,031RESOURCES,Chief Executive & Corporate Core,20302,"COVID19 Restart Grant - Strand Two (Hospitality, Accommodation, Leisure, Personal care and Gyms businesses)",D2923,Grants made,"8,000.00",F+L Reeve,Grants made,2025767,202104
Rother District Council,02/07/2021,031RESOURCES,Chief Executive & Corporate Core,20302,"COVID19 Restart Grant - Strand Two (Hospitality, Accommodation, Leisure, Personal care and Gyms businesses)",D2923,Grants made,"8,000.00",Burwash Weald and Common Memorial Fund,Grants made,2025767,202104
Rother District Council,02/07/2021,031RESOURCES,Chief Executive & Corporate Core,20302,"COVID19 Restart Grant - Strand Two (Hospitality, Accommodation, Leisure, Personal care and Gyms businesses)",D2923,Grants made,"8,000.00",Joy Barber of Battle,Grants made,2025767,202104
Rother District Council,02/07/2021,031RESOURCES,Chief Executive & Corporate Core,20302,"COVID19 Restart Grant - Strand Two (Hospitality, Accommodation, Leisure, Personal care and Gyms businesses)",D2923,Grants made,"8,000.00",Robertsbridge Retreat (Lower apartment),Grants made,2025767,202104
Rother District Council,02/07/2021,031RESOURCES,Chief Executive & Corporate Core,20302,"COVID19 Restart Grant - Strand Two (Hospitality, Accommodation, Leisure, Personal care and Gyms businesses)",D2923,Grants made,"8,000.00",NETHERFIELD VILLAGE HALL & PLAYING FIELD,Grants made,2025767,202104
Rother District Council,02/07/2021,031RESOURCES,Chief Executive & Corporate Core,20302,"COVID19 Restart Grant - Strand Two (Hospitality, Accommodation, Leisure, Personal care and Gyms businesses)",D2923,Grants made,"8,000.00",YouNique Wellobeinjg Studios,Grants made,2025767,202104
Rother District Council,02/07/2021,031RESOURCES,Chief Executive & Corporate Core,20282,COVID19 NHS Test and Trace Grant,D2923,Grants made,500.00,REDACTED PERSONAL DATA,Grants made,2025768,202104
Rother District Council,02/07/2021,031RESOURCES,Chief Executive & Corporate Core,20282,COVID19 NHS Test and Trace Grant,D2923,Grants made,500.00,REDACTED PERSONAL DATA,Grants made,2025768,202104
Rother District Council,02/07/2021,031RESOURCES,Chief Executive & Corporate Core,20282,COVID19 NHS Test and Trace Grant,D2923,Grants made,500.00,REDACTED PERSONAL DATA,Grants made,2025768,202104
Rother District Council,02/07/2021,031RESOURCES,Chief Executive & Corporate Core,20282,COVID19 NHS Test and Trace Grant,D2923,Grants made,500.00,REDACTED PERSONAL DATA,Grants made,2025768,202104
Rother District Council,02/07/2021,031RESOURCES,Chief Executive & Corporate Core,20282,COVID19 NHS Test and Trace Grant,D2923,Grants made,500.00,REDACTED PERSONAL DATA,Grants made,2025768,202104
Rother District Council,02/07/2021,031RESOURCES,Chief Executive & Corporate Core,20303,COVID19 Restart Grant - Additional Restrictions Grant (ARG),D2923,Grants made,500.00,Angel Belle Beauty & Spa,Grants made,2025765,202104
Rother District Council,02/07/2021,031RESOURCES,Chief Executive & Corporate Core,20303,COVID19 Restart Grant - Additional Restrictions Grant (ARG),D2923,Grants made,"8,000.00",Self contained annex,Grants made,2025765,202104
Rother District Council,02/07/2021,031RESOURCES,Chief Executive & Corporate Core,20303,COVID19 Restart Grant - Additional Restrictions Grant (ARG),D2923,Grants made,"8,000.00",F+L Reeve,Grants made,2025765,202104
Rother District Council,02/07/2021,031RESOURCES,Chief Executive & Corporate Core,20303,COVID19 Restart Grant - Additional Restrictions Grant (ARG),D2923,Grants made,"2,667.00",Lady Penelope hair and beauty salon,Grants made,2025765,202104
Rother District Council,02/07/2021,031RESOURCES,Chief Executive & Corporate Core,20303,COVID19 Restart Grant - Additional Restrictions Grant (ARG),D2923,Grants made,"2,667.00",MEA CONSULTANTS LTD,Grants made,2025765,202104
Rother District Council,02/07/2021,031RESOURCES,Chief Executive & Corporate Core,20303,COVID19 Restart Grant - Additional Restrictions Grant (ARG),D2923,Grants made,"8,906.93",Joy Barber of Battle,Grants made,2025765,202104
Rother District Council,02/07/2021,031RESOURCES,Chief Executive & Corporate Core,20301,COVID19 Restart Grant - Strand One (Non Essential Retail),D2923,Grants made,"2,667.00",St Michaels Hospice Retail,Grants made,2025766,202104
Rother District Council,02/07/2021,031RESOURCES,Chief Executive & Corporate Core,20301,COVID19 Restart Grant - Strand One (Non Essential Retail),D2923,Grants made,"2,667.00",chapel rjouge,Grants made,2025766,202104
Rother District Council,02/07/2021,031RESOURCES,Chief Executive & Corporate Core,20301,COVID19 Restart Grant - Strand One (Non Essential Retail),D2923,Grants made,"2,667.00",White Sails,Grants made,2025766,202104
Rother District Council,02/07/2021,031RESOURCES,Chief Executive & Corporate Core,20301,COVID19 Restart Grant - Strand One (Non Essential Retail),D2923,Grants made,"2,667.00",Bexhill Evangelical Book Centre,Grants made,2025766,202104
Rother District Council,02/07/2021,031RESOURCES,Chief Executive & Corporate Core,20301,COVID19 Restart Grant - Strand One (Non Essential Retail),D2923,Grants made,"2,667.00",Thingamejigz,Grants made,2025766,202104
Rother District Council,02/07/2021,031RESOURCES,Chief Executive & Corporate Core,20301,COVID19 Restart Grant - Strand One (Non Essential Retail),D2923,Grants made,"4,000.00",Denis Parkinson Carpets,Grants made,2025766,202104
Rother District Council,02/07/2021,031RESOURCES,Chief Executive & Corporate Core,20301,COVID19 Restart Grant - Strand One (Non Essential Retail),D2923,Grants made,"4,000.00",WATERSTONES BOOKSELLERS LIMITED,Grants made,2025766,202104
Rother District Council,02/07/2021,031RESOURCES,Chief Executive & Corporate Core,20301,COVID19 Restart Grant - Strand One (Non Essential Retail),D2923,Grants made,"4,000.00",RAINBOWSUNDOGS LIMITED,Grants made,2025766,202104
Rother District Council,02/07/2021,031RESOURCES,Chief Executive & Corporate Core,20301,COVID19 Restart Grant - Strand One (Non Essential Retail),D2923,Grants made,"2,667.00",Keiths Collectables,Grants made,2025766,202104
Rother District Council,02/07/2021,031RESOURCES,Chief Executive & Corporate Core,20301,COVID19 Restart Grant - Strand One (Non Essential Retail),D2923,Grants made,"2,667.00",La Collina Gardens,Grants made,2025766,202104
Rother District Council,02/07/2021,031RESOURCES,Chief Executive & Corporate Core,20301,COVID19 Restart Grant - Strand One (Non Essential Retail),D2923,Grants made,"2,667.00",Six Six Twelve Organics,Grants made,2025766,202104
Rother District Council,02/07/2021,081ACQUISIT,"Acquisitions, Transformation and Regeneration",20153,"Elva Business Centre, Bexhill",D1206,Furniture & Fittings,470.83,Kileys Contract Flooring Ltd t/a Kileys Karpets,Furniture & Fittings,2026242,202105
Rother District Council,02/07/2021,091HOUSING,Housing and Community Services,20329,Rough Sleeping Initiative,D2514,Accommodation Costs,413.00,Lillybank Homes Ltd,Accommodation Costs,2025838,202104
Rother District Council,02/07/2021,091HOUSING,Housing and Community Services,20329,Rough Sleeping Initiative,D2514,Accommodation Costs,413.00,Lillybank Homes Ltd,Accommodation Costs,2025838,202104
Rother District Council,02/07/2021,091HOUSING,Housing and Community Services,20200,Housing Needs - HB (Housing Benefit),D2514,Accommodation Costs,332.50,Lillybank Homes Ltd,Accommodation Costs,2025838,202104
Rother District Council,02/07/2021,091HOUSING,Housing and Community Services,20200,Housing Needs - HB (Housing Benefit),D2514,Accommodation Costs,455.00,Lillybank Homes Ltd,Accommodation Costs,2025838,202104
Rother District Council,02/07/2021,091HOUSING,Housing and Community Services,20200,Housing Needs - HB (Housing Benefit),D2514,Accommodation Costs,455.00,Lillybank Homes Ltd,Accommodation Costs,2025838,202104
Rother District Council,02/07/2021,091HOUSING,Housing and Community Services,20200,Housing Needs - HB (Housing Benefit),D2514,Accommodation Costs,24.99,Lillybank Homes Ltd,Accommodation Costs,2025838,202104
Rother District Council,02/07/2021,091HOUSING,Housing and Community Services,20200,Housing Needs - HB (Housing Benefit),D2514,Accommodation Costs,455.00,Lillybank Homes Ltd,Accommodation Costs,2025838,202104
Rother District Council,02/07/2021,091HOUSING,Housing and Community Services,20200,Housing Needs - HB (Housing Benefit),D2514,Accommodation Costs,413.00,Lillybank Homes Ltd,Accommodation Costs,2025838,202104
Rother District Council,02/07/2021,091HOUSING,Housing and Community Services,20200,Housing Needs - HB (Housing Benefit),D2514,Accommodation Costs,455.00,Lillybank Homes Ltd,Accommodation Costs,2025838,202104
Rother District Council,02/07/2021,091HOUSING,Housing and Community Services,20200,Housing Needs - HB (Housing Benefit),D2514,Accommodation Costs,507.50,Lillybank Homes Ltd,Accommodation Costs,2025838,202104
Rother District Council,03/07/2021,091HOUSING,Housing and Community Services,20107,Camber Beach & Foreshore,B1100,Repairs to Premises,962.50,REDACTED PERSONAL DATA,Repairs to Premises - Beach maintenance,2025878,202104
Rother District Council,03/07/2021,091HOUSING,Housing and Community Services,20304,Housing First,D2513,Hired and Contracted services,646.62,A&A Cleaning & Property Services Ltd,Hired and contracted services - Service fee paid,2025996,202104
Rother District Council,03/07/2021,091HOUSING,Housing and Community Services,20145,Maintenance Services,D2352,Clothing and Uniforms,65.94,SuperStitch 86,Clothing and Uniforms - Mens Protective-Other,2025833,202104
Rother District Council,04/07/2021,071STRAT,Strategy and Planning,20246,Planning Applications,D2519,Statutory Advertising,307.80,Reach Publishing Services Ltd,Statutory Advertising - Planadv-Kent+East Sussex Courier,2025925,202104
Rother District Council,04/07/2021,091HOUSING,Housing and Community Services,20329,Rough Sleeping Initiative,D2514,Accommodation Costs,385.00,REDACTED PERSONAL DATA,Accommodation Costs,2025846,202104
Rother District Council,04/07/2021,091HOUSING,Housing and Community Services,20329,Rough Sleeping Initiative,D2514,Accommodation Costs,350.00,REDACTED PERSONAL DATA,Accommodation Costs,2025846,202104
Rother District Council,04/07/2021,091HOUSING,Housing and Community Services,20329,Rough Sleeping Initiative,D2514,Accommodation Costs,385.00,REDACTED PERSONAL DATA,Accommodation Costs,2025846,202104
Rother District Council,04/07/2021,091HOUSING,Housing and Community Services,20329,Rough Sleeping Initiative,D2514,Accommodation Costs,350.00,REDACTED PERSONAL DATA,Accommodation Costs,2025846,202104
Rother District Council,04/07/2021,091HOUSING,Housing and Community Services,20329,Rough Sleeping Initiative,D2514,Accommodation Costs,385.00,REDACTED PERSONAL DATA,Accommodation Costs,2025846,202104
Rother District Council,04/07/2021,091HOUSING,Housing and Community Services,20329,Rough Sleeping Initiative,D2514,Accommodation Costs,350.00,REDACTED PERSONAL DATA,Accommodation Costs,2025846,202104
Rother District Council,04/07/2021,091HOUSING,Housing and Community Services,20329,Rough Sleeping Initiative,D2514,Accommodation Costs,385.00,REDACTED PERSONAL DATA,Accommodation Costs,2025847,202104
Rother District Council,04/07/2021,091HOUSING,Housing and Community Services,20329,Rough Sleeping Initiative,D2514,Accommodation Costs,350.00,REDACTED PERSONAL DATA,Accommodation Costs,2025847,202104
Rother District Council,04/07/2021,091HOUSING,Housing and Community Services,20329,Rough Sleeping Initiative,D2514,Accommodation Costs,385.00,REDACTED PERSONAL DATA,Accommodation Costs,2025847,202104
Rother District Council,04/07/2021,091HOUSING,Housing and Community Services,20329,Rough Sleeping Initiative,D2514,Accommodation Costs,350.00,REDACTED PERSONAL DATA,Accommodation Costs,2025847,202104
Rother District Council,04/07/2021,091HOUSING,Housing and Community Services,20329,Rough Sleeping Initiative,D2514,Accommodation Costs,385.00,REDACTED PERSONAL DATA,Accommodation Costs,2025847,202104
Rother District Council,04/07/2021,091HOUSING,Housing and Community Services,20329,Rough Sleeping Initiative,D2514,Accommodation Costs,350.00,REDACTED PERSONAL DATA,Accommodation Costs,2025847,202104
Rother District Council,04/07/2021,091HOUSING,Housing and Community Services,20200,Housing Needs - HB (Housing Benefit),D2514,Accommodation Costs,48.00,Eastbourne Housing Ltd,Accommodation Costs,2025849,202104
Rother District Council,05/07/2021,091HOUSING,Housing and Community Services,20102,Rother Museum Services,B1100,Repairs to Premises,129.51,Stannah Lift Services Ltd,Repairs to Premises - Specified Repairs and Works listed,2026104,202104
Rother District Council,05/07/2021,091HOUSING,Housing and Community Services,20108,Bexhill Promenade & Foreshore,B1100,Repairs to Premises,43.84,Saint-Gobain Building Distribution Ltd t/a Jewson,Repairs to Premises - Purchase of Materials - Build Maint,2026212,202104
Rother District Council,05/07/2021,091HOUSING,Housing and Community Services,20138,Residual Highway Services,B1100,Repairs to Premises,29.99,Trade UK Account (Screwfix & B&Q),Repairs to Premises - Purchase of Materials - Build Maint,2025979,202104
Rother District Council,05/07/2021,091HOUSING,Housing and Community Services,20114,Bexhill Parks & Open Spaces,B1100,Repairs to Premises,96.25,Streetlights,Repairs to Premises - Lighting Repairs,2026190,202104
Rother District Council,05/07/2021,091HOUSING,Housing and Community Services,20206,UK Resettlement (Syrians),D2513,Hired and Contracted services,"1,768.00",Ace Flooring Solutions Ltd,Hired and contracted services - Syrian Misc,2025904,202104
Rother District Council,05/07/2021,091HOUSING,Housing and Community Services,20261,"TA Purchases (prev - 41 Jameson Mews, Bexhill on Sea)",D2513,Hired and Contracted services,25.43,Lets 2 Share Limited,Hired and contracted services - Service fee paid,2025841,202104
Rother District Council,05/07/2021,091HOUSING,Housing and Community Services,20261,"TA Purchases (prev - 41 Jameson Mews, Bexhill on Sea)",D2513,Hired and Contracted services,25.43,Lets 2 Share Limited,Hired and contracted services - Service fee paid,2025841,202104
Rother District Council,05/07/2021,091HOUSING,Housing and Community Services,20261,"TA Purchases (prev - 41 Jameson Mews, Bexhill on Sea)",D2513,Hired and Contracted services,25.43,Lets 2 Share Limited,Hired and contracted services - Service fee paid,2025841,202104
Rother District Council,05/07/2021,091HOUSING,Housing and Community Services,20261,"TA Purchases (prev - 41 Jameson Mews, Bexhill on Sea)",D2513,Hired and Contracted services,25.43,Lets 2 Share Limited,Hired and contracted services - Service fee paid,2025841,202104
Rother District Council,05/07/2021,091HOUSING,Housing and Community Services,20261,"TA Purchases (prev - 41 Jameson Mews, Bexhill on Sea)",D2513,Hired and Contracted services,25.43,Lets 2 Share Limited,Hired and contracted services - Service fee paid,2025841,202104
Rother District Council,05/07/2021,091HOUSING,Housing and Community Services,20304,Housing First,D2513,Hired and Contracted services,119.25,Lets 2 Share Limited,Hired and contracted services - Service fee paid,2025842,202104
Rother District Council,05/07/2021,091HOUSING,Housing and Community Services,20109,Sports Development,D2923,Grants made,324.00,REDACTED PERSONAL DATA,Grants made - Sports Development -SPORT ENGLAND Project,2025854,202104
Rother District Council,05/07/2021,091HOUSING,Housing and Community Services,20261,"TA Purchases (prev - 41 Jameson Mews, Bexhill on Sea)",B2202,Gas,35.23,British Gas Trading Ltd (Residential),Gas - Gas Charges,2026105,202104
Rother District Council,05/07/2021,091HOUSING,Housing and Community Services,20261,"TA Purchases (prev - 41 Jameson Mews, Bexhill on Sea)",B2201,Electricity,89.28,British Gas Trading Ltd (Residential),Electricity - Electricity Charges,2026105,202104
Rother District Council,05/07/2021,091HOUSING,Housing and Community Services,20304,Housing First,B2201,Electricity,163.66,EON Next,Electricity - Electricity Charges,2026380,202105
Rother District Council,05/07/2021,999NOREPORT,Housing and Community Services,70718,Capital - Sidley Recreation Ground,N1003,Construction/Conversion,92.00,Costain Ltd,Construction/Conversion Capital-Contract Payments - General,2025868,202104
Rother District Council,05/07/2021,101RESOURCES,Resources,20209,Corporate management,D2513,Hired and Contracted services,84.00,Lloyds Bank,Bank Charges,2026531,202105
Rother District Council,05/07/2021,999NOREPORT,"Acquisitions, Transformation and Regeneration",70737,Capital � Barnhorn Green,N1004,Architects & Consultant Fees,99.00,Ambiental Environmental Assessments Ltd,Architects & Consultant Fees Capital-Architect and Conslt Fees,2025908,202104
Rother District Council,05/07/2021,031RESOURCES,Chief Executive & Corporate Core,20276,COVID19 RDC expenditure,D2514,Accommodation Costs,300.00,Roost People Ltd,Accomodation Costs - Housing Due to Covid 19 NoVAT,2025883,202104
Rother District Council,05/07/2021,031RESOURCES,Chief Executive & Corporate Core,20276,COVID19 RDC expenditure,D2514,Accommodation Costs,388.50,SDR Living Ltd,Accomodation Costs - Housing Due to Covid 19,2025864,202105
Rother District Council,05/07/2021,031RESOURCES,Chief Executive & Corporate Core,20276,COVID19 RDC expenditure,D2514,Accommodation Costs,246.00,SDR Living Ltd,Accomodation Costs - Housing Due to Covid 19,2025864,202105
Rother District Council,05/07/2021,031RESOURCES,Chief Executive & Corporate Core,20276,COVID19 RDC expenditure,D2514,Accommodation Costs,330.40,SDR Living Ltd,Accomodation Costs - Housing Due to Covid 19,2025864,202105
Rother District Council,05/07/2021,031RESOURCES,Chief Executive & Corporate Core,20276,COVID19 RDC expenditure,D2514,Accommodation Costs,82.60,SDR Living Ltd,Accomodation Costs - Housing Due to Covid 19,2025864,202105
Rother District Council,05/07/2021,091HOUSING,Housing and Community Services,20200,Housing Needs - HB (Housing Benefit),D2514,Accommodation Costs,310.80,SDR Living Ltd,Accommodation Costs,2025864,202105
Rother District Council,05/07/2021,091HOUSING,Housing and Community Services,20200,Housing Needs - HB (Housing Benefit),D2514,Accommodation Costs,77.70,SDR Living Ltd,Accommodation Costs,2025864,202105
Rother District Council,05/07/2021,091HOUSING,Housing and Community Services,20200,Housing Needs - HB (Housing Benefit),D2514,Accommodation Costs,310.80,SDR Living Ltd,Accommodation Costs,2025864,202105
Rother District Council,05/07/2021,091HOUSING,Housing and Community Services,20200,Housing Needs - HB (Housing Benefit),D2514,Accommodation Costs,77.70,SDR Living Ltd,Accommodation Costs,2025864,202105
Rother District Council,05/07/2021,091HOUSING,Housing and Community Services,20200,Housing Needs - HB (Housing Benefit),D2514,Accommodation Costs,196.80,SDR Living Ltd,Accommodation Costs,2025864,202105
Rother District Council,05/07/2021,091HOUSING,Housing and Community Services,20200,Housing Needs - HB (Housing Benefit),D2514,Accommodation Costs,49.20,SDR Living Ltd,Accommodation Costs,2025864,202105
Rother District Council,05/07/2021,091HOUSING,Housing and Community Services,20200,Housing Needs - HB (Housing Benefit),D2514,Accommodation Costs,98.40,SDR Living Ltd,Accommodation Costs,2025864,202105
Rother District Council,05/07/2021,091HOUSING,Housing and Community Services,20200,Housing Needs - HB (Housing Benefit),D2514,Accommodation Costs,24.60,SDR Living Ltd,Accommodation Costs,2025864,202105
Rother District Council,05/07/2021,091HOUSING,Housing and Community Services,20200,Housing Needs - HB (Housing Benefit),D2514,Accommodation Costs,10.00,SDR Living Ltd,Accommodation Costs,2025864,202105
Rother District Council,05/07/2021,091HOUSING,Housing and Community Services,20200,Housing Needs - HB (Housing Benefit),D2514,Accommodation Costs,151.20,SDR Living Ltd,Accommodation Costs,2025864,202105
Rother District Council,05/07/2021,091HOUSING,Housing and Community Services,20200,Housing Needs - HB (Housing Benefit),D2514,Accommodation Costs,37.80,SDR Living Ltd,Accommodation Costs,2025864,202105
Rother District Council,05/07/2021,091HOUSING,Housing and Community Services,20329,Rough Sleeping Initiative,D2514,Accommodation Costs,344.40,SDR Living Ltd,Accommodation Costs,2025864,202105
Rother District Council,05/07/2021,091HOUSING,Housing and Community Services,20329,Rough Sleeping Initiative,D2514,Accommodation Costs,86.10,SDR Living Ltd,Accommodation Costs,2025864,202105
Rother District Council,05/07/2021,091HOUSING,Housing and Community Services,20329,Rough Sleeping Initiative,D2514,Accommodation Costs,151.20,SDR Living Ltd,Accommodation Costs,2025864,202105
Rother District Council,05/07/2021,091HOUSING,Housing and Community Services,20329,Rough Sleeping Initiative,D2514,Accommodation Costs,37.80,SDR Living Ltd,Accommodation Costs,2025864,202105
Rother District Council,05/07/2021,091HOUSING,Housing and Community Services,20329,Rough Sleeping Initiative,D2514,Accommodation Costs,151.20,SDR Living Ltd,Accommodation Costs,2025864,202105
Rother District Council,05/07/2021,091HOUSING,Housing and Community Services,20329,Rough Sleeping Initiative,D2514,Accommodation Costs,37.80,SDR Living Ltd,Accommodation Costs,2025864,202105
Rother District Council,05/07/2021,091HOUSING,Housing and Community Services,20329,Rough Sleeping Initiative,D2514,Accommodation Costs,344.40,SDR Living Ltd,Accommodation Costs,2025864,202105
Rother District Council,05/07/2021,091HOUSING,Housing and Community Services,20329,Rough Sleeping Initiative,D2514,Accommodation Costs,86.10,SDR Living Ltd,Accommodation Costs,2025864,202105
Rother District Council,05/07/2021,091HOUSING,Housing and Community Services,20329,Rough Sleeping Initiative,D2514,Accommodation Costs,39.60,SDR Living Ltd,Accommodation Costs,2025864,202105
Rother District Council,05/07/2021,091HOUSING,Housing and Community Services,20329,Rough Sleeping Initiative,D2514,Accommodation Costs,9.90,SDR Living Ltd,Accommodation Costs,2025864,202105
Rother District Council,05/07/2021,091HOUSING,Housing and Community Services,20329,Rough Sleeping Initiative,D2514,Accommodation Costs,10.00,SDR Living Ltd,Accommodation Costs,2025864,202105
Rother District Council,05/07/2021,091HOUSING,Housing and Community Services,20329,Rough Sleeping Initiative,D2514,Accommodation Costs,151.20,SDR Living Ltd,Accommodation Costs,2025864,202105
Rother District Council,05/07/2021,091HOUSING,Housing and Community Services,20329,Rough Sleeping Initiative,D2514,Accommodation Costs,37.80,SDR Living Ltd,Accommodation Costs,2025864,202105
Rother District Council,05/07/2021,091HOUSING,Housing and Community Services,20329,Rough Sleeping Initiative,D2514,Accommodation Costs,346.50,SDR Living Ltd,Accommodation Costs,2025864,202105
Rother District Council,05/07/2021,091HOUSING,Housing and Community Services,20329,Rough Sleeping Initiative,D2514,Accommodation Costs,148.50,SDR Living Ltd,Accommodation Costs,2025864,202105
Rother District Council,05/07/2021,091HOUSING,Housing and Community Services,20200,Housing Needs - HB (Housing Benefit),D2514,Accommodation Costs,98.40,SDR Living Ltd,Accommodation Costs,2025864,202105
Rother District Council,05/07/2021,091HOUSING,Housing and Community Services,20200,Housing Needs - HB (Housing Benefit),D2514,Accommodation Costs,24.60,SDR Living Ltd,Accommodation Costs,2025864,202105
Rother District Council,05/07/2021,091HOUSING,Housing and Community Services,20200,Housing Needs - HB (Housing Benefit),D2514,Accommodation Costs,10.00,SDR Living Ltd,Accommodation Costs,2025864,202105
Rother District Council,05/07/2021,091HOUSING,Housing and Community Services,20200,Housing Needs - HB (Housing Benefit),D2514,Accommodation Costs,148.50,SDR Living Ltd,Accommodation Costs,2025864,202105
Rother District Council,05/07/2021,091HOUSING,Housing and Community Services,20200,Housing Needs - HB (Housing Benefit),D2514,Accommodation Costs,361.20,SDR Living Ltd,Accommodation Costs,2025864,202105
Rother District Council,05/07/2021,091HOUSING,Housing and Community Services,20200,Housing Needs - HB (Housing Benefit),D2514,Accommodation Costs,90.30,SDR Living Ltd,Accommodation Costs,2025864,202105
Rother District Council,05/07/2021,091HOUSING,Housing and Community Services,20329,Rough Sleeping Initiative,D2514,Accommodation Costs,"1,050.00",Specialist Care UK Group Ltd,Accommodation Costs,2025914,202104
Rother District Council,05/07/2021,091HOUSING,Housing and Community Services,20329,Rough Sleeping Initiative,D2514,Accommodation Costs,562.50,Specialist Care UK Group Ltd,Accommodation Costs,2025916,202104
Rother District Council,05/07/2021,091HOUSING,Housing and Community Services,20200,Housing Needs - HB (Housing Benefit),D2514,Accommodation Costs,712.50,Specialist Care UK Group Ltd,Accommodation Costs,2025913,202104
Rother District Council,05/07/2021,091HOUSING,Housing and Community Services,20329,Rough Sleeping Initiative,D2514,Accommodation Costs,"1,199.80",Specialist Care UK Group Ltd,Accommodation Costs,2025910,202104
Rother District Council,05/07/2021,091HOUSING,Housing and Community Services,20200,Housing Needs - HB (Housing Benefit),D2514,Accommodation Costs,"1,050.00",Specialist Care UK Group Ltd,Accommodation Costs,2025917,202104
Rother District Council,05/07/2021,091HOUSING,Housing and Community Services,20329,Rough Sleeping Initiative,D2514,Accommodation Costs,"1,400.00",Specialist Care UK Group Ltd,Accommodation Costs,2025912,202104
Rother District Council,05/07/2021,091HOUSING,Housing and Community Services,20329,Rough Sleeping Initiative,D2514,Accommodation Costs,400.00,Specialist Care UK Group Ltd,Accommodation Costs,2025915,202104
Rother District Council,05/07/2021,091HOUSING,Housing and Community Services,20329,Rough Sleeping Initiative,D2514,Accommodation Costs,"1,400.00",Specialist Care UK Group Ltd,Accommodation Costs,2025919,202104
Rother District Council,05/07/2021,091HOUSING,Housing and Community Services,20200,Housing Needs - HB (Housing Benefit),D2514,Accommodation Costs,"1,499.99",Specialist Care UK Group Ltd,Accommodation Costs,2025918,202104
Rother District Council,05/07/2021,091HOUSING,Housing and Community Services,20200,Housing Needs - HB (Housing Benefit),D2514,Accommodation Costs,"4,125.00",Specialist Care UK Group Ltd,Accommodation Costs,2025920,202104
Rother District Council,05/07/2021,091HOUSING,Housing and Community Services,20329,Rough Sleeping Initiative,D2514,Accommodation Costs,140.00,Savoy Court Hotel Ltd,Accommodation Costs,2025935,202104
Rother District Council,05/07/2021,091HOUSING,Housing and Community Services,20329,Rough Sleeping Initiative,D2514,Accommodation Costs,35.00,Savoy Court Hotel Ltd,Accommodation Costs,2025935,202104
Rother District Council,05/07/2021,091HOUSING,Housing and Community Services,20329,Rough Sleeping Initiative,D2514,Accommodation Costs,252.00,Savoy Court Hotel Ltd,Accommodation Costs,2025936,202104
Rother District Council,05/07/2021,091HOUSING,Housing and Community Services,20329,Rough Sleeping Initiative,D2514,Accommodation Costs,63.00,Savoy Court Hotel Ltd,Accommodation Costs,2025936,202104
Rother District Council,05/07/2021,091HOUSING,Housing and Community Services,20200,Housing Needs - HB (Housing Benefit),D2508,Removals and Storage,415.00,Stamford Storage Solutions,Removals and Storage,2025879,202104
Rother District Council,05/07/2021,091HOUSING,Housing and Community Services,20200,Housing Needs - HB (Housing Benefit),D2514,Accommodation Costs,315.00,PADA Hanlon Ltd,Accommodation Costs,2025869,202104
Rother District Council,05/07/2021,091HOUSING,Housing and Community Services,20200,Housing Needs - HB (Housing Benefit),D2514,Accommodation Costs,990.00,Key Property Solutions Guaranteed Ltd,Accommodation Costs,2025874,202104
Rother District Council,05/07/2021,091HOUSING,Housing and Community Services,20200,Housing Needs - HB (Housing Benefit),D2514,Accommodation Costs,415.00,47-48 Havelock Road Ltd,Accommodation Costs,2025861,202104
Rother District Council,05/07/2021,091HOUSING,Housing and Community Services,20329,Rough Sleeping Initiative,D2514,Accommodation Costs,390.00,REDACTED PERSONAL DATA,Accommodation Costs,2025881,202104
Rother District Council,05/07/2021,091HOUSING,Housing and Community Services,20200,Housing Needs - HB (Housing Benefit),D2514,Accommodation Costs,490.00,Key Property Solutions Guaranteed Ltd,Accommodation Costs,2025877,202104
Rother District Council,05/07/2021,091HOUSING,Housing and Community Services,20200,Housing Needs - HB (Housing Benefit),D2514,Accommodation Costs,390.00,REDACTED PERSONAL DATA,Accommodation Costs,2025881,202104
Rother District Council,05/07/2021,091HOUSING,Housing and Community Services,20200,Housing Needs - HB (Housing Benefit),D2514,Accommodation Costs,390.00,REDACTED PERSONAL DATA,Accommodation Costs,2025881,202104
Rother District Council,05/07/2021,091HOUSING,Housing and Community Services,20200,Housing Needs - HB (Housing Benefit),D2514,Accommodation Costs,390.00,REDACTED PERSONAL DATA,Accommodation Costs,2025881,202104
Rother District Council,05/07/2021,091HOUSING,Housing and Community Services,20200,Housing Needs - HB (Housing Benefit),D2514,Accommodation Costs,385.00,Lets 2 Share Limited,Accommodation Costs,2025841,202104
Rother District Council,05/07/2021,091HOUSING,Housing and Community Services,20200,Housing Needs - HB (Housing Benefit),D2514,Accommodation Costs,385.00,Lets 2 Share Limited,Accommodation Costs,2025841,202104
Rother District Council,05/07/2021,091HOUSING,Housing and Community Services,20200,Housing Needs - HB (Housing Benefit),D2514,Accommodation Costs,385.00,Lets 2 Share Limited,Accommodation Costs,2025841,202104
Rother District Council,05/07/2021,091HOUSING,Housing and Community Services,20200,Housing Needs - HB (Housing Benefit),D2514,Accommodation Costs,385.00,Lets 2 Share Limited,Accommodation Costs,2025841,202104
Rother District Council,05/07/2021,091HOUSING,Housing and Community Services,20200,Housing Needs - HB (Housing Benefit),D2514,Accommodation Costs,390.00,Coast Holiday Lettings Ltd,Accommodation Costs,2025855,202104
Rother District Council,05/07/2021,091HOUSING,Housing and Community Services,20200,Housing Needs - HB (Housing Benefit),D2514,Accommodation Costs,990.00,Key Property Solutions Guaranteed Ltd,Accommodation Costs,2025875,202104
Rother District Council,05/07/2021,091HOUSING,Housing and Community Services,20200,Housing Needs - HB (Housing Benefit),D2514,Accommodation Costs,630.00,Key Property Solutions Guaranteed Ltd,Accommodation Costs,2025876,202104
Rother District Council,05/07/2021,091HOUSING,Housing and Community Services,20200,Housing Needs - HB (Housing Benefit),D2514,Accommodation Costs,25.00,REDACTED PERSONAL DATA,Accommodation Costs,2025882,202104
Rother District Council,05/07/2021,091HOUSING,Housing and Community Services,20200,Housing Needs - HB (Housing Benefit),D2514,Accommodation Costs,25.00,REDACTED PERSONAL DATA,Accommodation Costs,2025882,202104
Rother District Council,05/07/2021,091HOUSING,Housing and Community Services,20200,Housing Needs - HB (Housing Benefit),D2514,Accommodation Costs,25.00,REDACTED PERSONAL DATA,Accommodation Costs,2025882,202104
Rother District Council,05/07/2021,091HOUSING,Housing and Community Services,20329,Rough Sleeping Initiative,D2514,Accommodation Costs,25.00,REDACTED PERSONAL DATA,Accommodation Costs,2025882,202104
Rother District Council,05/07/2021,091HOUSING,Housing and Community Services,20200,Housing Needs - HB (Housing Benefit),D2514,Accommodation Costs,390.00,Roost People Ltd,Accommodation Costs,2025883,202104
Rother District Council,05/07/2021,091HOUSING,Housing and Community Services,20200,Housing Needs - HB (Housing Benefit),D2514,Accommodation Costs,390.00,Roost People Ltd,Accommodation Costs,2025883,202104
Rother District Council,05/07/2021,091HOUSING,Housing and Community Services,20200,Housing Needs - HB (Housing Benefit),D2514,Accommodation Costs,390.00,Roost People Ltd,Accommodation Costs,2025883,202104
Rother District Council,05/07/2021,091HOUSING,Housing and Community Services,20200,Housing Needs - HB (Housing Benefit),D2514,Accommodation Costs,390.00,Roost People Ltd,Accommodation Costs,2025883,202104
Rother District Council,05/07/2021,091HOUSING,Housing and Community Services,20200,Housing Needs - HB (Housing Benefit),D2514,Accommodation Costs,315.00,Roost People Ltd,Accommodation Costs,2025883,202104
Rother District Council,05/07/2021,091HOUSING,Housing and Community Services,20200,Housing Needs - HB (Housing Benefit),D2514,Accommodation Costs,390.00,Roost People Ltd,Accommodation Costs,2025883,202104
Rother District Council,05/07/2021,091HOUSING,Housing and Community Services,20200,Housing Needs - HB (Housing Benefit),D2514,Accommodation Costs,340.00,Roost People Ltd,Accommodation Costs,2025883,202104
Rother District Council,05/07/2021,091HOUSING,Housing and Community Services,20329,Rough Sleeping Initiative,D2514,Accommodation Costs,390.00,Roost People Ltd,Accommodation Costs,2025883,202104
Rother District Council,05/07/2021,091HOUSING,Housing and Community Services,20329,Rough Sleeping Initiative,D2514,Accommodation Costs,340.00,Roost People Ltd,Accommodation Costs,2025883,202104
Rother District Council,05/07/2021,091HOUSING,Housing and Community Services,20329,Rough Sleeping Initiative,D2514,Accommodation Costs,315.00,Roost People Ltd,Accommodation Costs,2025883,202104
Rother District Council,05/07/2021,091HOUSING,Housing and Community Services,20261,"TA Purchases (prev - 41 Jameson Mews, Bexhill on Sea)",D2513,Hired and Contracted services,700.00,Meridian Surveyors,Hired and Contracted services,2026841,202105
Rother District Council,05/07/2021,999NOREPORT,Housing and Community Services,70751,Capital - Temporary Accommodation,N1001,Land & Property Purchase,850.00,Meridian Surveyors,Land & Property Purchase,2027151,202106
Rother District Council,06/07/2021,091HOUSING,Housing and Community Services,20133,Refuse Collection,E1101,Third party payment other LAs,"19,974.64",Wealden District Council,Third Party Payment other LAs - Waste ADMIN cost,2025903,202104
Rother District Council,06/07/2021,101RESOURCES,Resources,20242,Communications-Phones,D2621,Telephones,"2,148.29",KCOM Group Plc,Telephones - KCOM Smartnumber Charges,2025940,202104
Rother District Council,06/07/2021,031RESOURCES,Chief Executive & Corporate Core,20170,Communications-Postages,D2626,Postages,"4,044.44",Pitney Bowes Purchase Power,Stock Accounts Town Hall Franking Machine,2025927,202104
Rother District Council,06/07/2021,081ACQUISIT,"Acquisitions, Transformation and Regeneration",20154,Committee Property Account,B2422,Sewerage,6.55,Scottish Water Business Stream Limited,Sewerage - Sewerage Charges,2025897,202104
Rother District Council,06/07/2021,091HOUSING,Housing and Community Services,20145,Maintenance Services,C1101,Vehicle Repairs & Servicing,16.97,Autolec Motor Factors,Repairs to Premises - Purchase of Materials - Build Maint,2025900,202104
Rother District Council,06/07/2021,091HOUSING,Housing and Community Services,20206,UK Resettlement (Syrians),D2513,Hired and Contracted services,720.00,Freedom Leisure,Hired and contracted services - Syrian Misc,2025906,202104
Rother District Council,06/07/2021,041ENVIRON,Environmental Services,32134,EH Pollution R + W Partnership,D2923,Grants made,"2,100.00",Hastings and Rother Mediation Service,Hired and Contracted Services - Hastings+Rother Mediation Service,2025928,202104
Rother District Council,06/07/2021,101RESOURCES,Resources,20239,Computer Services,D2633,Computer Equipment,"8,750.00",Computacenter (UK) Ltd,Computer Equipment - Computer peripherals,2025947,202104
Rother District Council,07/07/2021,031RESOURCES,Chief Executive & Corporate Core,20171,Human Resources,A2203,Training,784.00,SC International Ltd t/a The Safety Chair,Training,2026081,202104
Rother District Council,07/07/2021,091HOUSING,Housing and Community Services,20108,Bexhill Promenade & Foreshore,B1100,Repairs to Premises,108.57,Parker Building Supplies Ltd,Repairs to Premises - Purchase of Materials - Build Maint,2025953,202104
Rother District Council,07/07/2021,091HOUSING,Housing and Community Services,20108,Bexhill Promenade & Foreshore,B1100,Repairs to Premises,90.71,Trade UK Account (Screwfix & B&Q),Repairs to Premises - Purchase of Materials - Build Maint,2025981,202104
Rother District Council,07/07/2021,091HOUSING,Housing and Community Services,20108,Bexhill Promenade & Foreshore,B1100,Repairs to Premises,9.98,Trade UK Account (Screwfix & B&Q),Repairs to Premises - Purchase of Materials - Build Maint,2025980,202104
Rother District Council,07/07/2021,091HOUSING,Housing and Community Services,20138,Residual Highway Services,B1100,Repairs to Premises,467.04,Four Seasons Plastics,Repairs to Premises - Purchase of Materials - Build Maint,2026411,202105
Rother District Council,07/07/2021,101RESOURCES,Resources,20216,Cost Of Collection,D2626,Postages,555.43,DSI Billing Services Ltd,Postages - DSI Billing,2025942,202104
Rother District Council,07/07/2021,101RESOURCES,Resources,20216,Cost Of Collection,D2513,Hired and Contracted services,98.00,Inform CPI Ltd,Hired and contracted services - RV Finder,2025986,202104
Rother District Council,07/07/2021,091HOUSING,Housing and Community Services,20201,Homelessness and Prevention,D2513,Hired and Contracted services,180.00,Cornwall Council,Hired and contracted services - RDC Homelessness Out Of Hours Call Answering Service,2026247,202104
Rother District Council,07/07/2021,041ENVIRON,Environmental Services,32134,EH Pollution R + W Partnership,D2513,Hired and Contracted services,27.00,Cornwall Council,Hired and contracted services - RDC ENV H Out Of Hours Call Answering Service,2026247,202104
Rother District Council,07/07/2021,081ACQUISIT,"Acquisitions, Transformation and Regeneration",20266,Property Investment Strategy,B2202,Gas,29.40,Crown Oil Ltd t/a Crown Gas & Power,Gas - Gas Charges,2025967,202104
Rother District Council,07/07/2021,091HOUSING,Housing and Community Services,20261,"TA Purchases (prev - 41 Jameson Mews, Bexhill on Sea)",B2202,Gas,48.52,British Gas Business (600 Accounts only),Gas - Gas Charges,2026035,202104
Rother District Council,07/07/2021,999NOREPORT,Housing and Community Services,70744,Capital - 1066 Walk Pathways,N1009,Furniture & Fittings,"10,466.00",REDACTED PERSONAL DATA,Furniture and Fittings (Capital spend),2026502,202105
Rother District Council,07/07/2021,091HOUSING,Housing and Community Services,20145,Maintenance Services,D1201,Equipment & Materials,11.98,Trade UK Account (Screwfix & B&Q),Equipment & Materials - Purchase of Tools,2025982,202104
Rother District Council,07/07/2021,091HOUSING,Housing and Community Services,20145,Maintenance Services,D1201,Equipment & Materials,34.98,Trade UK Account (Screwfix & B&Q),Equipment & Materials - Purchase of Tools,2025983,202104
Rother District Council,07/07/2021,091HOUSING,Housing and Community Services,20114,Bexhill Parks & Open Spaces,D1201,Equipment & Materials,615.00,Streetmaster (South Wales) Ltd,Equipment & Materials - Parks Purchase of Seats/ Benches/Plaques,2026094,202104
Rother District Council,07/07/2021,081ACQUISIT,"Acquisitions, Transformation and Regeneration",20153,"Elva Business Centre, Bexhill",B1100,Repairs to Premises,127.40,J M Waste Management Limited,Contract cleaning - Office Cleaning,2026239,202104
Rother District Council,07/07/2021,999NOREPORT,"Acquisitions, Transformation and Regeneration",70725,Capital - Blackfriars,N1003,Construction/Conversion,"6,395.40",Breheny Civil Engineering Ltd,Construction/Conversion Capital-Contract Payments - General,2025965,202104
Rother District Council,07/07/2021,031RESOURCES,Chief Executive & Corporate Core,20175,Administrative Offices - T.H. Annex (NOT CHP),B2612,Cleaning materials,3.98,Wightman and Parrish Ltd,Cleaning materials - Premises,2026052,202104
Rother District Council,07/07/2021,999NOREPORT,Environmental Services,70706,Capital - Disabled Facilities Grant,N1012,Capital Advances,"7,915.48",Griffin and Son,Capital Advances Disabled Facilities Grant,2026001,202104
Rother District Council,07/07/2021,999NOREPORT,Environmental Services,70706,Capital - Disabled Facilities Grant,N1012,Capital Advances,659.05,Peabody South East Ltd,Capital Advances Disabled Facilities Grant,2026011,202104
Rother District Council,07/07/2021,999NOREPORT,Housing and Community Services,70749,Capital - Bexhill Promenade Protective Barriers,N1007,Plant & Machinery,"3,649.19",Benchmark Woodworking Ltd,Capital - Plant and Property,2025929,202104
Rother District Council,07/07/2021,091HOUSING,Housing and Community Services,20204,Housing Administration Account,A1110,Agency Staff,"2,160.00","G2V Recruitment Group Ltd, t/a Vivid Resourcing",Agency Staff,2025990,202104
Rother District Council,07/07/2021,021CORP,Corporate Services & Human Resources,20165,ESCC Elections,D2415,Printing by external suppliers,842.23,Civica Election Services Ltd,Printing by external suppliers,2025964,202104
Rother District Council,07/07/2021,021CORP,Corporate Services & Human Resources,20168,Police Crime Commissioners,D2415,Printing by external suppliers,"1,010.68",Civica Election Services Ltd,Printing by external suppliers,2025964,202104
Rother District Council,07/07/2021,091HOUSING,Housing and Community Services,20200,Housing Needs - HB (Housing Benefit),D2514,Accommodation Costs,337.50,Specialist Care UK Group Ltd,Accommodation Costs,2025911,202104
Rother District Council,08/07/2021,091HOUSING,Housing and Community Services,20128,Public Conveniences,B1100,Repairs to Premises,343.16,Alfa Electric Ltd,Repairs to Premises - Repairs - Electrical Works,2026609,202105
Rother District Council,08/07/2021,091HOUSING,Housing and Community Services,20137,Car Parks,B1100,Repairs to Premises,65.94,Trade UK Account (Screwfix & B&Q),Repairs to Premises - Purchase of Materials - Build Maint,2026013,202104
Rother District Council,08/07/2021,091HOUSING,Housing and Community Services,20115,Rye Area Parks & Gardens,B1100,Repairs to Premises,"1,200.00",CS Engineering,Repairs to Premises - Parks - Playground Repairs,2025992,202104
Rother District Council,08/07/2021,081ACQUISIT,"Acquisitions, Transformation and Regeneration",20144,Property Management,B1100,Repairs to Premises,600.00,REDACTED PERSONAL DATA,Repairs to Premises - Energy Performance Certificate,2026075,202104
Rother District Council,08/07/2021,031RESOURCES,Chief Executive & Corporate Core,20156,Representing Local Interest,D2312,Refreshments,101.89,Booker Ltd,Refreshments - Catering/Refreshments for Meetings,2026490,202105
Rother District Council,08/07/2021,101RESOURCES,Resources,20240,Printing Services,D2417,Photocopy Paper by external suppliers,470.00,Canon (UK) Ltd,Photocopy Paper by external suppliers - White,2025987,202104
Rother District Council,08/07/2021,101RESOURCES,Resources,20240,Printing Services,D2638,Photocopier Contracts,"4,011.61",Canon (UK) Ltd,Photocopier Contracts,2026092,202104
Rother District Council,08/07/2021,041ENVIRON,Environmental Services,32142,EH Taxi and Private Hire Licenses R + W Partnership,D2513,Hired and Contracted services,992.01,VIP-System Ltd,Hired and contracted services - WDC Taxi Licence Plates,2026179,202104
Rother District Council,08/07/2021,091HOUSING,Housing and Community Services,20261,"TA Purchases (prev - 41 Jameson Mews, Bexhill on Sea)",D2513,Hired and Contracted services,75.00,Lets 2 Share Limited,Hired and contracted services - Service fee paid,2025966,202104
Rother District Council,08/07/2021,091HOUSING,Housing and Community Services,20204,Housing Administration Account,D2513,Hired and Contracted services,"4,313.00",Brighton Housing Trust (BHT),Hired and contracted services - Service fee paid,2026003,202104
Rother District Council,08/07/2021,041ENVIRON,Environmental Services,32142,EH Taxi and Private Hire Licenses R + W Partnership,D2513,Hired and Contracted services,388.17,VIP-System Ltd,Hired and contracted services - RDC Taxi Licence Plates,2026171,202104
Rother District Council,08/07/2021,091HOUSING,Housing and Community Services,20201,Homelessness and Prevention,D2513,Hired and Contracted services,204.00,Cornwall Council,Hired and contracted services - RDC Homelessness Out Of Hours Call Answering Service,2025948,202104
Rother District Council,08/07/2021,041ENVIRON,Environmental Services,32134,EH Pollution R + W Partnership,D2513,Hired and Contracted services,30.50,Cornwall Council,Hired and contracted services - RDC ENV H Out Of Hours Call Answering Service,2025948,202104
Rother District Council,08/07/2021,031RESOURCES,Chief Executive & Corporate Core,20173,Administrative Offices - Town Hall,B2611,Contract cleaning,894.00,Diamond Hygiene Ltd,Contract cleaning - Office Cleaning,2026097,202104
Rother District Council,08/07/2021,091HOUSING,Housing and Community Services,20107,Camber Beach & Foreshore,B2611,Contract cleaning,252.00,Diamond Hygiene Ltd,Contract cleaning - Office Cleaning,2026095,202104
Rother District Council,08/07/2021,091HOUSING,Housing and Community Services,20107,Camber Beach & Foreshore,B2611,Contract cleaning,"4,794.00",Diamond Hygiene Ltd,Contract cleaning - Office Cleaning,2026096,202104
Rother District Council,08/07/2021,071STRAT,Strategy and Planning,20249,Planning Appeals,D2509,Consultants and Other Services,"1,891.17",Carrington West Ltd,Consultants and other services - Consultants Fees,2025955,202104
Rother District Council,08/07/2021,071STRAT,Strategy and Planning,20249,Planning Appeals,D2509,Consultants and Other Services,"1,930.85",Carrington West Ltd,Consultants and other services - Consultants Fees,2025962,202104
Rother District Council,08/07/2021,071STRAT,Strategy and Planning,20249,Planning Appeals,D2509,Consultants and Other Services,"2,433.40",Carrington West Ltd,Consultants and other services - Consultants Fees,2025963,202104
Rother District Council,08/07/2021,071STRAT,Strategy and Planning,20249,Planning Appeals,D2509,Consultants and Other Services,"1,957.30",Carrington West Ltd,Consultants and other services - Consultants Fees,2025956,202104
Rother District Council,08/07/2021,071STRAT,Strategy and Planning,20249,Planning Appeals,D2509,Consultants and Other Services,"1,904.40",Carrington West Ltd,Consultants and other services - Consultants Fees,2025957,202104
Rother District Council,08/07/2021,071STRAT,Strategy and Planning,20249,Planning Appeals,D2509,Consultants and Other Services,"1,957.30",Carrington West Ltd,Consultants and other services - Consultants Fees,2025958,202104
Rother District Council,08/07/2021,071STRAT,Strategy and Planning,20249,Planning Appeals,D2509,Consultants and Other Services,"1,917.63",Carrington West Ltd,Consultants and other services - Consultants Fees,2025959,202104
Rother District Council,08/07/2021,071STRAT,Strategy and Planning,20249,Planning Appeals,D2509,Consultants and Other Services,"1,745.70",Carrington West Ltd,Consultants and other services - Consultants Fees,2025960,202104
Rother District Council,08/07/2021,071STRAT,Strategy and Planning,20249,Planning Appeals,D2509,Consultants and Other Services,"1,944.08",Carrington West Ltd,Consultants and other services - Consultants Fees,2025961,202104
Rother District Council,08/07/2021,101RESOURCES,Resources,20216,Cost Of Collection,D2635,Computer Licences,99.00,Computacenter (UK) Ltd,Computer Licences - New Computer Software,2026019,202104
Rother District Council,08/07/2021,101RESOURCES,Resources,20240,Printing Services,D2631,Computer Equip Maintenance,260.40,Canon (UK) Ltd,Computer Equip Maintenance - Maintenance re Colourwave Printer,2026093,202104
Rother District Council,08/07/2021,999NOREPORT,Environmental Services,70706,Capital - Disabled Facilities Grant,N1012,Capital Advances,"3,178.49",Peabody South East Ltd,Capital Advances Disabled Facilities Grant,2026002,202104
Rother District Council,08/07/2021,999NOREPORT,Environmental Services,70706,Capital - Disabled Facilities Grant,N1012,Capital Advances,"1,895.33",Alfa Electric Ltd,Capital Advances Disabled Facilities Grant,2026010,202104
Rother District Council,08/07/2021,021CORP,Corporate Services & Human Resources,20164,Parish Council Elections,D2415,Printing by external suppliers,778.55,Civica Election Services Ltd,Printing by external suppliers,2025988,202104
Rother District Council,08/07/2021,091HOUSING,Housing and Community Services,20261,"TA Purchases (prev - 41 Jameson Mews, Bexhill on Sea)",N1009,Furniture & Fittings,248.80,Lets 2 Share Limited,Furniture & Fittings,2025966,202104
Rother District Council,08/07/2021,091HOUSING,Housing and Community Services,20236,Customer Services and Development,J1235,RDC Support charge Customer Services and Development,45.00,The Commission for Local Administration in England,RDC Support charge Customer Services and Development,2025954,202105
Rother District Council,09/07/2021,071STRAT,Strategy and Planning,20246,Planning Applications,D2519,Statutory Advertising,594.75,JPIMedia Publishing Ltd,Statutory Advertising - Planadv - Rye+Battle Observer,2026038,202104
Rother District Council,09/07/2021,091HOUSING,Housing and Community Services,20107,Camber Beach & Foreshore,B1100,Repairs to Premises,119.70,Saint-Gobain Building Distribution Ltd t/a Jewson,Repairs to Premises - Purchase of Materials - Build Maint,2026213,202104
Rother District Council,09/07/2021,091HOUSING,Housing and Community Services,20114,Bexhill Parks & Open Spaces,B1100,Repairs to Premises,4.51,Saint-Gobain Building Distribution Ltd t/a Jewson,Repairs to Premises - Purchase of Materials - Build Maint,2026214,202104
Rother District Council,09/07/2021,091HOUSING,Housing and Community Services,20206,UK Resettlement (Syrians),D2513,Hired and Contracted services,22.80,REDACTED PERSONAL DATA,Hired and contracted services - Syrian Resettlement Programme-Travel,2025984,202104
Rother District Council,09/07/2021,091HOUSING,Housing and Community Services,20206,UK Resettlement (Syrians),D2513,Hired and Contracted services,56.90,REDACTED PERSONAL DATA,Hired and contracted services - Syrian Resettlement Programme-Travel,2025985,202104
Rother District Council,09/07/2021,091HOUSING,Housing and Community Services,20206,UK Resettlement (Syrians),D2513,Hired and Contracted services,180.00,Milburn Psychology Practice,Hired and contracted services - Syrian Misc,2026029,202104
Rother District Council,09/07/2021,091HOUSING,Housing and Community Services,20261,"TA Purchases (prev - 41 Jameson Mews, Bexhill on Sea)",D2513,Hired and Contracted services,198.00,Lets 2 Share Limited,Hired and contracted services - Service fee paid,2025994,202104
Rother District Council,09/07/2021,031RESOURCES,Chief Executive & Corporate Core,20171,Human Resources,D2513,Hired and Contracted services,300.00,Brighton Unemployed Workers Centre,Hired and contracted services - Legal Advice,2026869,202105
Rother District Council,09/07/2021,071STRAT,Strategy and Planning,20246,Planning Applications,D2513,Hired and Contracted services,24.00,H M Land Registry,Hired and contracted services - Land Registry-Planning,2026503,202105
Rother District Council,09/07/2021,031RESOURCES,Chief Executive & Corporate Core,20173,Administrative Offices - Town Hall,D2513,Hired and Contracted services,160.00,J M Waste Management Limited,Hired and contracted services - Hire of Skip,2025991,202104
Rother District Council,09/07/2021,071STRAT,Strategy and Planning,20258,BC Dangerous Structures H+R Partnership,D2513,Hired and Contracted services,3.00,H M Land Registry,Hired and contracted services - Env H-Land Registry,2026503,202105
Rother District Council,09/07/2021,041ENVIRON,Environmental Services,32134,EH Pollution R + W Partnership,D2513,Hired and Contracted services,6.00,H M Land Registry,Hired and contracted services - Env H-Land Registry,2026503,202105
Rother District Council,09/07/2021,101RESOURCES,Resources,20216,Cost Of Collection,D2513,Hired and Contracted services,6.00,H M Land Registry,Hired and contracted services - Council Tax-Land Registry Enquiries,2026503,202105
Rother District Council,09/07/2021,091HOUSING,Housing and Community Services,20114,Bexhill Parks & Open Spaces,B2731,Grounds maintenance routine,"69,174.87",Idverde Limited,Grounds maintenance routine - Parks-Grounds Maintenance Contracts,2026012,202104
Rother District Council,09/07/2021,091HOUSING,Housing and Community Services,20145,Maintenance Services,D1201,Equipment & Materials,12.49,Trade UK Account (Screwfix & B&Q),Equipment & Materials - Purchase of Tools,2026014,202104
Rother District Council,09/07/2021,041ENVIRON,Environmental Services,20129,Community Safety - CCTV costs only,B2201,Electricity,282.10,Ecotricity Ltd,Electricity - Electricity Charges,2026455,202105
Rother District Council,09/07/2021,041ENVIRON,Environmental Services,20129,Community Safety - CCTV costs only,B2201,Electricity,37.61,Ecotricity Ltd,Electricity - Electricity Charges,2026456,202105
Rother District Council,09/07/2021,081ACQUISIT,"Acquisitions, Transformation and Regeneration",20267,Property Investment Strategy - 18-40 Beeching Road ( Land and Buildings),B2201,Electricity,96.25,E.ON,Electricity - Electricity Charges,2026384,202105
Rother District Council,09/07/2021,091HOUSING,Housing and Community Services,20114,Bexhill Parks & Open Spaces,B2201,Electricity,18.71,Ecotricity Ltd,Electricity - Electricity Charges,2026454,202105
Rother District Council,09/07/2021,091HOUSING,Housing and Community Services,20108,Bexhill Promenade & Foreshore,B2201,Electricity,1.58,Ecotricity Ltd,Electricity - Electricity Charges,2026457,202105
Rother District Council,09/07/2021,091HOUSING,Housing and Community Services,20108,Bexhill Promenade & Foreshore,B2201,Electricity,2.90,Ecotricity Ltd,Electricity - Electricity Charges,2026458,202105
Rother District Council,09/07/2021,091HOUSING,Housing and Community Services,20108,Bexhill Promenade & Foreshore,B2201,Electricity,6.90,Ecotricity Ltd,Electricity - Electricity Charges,2026459,202105
Rother District Council,09/07/2021,091HOUSING,Housing and Community Services,20137,Car Parks,B2201,Electricity,37.63,Ecotricity Ltd,Electricity - Electricity Charges,2026455,202105
Rother District Council,09/07/2021,091HOUSING,Housing and Community Services,20137,Car Parks,B2201,Electricity,5.02,Ecotricity Ltd,Electricity - Electricity Charges,2026456,202105
Rother District Council,09/07/2021,091HOUSING,Housing and Community Services,20137,Car Parks,B2201,Electricity,10.02,Ecotricity Ltd,Electricity - Electricity Charges,2026457,202105
Rother District Council,09/07/2021,091HOUSING,Housing and Community Services,20137,Car Parks,B2201,Electricity,18.39,Ecotricity Ltd,Electricity - Electricity Charges,2026458,202105
Rother District Council,09/07/2021,091HOUSING,Housing and Community Services,20137,Car Parks,B2201,Electricity,43.66,Ecotricity Ltd,Electricity - Electricity Charges,2026459,202105
Rother District Council,09/07/2021,091HOUSING,Housing and Community Services,20138,Residual Highway Services,B2201,Electricity,31.31,Ecotricity Ltd,Electricity - Electricity Charges,2026455,202105
Rother District Council,09/07/2021,091HOUSING,Housing and Community Services,20138,Residual Highway Services,B2201,Electricity,4.17,Ecotricity Ltd,Electricity - Electricity Charges,2026456,202105
Rother District Council,09/07/2021,091HOUSING,Housing and Community Services,20138,Residual Highway Services,B2201,Electricity,1.58,Ecotricity Ltd,Electricity - Electricity Charges,2026457,202105
Rother District Council,09/07/2021,091HOUSING,Housing and Community Services,20138,Residual Highway Services,B2201,Electricity,2.90,Ecotricity Ltd,Electricity - Electricity Charges,2026458,202105
Rother District Council,09/07/2021,091HOUSING,Housing and Community Services,20138,Residual Highway Services,B2201,Electricity,6.89,Ecotricity Ltd,Electricity - Electricity Charges,2026459,202105
Rother District Council,09/07/2021,999NOREPORT,Environmental Services,70706,Capital - Disabled Facilities Grant,N1012,Capital Advances,"1,200.00",Peabody South East Ltd,Capital Advances Disabled Facilities Grant,2026044,202104
Rother District Council,09/07/2021,999NOREPORT,Environmental Services,70706,Capital - Disabled Facilities Grant,N1012,Capital Advances,"1,200.00",Peabody South East Ltd,Capital Advances Disabled Facilities Grant,2026045,202104
Rother District Council,09/07/2021,999NOREPORT,Environmental Services,70706,Capital - Disabled Facilities Grant,N1012,Capital Advances,"1,800.00",Peabody South East Ltd,Capital Advances Disabled Facilities Grant,2026046,202104
Rother District Council,09/07/2021,999NOREPORT,Environmental Services,70706,Capital - Disabled Facilities Grant,N1012,Capital Advances,"8,000.00",Alfa Electric Ltd,Capital Advances Disabled Facilities Grant,2026047,202104
Rother District Council,09/07/2021,999NOREPORT,"Acquisitions, Transformation and Regeneration",70750,Capital - Development of Council Owned Sites,N1004,Architects & Consultant Fees,750.00,Altair Consultancy & Advisory Services Ltd,Architects & Consultant Fees Capital-Architect and Conslt Fees,2025973,202104
Rother District Council,09/07/2021,031RESOURCES,Chief Executive & Corporate Core,20282,COVID19 NHS Test and Trace Grant,D2923,Grants made,500.00,REDACTED PERSONAL DATA,Grants made,2025977,202104
Rother District Council,09/07/2021,031RESOURCES,Chief Executive & Corporate Core,20282,COVID19 NHS Test and Trace Grant,D2923,Grants made,500.00,REDACTED PERSONAL DATA,Grants made,2025977,202104
Rother District Council,09/07/2021,031RESOURCES,Chief Executive & Corporate Core,20282,COVID19 NHS Test and Trace Grant,D2923,Grants made,500.00,REDACTED PERSONAL DATA,Grants made,2025977,202104
Rother District Council,09/07/2021,031RESOURCES,Chief Executive & Corporate Core,20282,COVID19 NHS Test and Trace Grant,D2923,Grants made,500.00,REDACTED PERSONAL DATA,Grants made,2025977,202104
Rother District Council,09/07/2021,031RESOURCES,Chief Executive & Corporate Core,20282,COVID19 NHS Test and Trace Grant,D2923,Grants made,500.00,REDACTED PERSONAL DATA,Grants made,2025977,202104
Rother District Council,09/07/2021,031RESOURCES,Chief Executive & Corporate Core,20282,COVID19 NHS Test and Trace Grant,D2923,Grants made,500.00,REDACTED PERSONAL DATA,Grants made,2025977,202104
Rother District Council,09/07/2021,031RESOURCES,Chief Executive & Corporate Core,20282,COVID19 NHS Test and Trace Grant,D2923,Grants made,500.00,REDACTED PERSONAL DATA,Grants made,2025977,202104
Rother District Council,09/07/2021,031RESOURCES,Chief Executive & Corporate Core,20288,COVID19 Test and Trace Discretionary Payments,D2923,Grants made,500.00,REDACTED PERSONAL DATA,Grants made,2025978,202104
Rother District Council,09/07/2021,031RESOURCES,Chief Executive & Corporate Core,20288,COVID19 Test and Trace Discretionary Payments,D2923,Grants made,500.00,REDACTED PERSONAL DATA,Grants made,2025978,202104
Rother District Council,09/07/2021,031RESOURCES,Chief Executive & Corporate Core,20288,COVID19 Test and Trace Discretionary Payments,D2923,Grants made,500.00,REDACTED PERSONAL DATA,Grants made,2025978,202104
Rother District Council,09/07/2021,031RESOURCES,Chief Executive & Corporate Core,20288,COVID19 Test and Trace Discretionary Payments,D2923,Grants made,500.00,REDACTED PERSONAL DATA,Grants made,2025978,202104
Rother District Council,09/07/2021,031RESOURCES,Chief Executive & Corporate Core,20288,COVID19 Test and Trace Discretionary Payments,D2923,Grants made,500.00,REDACTED PERSONAL DATA,Grants made,2025978,202104
Rother District Council,09/07/2021,031RESOURCES,Chief Executive & Corporate Core,20301,COVID19 Restart Grant - Strand One (Non Essential Retail),D2923,Grants made,"2,667.00",Roche Gallery,Grants made,2025976,202104
Rother District Council,09/07/2021,031RESOURCES,Chief Executive & Corporate Core,20301,COVID19 Restart Grant - Strand One (Non Essential Retail),D2923,Grants made,"2,667.00",JTS ECIG STORE LTD,Grants made,2025976,202104
Rother District Council,09/07/2021,031RESOURCES,Chief Executive & Corporate Core,20301,COVID19 Restart Grant - Strand One (Non Essential Retail),D2923,Grants made,"2,667.00",Save the Children Fund,Grants made,2025976,202104
Rother District Council,09/07/2021,031RESOURCES,Chief Executive & Corporate Core,20301,COVID19 Restart Grant - Strand One (Non Essential Retail),D2923,Grants made,"2,667.00",Jacobs Haberdashery,Grants made,2025976,202104
Rother District Council,09/07/2021,031RESOURCES,Chief Executive & Corporate Core,20301,COVID19 Restart Grant - Strand One (Non Essential Retail),D2923,Grants made,"2,667.00",Brocante,Grants made,2025976,202104
Rother District Council,09/07/2021,031RESOURCES,Chief Executive & Corporate Core,20301,COVID19 Restart Grant - Strand One (Non Essential Retail),D2923,Grants made,"2,667.00",CORDELIA JAMES (RYE) LIMITED,Grants made,2025976,202104
Rother District Council,09/07/2021,031RESOURCES,Chief Executive & Corporate Core,20301,COVID19 Restart Grant - Strand One (Non Essential Retail),D2923,Grants made,"2,667.00",Barby Keel Animal Sanctuary,Grants made,2025976,202104
Rother District Council,09/07/2021,031RESOURCES,Chief Executive & Corporate Core,20302,"COVID19 Restart Grant - Strand Two (Hospitality, Accommodation, Leisure, Personal care and Gyms businesses)",D2923,Grants made,"18,000.00",PARK RESORTS LIMITED,Grants made,2025974,202104
Rother District Council,09/07/2021,031RESOURCES,Chief Executive & Corporate Core,20302,"COVID19 Restart Grant - Strand Two (Hospitality, Accommodation, Leisure, Personal care and Gyms businesses)",D2923,Grants made,"8,000.00",The Railway Pub and Carvery,Grants made,2025974,202104
Rother District Council,09/07/2021,031RESOURCES,Chief Executive & Corporate Core,20302,"COVID19 Restart Grant - Strand Two (Hospitality, Accommodation, Leisure, Personal care and Gyms businesses)",D2923,Grants made,"8,000.00",Hurst Green Club,Grants made,2025974,202104
Rother District Council,09/07/2021,031RESOURCES,Chief Executive & Corporate Core,20302,"COVID19 Restart Grant - Strand Two (Hospitality, Accommodation, Leisure, Personal care and Gyms businesses)",D2923,Grants made,"12,000.00",Barnhorne Manor caravan park,Grants made,2025974,202104
Rother District Council,09/07/2021,031RESOURCES,Chief Executive & Corporate Core,20302,"COVID19 Restart Grant - Strand Two (Hospitality, Accommodation, Leisure, Personal care and Gyms businesses)",D2923,Grants made,"8,000.00",REDACTED PERSONAL DATA,Grants made,2025974,202104
Rother District Council,09/07/2021,031RESOURCES,Chief Executive & Corporate Core,20303,COVID19 Restart Grant - Additional Restrictions Grant (ARG),D2923,Grants made,"8,000.00",REDACTED PERSONAL DATA,Grants made,2025975,202104
Rother District Council,09/07/2021,031RESOURCES,Chief Executive & Corporate Core,20303,COVID19 Restart Grant - Additional Restrictions Grant (ARG),D2923,Grants made,"8,096.93",The Railway Pub and Carvery,Grants made,2025975,202104
Rother District Council,09/07/2021,031RESOURCES,Chief Executive & Corporate Core,20303,COVID19 Restart Grant - Additional Restrictions Grant (ARG),D2923,Grants made,"8,000.00",RACING SNAIL PRODUCTIONS LIMITED,Grants made,2025975,202104
Rother District Council,09/07/2021,091HOUSING,Housing and Community Services,20200,Housing Needs - HB (Housing Benefit),D2514,Accommodation Costs,332.50,Lillybank Homes Ltd,Accommodation Costs,2025993,202104
Rother District Council,09/07/2021,091HOUSING,Housing and Community Services,20200,Housing Needs - HB (Housing Benefit),D2514,Accommodation Costs,455.00,Lillybank Homes Ltd,Accommodation Costs,2025993,202104
Rother District Council,09/07/2021,091HOUSING,Housing and Community Services,20200,Housing Needs - HB (Housing Benefit),D2514,Accommodation Costs,479.99,Lillybank Homes Ltd,Accommodation Costs,2025993,202104
Rother District Council,09/07/2021,091HOUSING,Housing and Community Services,20200,Housing Needs - HB (Housing Benefit),D2514,Accommodation Costs,455.00,Lillybank Homes Ltd,Accommodation Costs,2025993,202104
Rother District Council,09/07/2021,091HOUSING,Housing and Community Services,20200,Housing Needs - HB (Housing Benefit),D2514,Accommodation Costs,413.00,Lillybank Homes Ltd,Accommodation Costs,2025993,202104
Rother District Council,09/07/2021,091HOUSING,Housing and Community Services,20200,Housing Needs - HB (Housing Benefit),D2514,Accommodation Costs,455.00,Lillybank Homes Ltd,Accommodation Costs,2025993,202104
Rother District Council,09/07/2021,091HOUSING,Housing and Community Services,20200,Housing Needs - HB (Housing Benefit),D2514,Accommodation Costs,507.50,Lillybank Homes Ltd,Accommodation Costs,2025993,202104
Rother District Council,09/07/2021,091HOUSING,Housing and Community Services,20329,Rough Sleeping Initiative,D2514,Accommodation Costs,413.00,Lillybank Homes Ltd,Accommodation Costs,2025993,202104
Rother District Council,09/07/2021,091HOUSING,Housing and Community Services,20329,Rough Sleeping Initiative,D2514,Accommodation Costs,413.00,Lillybank Homes Ltd,Accommodation Costs,2025993,202104
Rother District Council,10/07/2021,031RESOURCES,Chief Executive & Corporate Core,20159,Corporate Policy Making,D2312,Refreshments,269.10,UK Vending Ltd,Refreshments - Watercooler Service,2026017,202104
Rother District Council,11/07/2021,091HOUSING,Housing and Community Services,20128,Public Conveniences,B1100,Repairs to Premises,"1,050.00",I.B. Lock & Safe,Repairs to Premises - Specified Repairs and Works listed,2026037,202104
Rother District Council,11/07/2021,081ACQUISIT,"Acquisitions, Transformation and Regeneration",20146,West Trading Estate,B2202,Gas,35.80,British Gas Business (600 Accounts only),Gas - Gas Charges,2026467,202105
Rother District Council,12/07/2021,091HOUSING,Housing and Community Services,20204,Housing Administration Account,A2203,Training,390.00,Partnership Media Group Ltd t/a GovNet Communications,Training,2026572,202105
Rother District Council,12/07/2021,091HOUSING,Housing and Community Services,20115,Rye Area Parks & Gardens,B1100,Repairs to Premises,160.00,CS Engineering,Repairs to Premises - Repairs Painting Works,2026027,202104
Rother District Council,12/07/2021,091HOUSING,Housing and Community Services,20115,Rye Area Parks & Gardens,B1100,Repairs to Premises,22.70,Saint-Gobain Building Distribution Ltd t/a Jewson,Repairs to Premises - Purchase of Materials - Build Maint,2026424,202105
Rother District Council,12/07/2021,091HOUSING,Housing and Community Services,20123,Cemeteries,B1100,Repairs to Premises,9.99,Graham,Repairs to Premises - Purchase of Materials - Build Maint,2026419,202105
Rother District Council,12/07/2021,091HOUSING,Housing and Community Services,20128,Public Conveniences,B1100,Repairs to Premises,110.00,B and G Environmental Services Limited,Repairs to Premises - Drainage Clearance,2026248,202104
Rother District Council,12/07/2021,101RESOURCES,Resources,20240,Printing Services,D2417,Photocopy Paper by external suppliers,268.38,Ovenden Papers Ltd,Photocopy Paper by external suppliers - White,2026036,202104
Rother District Council,12/07/2021,091HOUSING,Housing and Community Services,20261,"TA Purchases (prev - 41 Jameson Mews, Bexhill on Sea)",D2513,Hired and Contracted services,25.43,Lets 2 Share Limited,Hired and contracted services - Service fee paid,2026031,202104
Rother District Council,12/07/2021,091HOUSING,Housing and Community Services,20261,"TA Purchases (prev - 41 Jameson Mews, Bexhill on Sea)",D2513,Hired and Contracted services,25.43,Lets 2 Share Limited,Hired and contracted services - Service fee paid,2026031,202104
Rother District Council,12/07/2021,091HOUSING,Housing and Community Services,20261,"TA Purchases (prev - 41 Jameson Mews, Bexhill on Sea)",D2513,Hired and Contracted services,25.43,Lets 2 Share Limited,Hired and contracted services - Service fee paid,2026031,202104
Rother District Council,12/07/2021,091HOUSING,Housing and Community Services,20261,"TA Purchases (prev - 41 Jameson Mews, Bexhill on Sea)",D2513,Hired and Contracted services,25.43,Lets 2 Share Limited,Hired and contracted services - Service fee paid,2026031,202104
Rother District Council,12/07/2021,999NOREPORT,"Acquisitions, Transformation and Regeneration",70736,Capital - 18-40 Beeching Close Refurbishment,D2513,Hired and Contracted services,227.50,South East Water Ltd Scientific Services,Hired and contracted services - Service fee paid,2026039,202104
Rother District Council,12/07/2021,091HOUSING,Housing and Community Services,20137,Car Parks,D2513,Hired and Contracted services,250.32,Flowbird Smart City UK Ltd,Hired and contracted services - Car Parks-Card payments transaction fee,2026113,202105
Rother District Council,12/07/2021,091HOUSING,Housing and Community Services,20261,"TA Purchases (prev - 41 Jameson Mews, Bexhill on Sea)",B2202,Gas,425.48,British Gas Business (600 Accounts only),Gas - Gas Charges,2026034,202104
Rother District Council,12/07/2021,101RESOURCES,Resources,20209,Corporate management,D2513,Hired and Contracted services,898.34,Lloyds Bank,Bank Charges,2026529,202105
Rother District Council,12/07/2021,101RESOURCES,Resources,20209,Corporate management,D2513,Hired and Contracted services,150.00,Lloyds Bank,Bank Charges,2026529,202105
Rother District Council,12/07/2021,101RESOURCES,Resources,20209,Corporate management,D2513,Hired and Contracted services,307.20,Lloyds Bank,Bank Charges,2026530,202105
Rother District Council,12/07/2021,031RESOURCES,Chief Executive & Corporate Core,20276,COVID19 RDC expenditure,D2514,Accommodation Costs,300.00,Roost People Ltd,Accomodation Costs - Housing Due to Covid 19 NoVAT,2026007,202104
Rother District Council,12/07/2021,031RESOURCES,Chief Executive & Corporate Core,20276,COVID19 RDC expenditure,D2514,Accommodation Costs,330.40,SDR Living Ltd,Accomodation Costs - Housing Due to Covid 19,2026030,202104
Rother District Council,12/07/2021,031RESOURCES,Chief Executive & Corporate Core,20276,COVID19 RDC expenditure,D2514,Accommodation Costs,82.60,SDR Living Ltd,Accomodation Costs - Housing Due to Covid 19,2026030,202104
Rother District Council,12/07/2021,031RESOURCES,Chief Executive & Corporate Core,20276,COVID19 RDC expenditure,D2514,Accommodation Costs,388.50,SDR Living Ltd,Accomodation Costs - Housing Due to Covid 19,2026030,202104
Rother District Council,12/07/2021,031RESOURCES,Chief Executive & Corporate Core,20276,COVID19 RDC expenditure,D2514,Accommodation Costs,123.00,SDR Living Ltd,Accomodation Costs - Housing Due to Covid 19,2026030,202104
Rother District Council,12/07/2021,031RESOURCES,Chief Executive & Corporate Core,20276,COVID19 RDC expenditure,D2514,Accommodation Costs,177.00,SDR Living Ltd,Accomodation Costs - Housing Due to Covid 19,2026030,202104
Rother District Council,12/07/2021,091HOUSING,Housing and Community Services,20200,Housing Needs - HB (Housing Benefit),D2514,Accommodation Costs,390.00,Roost People Ltd,Accommodation Costs,2026007,202104
Rother District Council,12/07/2021,091HOUSING,Housing and Community Services,20200,Housing Needs - HB (Housing Benefit),D2514,Accommodation Costs,390.00,Roost People Ltd,Accommodation Costs,2026007,202104
Rother District Council,12/07/2021,091HOUSING,Housing and Community Services,20200,Housing Needs - HB (Housing Benefit),D2514,Accommodation Costs,390.00,Roost People Ltd,Accommodation Costs,2026007,202104
Rother District Council,12/07/2021,091HOUSING,Housing and Community Services,20200,Housing Needs - HB (Housing Benefit),D2514,Accommodation Costs,390.00,Roost People Ltd,Accommodation Costs,2026007,202104
Rother District Council,12/07/2021,091HOUSING,Housing and Community Services,20200,Housing Needs - HB (Housing Benefit),D2514,Accommodation Costs,315.00,Roost People Ltd,Accommodation Costs,2026007,202104
Rother District Council,12/07/2021,091HOUSING,Housing and Community Services,20200,Housing Needs - HB (Housing Benefit),D2514,Accommodation Costs,390.00,Roost People Ltd,Accommodation Costs,2026007,202104
Rother District Council,12/07/2021,091HOUSING,Housing and Community Services,20200,Housing Needs - HB (Housing Benefit),D2514,Accommodation Costs,340.00,Roost People Ltd,Accommodation Costs,2026007,202104
Rother District Council,12/07/2021,091HOUSING,Housing and Community Services,20329,Rough Sleeping Initiative,D2514,Accommodation Costs,390.00,Roost People Ltd,Accommodation Costs,2026007,202104
Rother District Council,12/07/2021,091HOUSING,Housing and Community Services,20329,Rough Sleeping Initiative,D2514,Accommodation Costs,340.00,Roost People Ltd,Accommodation Costs,2026007,202104
Rother District Council,12/07/2021,091HOUSING,Housing and Community Services,20329,Rough Sleeping Initiative,D2514,Accommodation Costs,315.00,Roost People Ltd,Accommodation Costs,2026007,202104
Rother District Council,12/07/2021,091HOUSING,Housing and Community Services,20329,Rough Sleeping Initiative,D2514,Accommodation Costs,25.00,REDACTED PERSONAL DATA,Accommodation Costs,2026049,202104
Rother District Council,12/07/2021,091HOUSING,Housing and Community Services,20200,Housing Needs - HB (Housing Benefit),D2514,Accommodation Costs,25.00,REDACTED PERSONAL DATA,Accommodation Costs,2026049,202104
Rother District Council,12/07/2021,091HOUSING,Housing and Community Services,20200,Housing Needs - HB (Housing Benefit),D2514,Accommodation Costs,25.00,REDACTED PERSONAL DATA,Accommodation Costs,2026049,202104
